Workbook

Sheet Main
B10: 2022-07-26
B12: Sheet No. | C12: Template Name | D12: Summary
B13: 1 | C13: Future Intra | D13: For Intraday trading in F&O segment
B14: 2 | C14: Cash Intra | D14: For Intraday trading in cash market segment
B15: 3 | C15: Mid-cap Intra | D15: For Intraday trading in Mid-cap stocks
B16: 4 | C16: Bulk Deals | D16: Reveals Bulk Deals carried on NSE & BSE
B17: 5 | C17: Call Tracker
K27: `

Sheet Future Intra
M5: Back to Main Page
A6: FOR INTRA DAY TRADING | L6: =Main!B10 -> 2022-07-26
A9: Sr.no | B9: Sector | C9: Scrip | D9: Expiry Date | E9: CLOSE RATE | F9: Pivot Point | G9: Supports | J9: Resistances
E10: Point | F10: Point | G10: S1 | H10: S2 | I10: S3 | J10: R1 | K10: R2 | L10: R3 | M10: HIGH | N10: LOW | O10: OI | P10: % Change in OI
A11: 1 | B11: Index | C11: NIFTY | D11: 2022-07-28 | E11: 16632.10 | F11: 16632.87 | G11: 16560.73 | H11: 16489.37 | I11: 16417.23 | J11: 16704.23 | K11: 16776.37 | L11: 16847.73 | M11: 16705 | N11: 16561.5 | O11: 12302050 | P11: -3.22%
A12: 2 | B12: Index | C12: BANKNIFTY | D12: 2022-07-28 | E12: 36713.50 | F12: 36717.67 | G12: 36447.08 | H12: 36180.67 | I12: 35910.08 | J12: 36984.08 | K12: 37254.67 | L12: 37521.08 | M12: 36988.25 | N12: 36451.25 | O12: 2554150 | P12: -11.56%
A13: 3 | B13: Index | C13: FINNIFTY | D13: 2022-07-26 | E13: 16840.20 | F13: 16838.02 | G13: 16746.03 | H13: 16651.87 | I13: 16559.88 | J13: 16932.18 | K13: 17024.17 | L13: 17118.33 | M13: 16930 | N13: 16743.85 | O13: 10800 | P13: -18.67%
A14: 4 | B14: Index | C14: MIDCPNIFTY | D14: 2022-07-26 | E14: 6994.45 | F14: 6874.03 | G14: 6738.52 | H14: 6482.58 | I14: 6347.07 | J14: 7129.97 | K14: 7265.48 | L14: 7521.42 | M14: 7009.55 | N14: 6618.1 | O14: 825 | P14: -15.38%
A15: 5 | B15: Chemical | C15: AARTIIND | D15: 2022-07-28 | E15: 771.05 | F15: 768.55 | G15: 757.65 | H15: 744.25 | I15: 733.35 | J15: 781.95 | K15: 792.85 | L15: 806.25 | M15: 779.45 | N15: 755.15 | O15: 4363050 | P15: -0.98%
A16: 6 | B16: Capital_Goods | C16: ABB | D16: 2022-07-28 | E16: 2660.55 | F16: 2664.60 | G16: 2629.80 | H16: 2599.05 | I16: 2564.25 | J16: 2695.35 | K16: 2730.15 | L16: 2760.90 | M16: 2699.4 | N16: 2633.85 | O16: 990500 | P16: 9.03%
A17: 7 | B17: Pharma | C17: ABBOTINDIA | D17: 2022-07-28 | E17: 19764.00 | F17: 19813.87 | G17: 19611.73 | H17: 19459.47 | I17: 19257.33 | J17: 19966.13 | K17: 20168.27 | L17: 20320.53 | M17: 20016 | N17: 19661.6 | O17: 42640 | P17: 5.44%
A18: 8 | B18: Others | C18: ABCAPITAL | D18: 2022-07-28 | E18: 102.70 | F18: 103.18 | G18: 101.62 | H18: 100.53 | I18: 98.97 | J18: 104.27 | K18: 105.83 | L18: 106.92 | M18: 104.75 | N18: 102.1 | O18: 22339800 | P18: -1.80%
A19: 9 | B19: Textile | C19: ABFRL | D19: 2022-07-28 | E19: 268.30 | F19: 269.33 | G19: 265.97 | H19: 263.63 | I19: 260.27 | J19: 271.67 | K19: 275.03 | L19: 277.37 | M19: 272.7 | N19: 267 | O19: 11837800 | P19: 5.76%
A20: 10 | B20: Cement | C20: ACC | D20: 2022-07-28 | E20: 2205.25 | F20: 2201.27 | G20: 2186.73 | H20: 2168.22 | I20: 2153.68 | J20: 2219.78 | K20: 2234.32 | L20: 2252.83 | M20: 2215.8 | N20: 2182.75 | O20: 3003250 | P20: 2.62%
A21: 11 | B21: Others | C21: ADANIENT | D21: 2022-07-28 | E21: 2555.80 | F21: 2541.18 | G21: 2517.62 | H21: 2479.43 | I21: 2455.87 | J21: 2579.37 | K21: 2602.93 | L21: 2641.12 | M21: 2564.75 | N21: 2503 | O21: 22156000 | P21: -0.34%
A22: 12 | B22: Others | C22: ADANIPORTS | D22: 2022-07-28 | E22: 749.90 | F22: 750.98 | G22: 745.02 | H22: 740.13 | I22: 734.17 | J22: 755.87 | K22: 761.83 | L22: 766.72 | M22: 756.95 | N22: 746.1 | O22: 78340000 | P22: -0.19%
A23: 13 | B23: Pharma | C23: ALKEM | D23: 2022-07-28 | E23: 3115.75 | F23: 3129.63 | G23: 3086.12 | H23: 3056.48 | I23: 3012.97 | J23: 3159.27 | K23: 3202.78 | L23: 3232.42 | M23: 3173.15 | N23: 3100 | O23: 302800 | P23: 3.56%
A24: 14 | B24: Automobile | C24: AMARAJABAT | D24: 2022-07-28 | E24: 468.65 | F24: 468.60 | G24: 462.70 | H24: 456.75 | I24: 450.85 | J24: 474.55 | K24: 480.45 | L24: 486.40 | M24: 474.5 | N24: 462.65 | O24: 7492000 | P24: -2.05%
A25: 15 | B25: Cement | C25: AMBUJACEM | D25: 2022-07-28 | E25: 372.35 | F25: 372.28 | G25: 370.87 | H25: 369.38 | I25: 367.97 | J25: 373.77 | K25: 375.18 | L25: 376.67 | M25: 373.7 | N25: 370.8 | O25: 52126200 | P25: 2.93%
A26: 16 | B26: Others | C26: APOLLOHOSP | D26: 2022-07-28 | E26: 4200.35 | F26: 4197.95 | G26: 4147.90 | H26: 4095.45 | I26: 4045.40 | J26: 4250.40 | K26: 4300.45 | L26: 4352.90 | M26: 4248 | N26: 4145.5 | O26: 1835875 | P26: 5.20%
A27: 17 | B27: Automobile | C27: APOLLOTYRE | D27: 2022-07-28 | E27: 214.50 | F27: 214.08 | G27: 211.92 | H27: 209.33 | I27: 207.17 | J27: 216.67 | K27: 218.83 | L27: 221.42 | M27: 216.25 | N27: 211.5 | O27: 14381500 | P27: -6.06%
A28: 18 | B28: Automobile | C28: ASHOKLEY | D28: 2022-07-28 | E28: 147.25 | F28: 147.13 | G28: 144.97 | H28: 142.68 | I28: 140.52 | J28: 149.42 | K28: 151.58 | L28: 153.87 | M28: 149.3 | N28: 144.85 | O28: 46780000 | P28: 12.29%
A29: 19 | B29: FMCG | C29: ASIANPAINT | D29: 2022-07-28 | E29: 3103.95 | F29: 3094.23 | G29: 3066.77 | H29: 3029.58 | I29: 3002.12 | J29: 3131.42 | K29: 3158.88 | L29: 3196.07 | M29: 3121.7 | N29: 3057.05 | O29: 7196000 | P29: 1.55%
A30: 20 | B30: Others | C30: ASTRAL | D30: 2022-07-28 | E30: 1759.55 | F30: 1747.93 | G30: 1728.12 | H30: 1696.68 | I30: 1676.87 | J30: 1779.37 | K30: 1799.18 | L30: 1830.62 | M30: 1767.75 | N30: 1716.5 | O30: 846175 | P30: -2.84%
A31: 21 | B31: Others | C31: ATUL | D31: 2022-07-28 | E31: 8699.00 | F31: 8728.38 | G31: 8490.67 | H31: 8282.33 | I31: 8044.62 | J31: 8936.72 | K31: 9174.43 | L31: 9382.77 | M31: 8966.1 | N31: 8520.05 | O31: 162225 | P31: 6.19%
A32: 22 | B32: Banking | C32: AUBANK | D32: 2022-07-28 | E32: 582.35 | F32: 579.40 | G32: 573.30 | H32: 564.25 | I32: 558.15 | J32: 588.45 | K32: 594.55 | L32: 603.60 | M32: 585.5 | N32: 570.35 | O32: 7290000 | P32: -9.69%
A33: 23 | B33: Pharma | C33: AUROPHARMA | D33: 2022-07-28 | E33: 544.95 | F33: 546.63 | G33: 538.57 | H33: 532.18 | I33: 524.12 | J33: 553.02 | K33: 561.08 | L33: 567.47 | M33: 554.7 | N33: 540.25 | O33: 14165000 | P33: 0.09%
A34: 24 | B34: Banking | C34: AXISBANK | D34: 2022-07-28 | E34: 728.25 | F34: 730.05 | G34: 720.80 | H34: 713.35 | I34: 704.10 | J34: 737.50 | K34: 746.75 | L34: 754.20 | M34: 739.3 | N34: 722.6 | O34: 59221200 | P34: 1.02%
A35: 25 | B35: Automobile | C35: BAJAJ-AUTO | D35: 2022-07-28 | E35: 4023.40 | F35: 4032.97 | G35: 3993.68 | H35: 3963.97 | I35: 3924.68 | J35: 4062.68 | K35: 4101.97 | L35: 4131.68 | M35: 4072.25 | N35: 4003.25 | O35: 2418250 | P35: -9.71%
A36: 26 | B36: Finance | C36: BAJAJFINSV | D36: 2022-07-28 | E36: 12628.00 | F36: 12663.35 | G36: 12526.65 | H36: 12425.30 | I36: 12288.60 | J36: 12764.70 | K36: 12901.40 | L36: 13002.75 | M36: 12800.05 | N36: 12562 | O36: 1092000 | P36: 0.06%
A37: 27 | B37: Finance | C37: BAJFINANCE | D37: 2022-07-28 | E37: 6239.70 | F37: 6252.50 | G37: 6173.35 | H37: 6107.00 | I37: 6027.85 | J37: 6318.85 | K37: 6398.00 | L37: 6464.35 | M37: 6331.65 | N37: 6186.15 | O37: 5381500 | P37: 2.41%
A38: 28 | B38: Automobile | C38: BALKRISIND | D38: 2022-07-28 | E38: 2349.60 | F38: 2325.92 | G38: 2288.08 | H38: 2226.57 | I38: 2188.73 | J38: 2387.43 | K38: 2425.27 | L38: 2486.78 | M38: 2363.75 | N38: 2264.4 | O38: 1660500 | P38: 4.67%
A39: 29 | B39: Others | C39: BALRAMCHIN | D39: 2022-07-28 | E39: 382.35 | F39: 380.83 | G39: 377.47 | H39: 372.58 | I39: 369.22 | J39: 385.72 | K39: 389.08 | L39: 393.97 | M39: 384.2 | N39: 375.95 | O39: 6721600 | P39: -5.95%
A40: 30 | B40: Banking | C40: BANDHANBNK | D40: 2022-07-28 | E40: 274.45 | F40: 276.42 | G40: 266.28 | H40: 258.12 | I40: 247.98 | J40: 284.58 | K40: 294.72 | L40: 302.88 | M40: 286.55 | N40: 268.25 | O40: 29770200 | P40: 3.50%
A41: 31 | B41: Banking | C41: BANKBARODA | D41: 2022-07-28 | E41: 115.10 | F41: 115.47 | G41: 113.93 | H41: 112.77 | I41: 111.23 | J41: 116.63 | K41: 118.17 | L41: 119.33 | M41: 117 | N41: 114.3 | O41: 117397800 | P41: -0.10%
A42: 32 | B42: FMCG | C42: BATAINDIA | D42: 2022-07-28 | E42: 1842.45 | F42: 1832.02 | G42: 1815.83 | H42: 1789.22 | I42: 1773.03 | J42: 1858.63 | K42: 1874.82 | L42: 1901.43 | M42: 1848.2 | N42: 1805.4 | O42: 2075700 | P42: 7.60%
A43: 33 | B43: Capital_Goods | C43: BEL | D43: 2022-07-28 | E43: 270.50 | F43: 271.30 | G43: 268.15 | H43: 265.80 | I43: 262.65 | J43: 273.65 | K43: 276.80 | L43: 279.15 | M43: 274.45 | N43: 268.95 | O43: 32474800 | P43: 2.38%
A44: 34 | B44: FMCG | C44: BERGEPAINT | D44: 2022-07-28 | E44: 594.65 | F44: 592.50 | G44: 587.55 | H44: 580.45 | I44: 575.50 | J44: 599.60 | K44: 604.55 | L44: 611.65 | M44: 597.45 | N44: 585.4 | O44: 7416200 | P44: 2.18%
A45: 35 | B45: Automobile | C45: BHARATFORG | D45: 2022-07-28 | E45: 704.90 | F45: 704.97 | G45: 695.03 | H45: 685.17 | I45: 675.23 | J45: 714.83 | K45: 724.77 | L45: 734.63 | M45: 714.9 | N45: 695.1 | O45: 8773000 | P45: -6.95%
A46: 36 | B46: Telecom | C46: BHARTIARTL | D46: 2022-07-28 | E46: 679.95 | F46: 681.63 | G46: 676.47 | H46: 672.98 | I46: 667.82 | J46: 685.12 | K46: 690.28 | L46: 693.77 | M46: 686.8 | N46: 678.15 | O46: 52649000 | P46: 1.68%
A47: 37 | B47: Capital_Goods | C47: BHEL | D47: 2022-07-28 | E47: 53.80 | F47: 53.53 | G47: 53.07 | H47: 52.33 | I47: 51.87 | J47: 54.27 | K47: 54.73 | L47: 55.47 | M47: 54 | N47: 52.8 | O47: 121810500 | P47: 0.00%
A48: 38 | B48: Pharma | C48: BIOCON | D48: 2022-07-28 | E48: 323.45 | F48: 323.87 | G48: 319.83 | H48: 316.22 | I48: 312.18 | J48: 327.48 | K48: 331.52 | L48: 335.13 | M48: 327.9 | N48: 320.25 | O48: 14425600 | P48: -0.63%
A49: 39 | B49: Automobile | C49: BOSCHLTD | D49: 2022-07-28 | E49: 16534.80 | F49: 16670.40 | G49: 16354.40 | H49: 16174.00 | I49: 15858.00 | J49: 16850.80 | K49: 17166.80 | L49: 17347.20 | M49: 16986.4 | N49: 16490 | O49: 122900 | P49: 9.88%
A50: 40 | B50: Oil_Gas | C50: BPCL | D50: 2022-07-28 | E50: 317.75 | F50: 318.30 | G50: 315.20 | H50: 312.65 | I50: 309.55 | J50: 320.85 | K50: 323.95 | L50: 326.50 | M50: 321.4 | N50: 315.75 | O50: 18315000 | P50: 2.03%
A51: 41 | B51: FMCG | C51: BRITANNIA | D51: 2022-07-28 | E51: 3891.35 | F51: 3885.97 | G51: 3856.53 | H51: 3821.72 | I51: 3792.28 | J51: 3920.78 | K51: 3950.22 | L51: 3985.03 | M51: 3915.4 | N51: 3851.15 | O51: 1915600 | P51: -1.28%
A52: 42 | B52: Technology | C52: BSOFT | D52: 2022-07-28 | E52: 333.70 | F52: 333.47 | G52: 330.43 | H52: 327.17 | I52: 324.13 | J52: 336.73 | K52: 339.77 | L52: 343.03 | M52: 336.5 | N52: 330.2 | O52: 5259800 | P52: -1.53%
A53: 43 | B53: Banking | C53: CANBK | D53: 2022-07-28 | E53: 224.90 | F53: 226.77 | G53: 218.78 | H53: 212.67 | I53: 204.68 | J53: 232.88 | K53: 240.87 | L53: 246.98 | M53: 234.75 | N53: 220.65 | O53: 49952700 | P53: 2.69%
A54: 44 | B54: Finance | C54: CANFINHOME | D54: 2022-07-28 | E54: 552.40 | F54: 545.92 | G54: 537.48 | H54: 522.57 | I54: 514.13 | J54: 560.83 | K54: 569.27 | L54: 584.18 | M54: 554.35 | N54: 531 | O54: 3159000 | P54: 1.25%
A55: 45 | B55: Others | C55: CHAMBLFERT | D55: 2022-07-28 | E55: 315.95 | F55: 317.30 | G55: 311.45 | H55: 306.95 | I55: 301.10 | J55: 321.80 | K55: 327.65 | L55: 332.15 | M55: 323.15 | N55: 312.8 | O55: 5485500 | P55: -0.52%
A56: 46 | B56: Finance | C56: CHOLAFIN | D56: 2022-07-28 | E56: 687.05 | F56: 687.02 | G56: 680.73 | H56: 674.42 | I56: 668.13 | J56: 693.33 | K56: 699.62 | L56: 705.93 | M56: 693.3 | N56: 680.7 | O56: 9376250 | P56: -1.19%
A57: 47 | B57: Pharma | C57: CIPLA | D57: 2022-07-28 | E57: 960.30 | F57: 965.18 | G57: 951.02 | H57: 941.73 | I57: 927.57 | J57: 974.47 | K57: 988.63 | L57: 997.92 | M57: 979.35 | N57: 955.9 | O57: 8835450 | P57: -0.29%
A58: 48 | B58: Others | C58: COALINDIA | D58: 2022-07-28 | E58: 201.30 | F58: 199.45 | G58: 196.65 | H58: 192.00 | I58: 189.20 | J58: 204.10 | K58: 206.90 | L58: 211.55 | M58: 202.25 | N58: 194.8 | O58: 42159600 | P58: 9.36%
A59: 49 | B59: Technology | C59: COFORGE | D59: 2022-07-28 | E59: 3774.35 | F59: 3755.33 | G59: 3684.67 | H59: 3594.98 | I59: 3524.32 | J59: 3845.02 | K59: 3915.68 | L59: 4005.37 | M59: 3826 | N59: 3665.65 | O59: 995700 | P59: -7.33%
A60: 50 | B60: FMCG | C60: COLPAL | D60: 2022-07-28 | E60: 1562.50 | F60: 1574.85 | G60: 1539.85 | H60: 1517.20 | I60: 1482.20 | J60: 1597.50 | K60: 1632.50 | L60: 1655.15 | M60: 1609.85 | N60: 1552.2 | O60: 2818900 | P60: 6.00%
A61: 51 | B61: Others | C61: CONCOR | D61: 2022-07-28 | E61: 672.70 | F61: 670.88 | G61: 665.87 | H61: 659.03 | I61: 654.02 | J61: 677.72 | K61: 682.73 | L61: 689.57 | M61: 675.9 | N61: 664.05 | O61: 6390000 | P61: -1.77%
A62: 52 | B62: Others | C62: COROMANDEL | D62: 2022-07-28 | E62: 1022.75 | F62: 1011.22 | G62: 991.13 | H62: 959.52 | I62: 939.43 | J62: 1042.83 | K62: 1062.92 | L62: 1094.53 | M62: 1031.3 | N62: 979.6 | O62: 1362200 | P62: -4.14%
A63: 53 | B63: Capital_Goods | C63: CROMPTON | D63: 2022-07-28 | E63: 376.40 | F63: 373.90 | G63: 366.35 | H63: 356.30 | I63: 348.75 | J63: 383.95 | K63: 391.50 | L63: 401.55 | M63: 381.45 | N63: 363.85 | O63: 4150500 | P63: -3.45%
A64: 54 | B64: Banking | C64: CUB | D64: 2022-07-28 | E64: 162.30 | F64: 162.43 | G64: 159.82 | H64: 157.33 | I64: 154.72 | J64: 164.92 | K64: 167.53 | L64: 170.02 | M64: 165.05 | N64: 159.95 | O64: 10660000 | P64: -1.43%
A65: 55 | B65: Capital_Goods | C65: CUMMINSIND | D65: 2022-07-28 | E65: 1190.80 | F65: 1198.88 | G65: 1179.77 | H65: 1168.73 | I65: 1149.62 | J65: 1209.92 | K65: 1229.03 | L65: 1240.07 | M65: 1218 | N65: 1187.85 | O65: 2727000 | P65: 7.32%
A66: 56 | B66: FMCG | C66: DABUR | D66: 2022-07-28 | E66: 568.05 | F66: 569.93 | G66: 563.82 | H66: 559.58 | I66: 553.47 | J66: 574.17 | K66: 580.28 | L66: 584.52 | M66: 576.05 | N66: 565.7 | O66: 12962500 | P66: 0.36%
A67: 57 | B67: Cement | C67: DALBHARAT | D67: 2022-07-28 | E67: 1551.45 | F67: 1564.23 | G67: 1531.57 | H67: 1511.68 | I67: 1479.02 | J67: 1584.12 | K67: 1616.78 | L67: 1636.67 | M67: 1596.9 | N67: 1544.35 | O67: 1240000 | P67: 15.30%
A68: 58 | B68: Chemical | C68: DEEPAKNTR | D68: 2022-07-28 | E68: 1854.60 | F68: 1837.85 | G68: 1806.45 | H68: 1758.30 | I68: 1726.90 | J68: 1886.00 | K68: 1917.40 | L68: 1965.55 | M68: 1869.25 | N68: 1789.7 | O68: 2527250 | P68: -5.64%
A69: 59 | B69: Others | C69: DELTACORP | D69: 2022-07-28 | E69: 184.80 | F69: 182.37 | G69: 179.03 | H69: 173.27 | I69: 169.93 | J69: 188.13 | K69: 191.47 | L69: 197.23 | M69: 185.7 | N69: 176.6 | O69: 15771100 | P69: -7.02%
A70: 60 | B70: Pharma | C70: DIVISLAB | D70: 2022-07-28 | E70: 3774.65 | F70: 3784.55 | G70: 3754.40 | H70: 3734.15 | I70: 3704.00 | J70: 3804.80 | K70: 3834.95 | L70: 3855.20 | M70: 3814.7 | N70: 3764.3 | O70: 2608950 | P70: -1.00%
A71: 61 | B71: Others | C71: DIXON | D71: 2022-07-28 | E71: 3763.10 | F71: 3789.47 | G71: 3723.63 | H71: 3684.17 | I71: 3618.33 | J71: 3828.93 | K71: 3894.77 | L71: 3934.23 | M71: 3855.3 | N71: 3750 | O71: 655375 | P71: 0.50%
A72: 62 | B72: Realty | C72: DLF | D72: 2022-07-28 | E72: 358.15 | F72: 358.02 | G72: 354.43 | H72: 350.72 | I72: 347.13 | J72: 361.73 | K72: 365.32 | L72: 369.03 | M72: 361.6 | N72: 354.3 | O72: 39689100 | P72: -0.60%
A73: 63 | B73: Pharma | C73: DRREDDY | D73: 2022-07-28 | E73: 4340.70 | F73: 4348.08 | G73: 4295.37 | H73: 4250.03 | I73: 4197.32 | J73: 4393.42 | K73: 4446.13 | L73: 4491.47 | M73: 4400.8 | N73: 4302.75 | O73: 1962750 | P73: -0.75%
A74: 64 | B74: Automobile | C74: EICHERMOT | D74: 2022-07-28 | E74: 3090.45 | F74: 3103.75 | G74: 3056.70 | H74: 3022.95 | I74: 2975.90 | J74: 3137.50 | K74: 3184.55 | L74: 3218.30 | M74: 3150.8 | N74: 3070 | O74: 3412850 | P74: -1.45%
A75: 65 | B75: Automobile | C75: ESCORTS | D75: 2022-07-28 | E75: 1684.00 | F75: 1681.47 | G75: 1659.43 | H75: 1634.87 | I75: 1612.83 | J75: 1706.03 | K75: 1728.07 | L75: 1752.63 | M75: 1703.5 | N75: 1656.9 | O75: 2503050 | P75: 14.43%
A76: 66 | B76: Automobile | C76: EXIDEIND | D76: 2022-07-28 | E76: 150.95 | F76: 150.78 | G76: 149.82 | H76: 148.68 | I76: 147.72 | J76: 151.92 | K76: 152.88 | L76: 154.02 | M76: 151.75 | N76: 149.65 | O76: 24854400 | P76: -3.43%
A77: 67 | B77: Banking | C77: FEDERALBNK | D77: 2022-07-28 | E77: 107.50 | F77: 107.12 | G77: 106.18 | H77: 104.87 | I77: 103.93 | J77: 108.43 | K77: 109.37 | L77: 110.68 | M77: 108.05 | N77: 105.8 | O77: 103620000 | P77: 6.66%
A78: 68 | B78: Technology | C78: FSL | D78: 2022-07-28 | E78: 110.60 | F78: 109.77 | G78: 108.08 | H78: 105.57 | I78: 103.88 | J78: 112.28 | K78: 113.97 | L78: 116.48 | M78: 111.45 | N78: 107.25 | O78: 14924000 | P78: -3.59%
A79: 69 | B79: Oil_Gas | C79: GAIL | D79: 2022-07-28 | E79: 147.35 | F79: 145.92 | G79: 144.18 | H79: 141.02 | I79: 139.28 | J79: 149.08 | K79: 150.82 | L79: 153.98 | M79: 147.65 | N79: 142.75 | O79: 29298300 | P79: -6.28%
A80: 70 | B80: Pharma | C80: GLENMARK | D80: 2022-07-28 | E80: 375.05 | F80: 373.10 | G80: 368.90 | H80: 362.75 | I80: 358.55 | J80: 379.25 | K80: 383.45 | L80: 389.60 | M80: 377.3 | N80: 366.95 | O80: 7687750 | P80: -0.19%
A81: 71 | B81: Infrastructure | C81: GMRINFRA | D81: 2022-07-28 | E81: 35.90 | F81: 35.65 | G81: 35.05 | H81: 34.20 | I81: 33.60 | J81: 36.50 | K81: 37.10 | L81: 37.95 | M81: 36.25 | N81: 34.8 | O81: 114390000 | P81: -0.29%
A82: 72 | B82: Others | C82: GNFC | D82: 2022-07-28 | E82: 673.60 | F82: 674.13 | G82: 665.52 | H82: 657.43 | I82: 648.82 | J82: 682.22 | K82: 690.83 | L82: 698.92 | M82: 682.75 | N82: 666.05 | O82: 3849300 | P82: 3.50%
A83: 73 | B83: FMCG | C83: GODREJCP | D83: 2022-07-28 | E83: 871.00 | F83: 874.23 | G83: 862.42 | H83: 853.83 | I83: 842.02 | J83: 882.82 | K83: 894.63 | L83: 903.22 | M83: 886.05 | N83: 865.65 | O83: 7067000 | P83: -1.20%
A84: 74 | B84: Realty | C84: GODREJPROP | D84: 2022-07-28 | E84: 1433.75 | F84: 1431.78 | G84: 1418.07 | H84: 1402.38 | I84: 1388.67 | J84: 1447.47 | K84: 1461.18 | L84: 1476.87 | M84: 1445.5 | N84: 1416.1 | O84: 3539575 | P84: -0.77%
A85: 75 | B85: Pharma | C85: GRANULES | D85: 2022-07-28 | E85: 304.10 | F85: 303.50 | G85: 298.60 | H85: 293.10 | I85: 288.20 | J85: 309.00 | K85: 313.90 | L85: 319.40 | M85: 308.4 | N85: 298 | O85: 11614000 | P85: 4.90%
A86: 76 | B86: Cement | C86: GRASIM | D86: 2022-07-28 | E86: 1499.15 | F86: 1501.67 | G86: 1478.83 | H86: 1458.52 | I86: 1435.68 | J86: 1521.98 | K86: 1544.82 | L86: 1565.13 | M86: 1524.5 | N86: 1481.35 | O86: 14277550 | P86: -2.77%
A87: 77 | B87: Oil_Gas | C87: GSPL | D87: 2022-07-28 | E87: 228.95 | F87: 232.38 | G87: 224.57 | H87: 220.18 | I87: 212.37 | J87: 236.77 | K87: 244.58 | L87: 248.97 | M87: 240.2 | N87: 228 | O87: 4217500 | P87: 4.46%
A88: 78 | B88: Oil_Gas | C88: GUJGASLTD | D88: 2022-07-28 | E88: 454.70 | F88: 453.32 | G88: 447.88 | H88: 441.07 | I88: 435.63 | J88: 460.13 | K88: 465.57 | L88: 472.38 | M88: 458.75 | N88: 446.5 | O88: 4797500 | P88: -2.42%
A89: 79 | B89: Others | C89: HAL | D89: 2022-07-28 | E89: 1907.00 | F89: 1898.37 | G89: 1883.63 | H89: 1860.27 | I89: 1845.53 | J89: 1921.73 | K89: 1936.47 | L89: 1959.83 | M89: 1913.1 | N89: 1875 | O89: 2456225 | P89: 1.47%
A90: 80 | B90: Capital_Goods | C90: HAVELLS | D90: 2022-07-28 | E90: 1225.85 | F90: 1215.40 | G90: 1201.50 | H90: 1177.15 | I90: 1163.25 | J90: 1239.75 | K90: 1253.65 | L90: 1278.00 | M90: 1229.3 | N90: 1191.05 | O90: 5813000 | P90: -2.02%
A91: 81 | B91: Technology | C91: HCLTECH | D91: 2022-07-28 | E91: 930.45 | F91: 925.68 | G91: 919.57 | H91: 908.68 | I91: 902.57 | J91: 936.57 | K91: 942.68 | L91: 953.57 | M91: 931.8 | N91: 914.8 | O91: 23380000 | P91: -2.14%
A92: 82 | B92: Finance | C92: HDFC | D92: 2022-07-28 | E92: 2310.35 | F92: 2302.30 | G92: 2285.40 | H92: 2260.45 | I92: 2243.55 | J92: 2327.25 | K92: 2344.15 | L92: 2369.10 | M92: 2319.2 | N92: 2277.35 | O92: 23169900 | P92: -1.02%
A93: 83 | B93: Finance | C93: HDFCAMC | D93: 2022-07-28 | E93: 1859.45 | F93: 1868.82 | G93: 1831.63 | H93: 1803.82 | I93: 1766.63 | J93: 1896.63 | K93: 1933.82 | L93: 1961.63 | M93: 1906 | N93: 1841 | O93: 3025200 | P93: -0.26%
A94: 84 | B94: Banking | C94: HDFCBANK | D94: 2022-07-28 | E94: 1398.00 | F94: 1396.28 | G94: 1386.22 | H94: 1374.43 | I94: 1364.37 | J94: 1408.07 | K94: 1418.13 | L94: 1429.92 | M94: 1406.35 | N94: 1384.5 | O94: 63364400 | P94: -3.03%
A95: 85 | B95: Finance | C95: HDFCLIFE | D95: 2022-07-28 | E95: 527.30 | F95: 529.87 | G95: 523.43 | H95: 519.57 | I95: 513.13 | J95: 533.73 | K95: 540.17 | L95: 544.03 | M95: 536.3 | N95: 526 | O95: 29835300 | P95: 2.10%
A96: 86 | B96: Automobile | C96: HEROMOTOCO | D96: 2022-07-28 | E96: 2805.20 | F96: 2815.48 | G96: 2789.72 | H96: 2774.23 | I96: 2748.47 | J96: 2830.97 | K96: 2856.73 | L96: 2872.22 | M96: 2841.25 | N96: 2800 | O96: 4071600 | P96: 0.33%
A97: 87 | B97: Metals | C97: HINDALCO | D97: 2022-07-28 | E97: 386.30 | F97: 384.82 | G97: 381.33 | H97: 376.37 | I97: 372.88 | J97: 389.78 | K97: 393.27 | L97: 398.23 | M97: 388.3 | N97: 379.85 | O97: 41142400 | P97: -1.13%
A98: 88 | B98: Metals | C98: HINDCOPPER | D98: 2022-07-28 | E98: 95.30 | F98: 95.60 | G98: 94.50 | H98: 93.70 | I98: 92.60 | J98: 96.40 | K98: 97.50 | L98: 98.30 | M98: 96.7 | N98: 94.8 | O98: 16413100 | P98: 1.44%
A99: 89 | B99: Oil_Gas | C99: HINDPETRO | D99: 2022-07-28 | E99: 231.75 | F99: 232.12 | G99: 229.23 | H99: 226.72 | I99: 223.83 | J99: 234.63 | K99: 237.52 | L99: 240.03 | M99: 235 | N99: 229.6 | O99: 25026300 | P99: 2.45%
A100: 90 | B100: FMCG | C100: HINDUNILVR | D100: 2022-07-28 | E100: 2617.95 | F100: 2627.12 | G100: 2600.68 | H100: 2583.42 | I100: 2556.98 | J100: 2644.38 | K100: 2670.82 | L100: 2688.08 | M100: 2653.55 | N100: 2609.85 | O100: 11788200 | P100: -4.09%
A101: 91 | B101: Others | C101: HONAUT | D101: 2022-07-28 | E101: 38902.65 | F101: 38957.27 | G101: 38496.83 | H101: 38091.02 | I101: 37630.58 | J101: 39363.08 | K101: 39823.52 | L101: 40229.33 | M101: 39417.7 | N101: 38551.45 | O101: 21165 | P101: -2.49%
A102: 92 | B102: Finance | C102: IBULHSGFIN | D102: 2022-07-28 | E102: 101.55 | F102: 100.77 | G102: 99.58 | H102: 97.62 | I102: 96.43 | J102: 102.73 | K102: 103.92 | L102: 105.88 | M102: 101.95 | N102: 98.8 | O102: 46896000 | P102: -4.40%
A103: 93 | B103: Banking | C103: ICICIBANK | D103: 2022-07-28 | E103: 799.70 | F103: 804.15 | G103: 791.60 | H103: 783.50 | I103: 770.95 | J103: 812.25 | K103: 824.80 | L103: 832.90 | M103: 816.7 | N103: 796.05 | O103: 80797750 | P103: 2.18%
A104: 94 | B104: Finance | C104: ICICIGI | D104: 2022-07-28 | E104: 1186.90 | F104: 1193.45 | G104: 1172.95 | H104: 1159.00 | I104: 1138.50 | J104: 1207.40 | K104: 1227.90 | L104: 1241.85 | M104: 1213.95 | N104: 1179.5 | O104: 3586150 | P104: 5.99%
A105: 95 | B105: Finance | C105: ICICIPRULI | D105: 2022-07-28 | E105: 531.75 | F105: 532.02 | G105: 528.58 | H105: 525.42 | I105: 521.98 | J105: 535.18 | K105: 538.62 | L105: 541.78 | M105: 535.45 | N105: 528.85 | O105: 6253500 | P105: -1.81%
A106: 96 | B106: Telecom | C106: IDEA | D106: 2022-07-28 | E106: 8.95 | F106: 8.97 | G106: 8.88 | H106: 8.82 | I106: 8.73 | J106: 9.03 | K106: 9.12 | L106: 9.18 | M106: 9.05 | N106: 8.9 | O106: 632730000 | P106: 0.33%
A107: 97 | B107: Finance | C107: IDFC | D107: 2022-07-28 | E107: 53.45 | F107: 54.17 | G107: 52.53 | H107: 51.62 | I107: 49.98 | J107: 55.08 | K107: 56.72 | L107: 57.63 | M107: 55.8 | N107: 53.25 | O107: 116830000 | P107: 6.14%
A108: 98 | B108: Banking | C108: IDFCFIRSTB | D108: 2022-07-28 | E108: 36.10 | F108: 35.90 | G108: 35.65 | H108: 35.20 | I108: 34.95 | J108: 36.35 | K108: 36.60 | L108: 37.05 | M108: 36.15 | N108: 35.45 | O108: 299685000 | P108: 6.37%
A109: 99 | B109: Others | C109: IEX | D109: 2022-07-28 | E109: 158.80 | F109: 159.15 | G109: 156.55 | H109: 154.30 | I109: 151.70 | J109: 161.40 | K109: 164.00 | L109: 166.25 | M109: 161.75 | N109: 156.9 | O109: 65205000 | P109: 0.17%
A110: 100 | B110: Oil_Gas | C110: IGL | D110: 2022-07-28 | E110: 362.00 | F110: 364.62 | G110: 356.98 | H110: 351.97 | I110: 344.33 | J110: 369.63 | K110: 377.27 | L110: 382.28 | M110: 372.25 | N110: 359.6 | O110: 12300750 | P110: -1.65%
A111: 101 | B111: Infrastructure | C111: INDHOTEL | D111: 2022-07-28 | E111: 260.85 | F111: 258.83 | G111: 255.52 | H111: 250.18 | I111: 246.87 | J111: 264.17 | K111: 267.48 | L111: 272.82 | M111: 262.15 | N111: 253.5 | O111: 25957988 | P111: 10.34%
A112: 102 | B112: Cement | C112: INDIACEM | D112: 2022-07-28 | E112: 186.45 | F112: 186.48 | G112: 183.82 | H112: 181.18 | I112: 178.52 | J112: 189.12 | K112: 191.78 | L112: 194.42 | M112: 189.15 | N112: 183.85 | O112: 13166000 | P112: 1.05%
A113: 103 | B113: Others | C113: INDIAMART | D113: 2022-07-28 | E113: 3936.60 | F113: 3949.70 | G113: 3854.40 | H113: 3772.20 | I113: 3676.90 | J113: 4031.90 | K113: 4127.20 | L113: 4209.40 | M113: 4045 | N113: 3867.5 | O113: 416100 | P113: -2.73%
A114: 104 | B114: Others | C114: INDIGO | D114: 2022-07-28 | E114: 1819.90 | F114: 1814.22 | G114: 1802.18 | H114: 1784.47 | I114: 1772.43 | J114: 1831.93 | K114: 1843.97 | L114: 1861.68 | M114: 1826.25 | N114: 1796.5 | O114: 3131100 | P114: 1.08%
A115: 105 | B115: Banking | C115: INDUSINDBK | D115: 2022-07-28 | E115: 964.15 | F115: 957.27 | G115: 946.58 | H115: 929.02 | I115: 918.33 | J115: 974.83 | K115: 985.52 | L115: 1003.08 | M115: 967.95 | N115: 939.7 | O115: 28937700 | P115: 0.91%
A116: 106 | B116: Telecom | C116: INDUSTOWER | D116: 2022-07-28 | E116: 223.45 | F116: 223.92 | G116: 220.88 | H116: 218.32 | I116: 215.28 | J116: 226.48 | K116: 229.52 | L116: 232.08 | M116: 226.95 | N116: 221.35 | O116: 14820400 | P116: -2.68%
A117: 107 | B117: Technology | C117: INFY | D117: 2022-07-28 | E117: 1506.55 | F117: 1501.25 | G117: 1482.90 | H117: 1459.25 | I117: 1440.90 | J117: 1524.90 | K117: 1543.25 | L117: 1566.90 | M117: 1519.6 | N117: 1477.6 | O117: 38175000 | P117: -1.34%
A118: 108 | B118: Technology | C118: INTELLECT | D118: 2022-07-28 | E118: 697.25 | F118: 697.32 | G118: 687.68 | H118: 678.12 | I118: 668.48 | J118: 706.88 | K118: 716.52 | L118: 726.08 | M118: 706.95 | N118: 687.75 | O118: 1181250 | P118: 11.70%
A119: 109 | B119: Oil_Gas | C119: IOC | D119: 2022-07-28 | E119: 72.30 | F119: 72.03 | G119: 71.57 | H119: 70.83 | I119: 70.37 | J119: 72.77 | K119: 73.23 | L119: 73.97 | M119: 72.5 | N119: 71.3 | O119: 72374250 | P119: -13.02%
A120: 110 | B120: Pharma | C120: IPCALAB | D120: 2022-07-28 | E120: 968.05 | F120: 970.97 | G120: 958.83 | H120: 949.62 | I120: 937.48 | J120: 980.18 | K120: 992.32 | L120: 1001.53 | M120: 983.1 | N120: 961.75 | O120: 827450 | P120: -7.82%
A121: 111 | B121: Others | C121: IRCTC | D121: 2022-07-28 | E121: 598.60 | F121: 601.28 | G121: 592.87 | H121: 587.13 | I121: 578.72 | J121: 607.02 | K121: 615.43 | L121: 621.17 | M121: 609.7 | N121: 595.55 | O121: 14178500 | P121: -0.12%
A122: 112 | B122: FMCG | C122: ITC | D122: 2022-07-28 | E122: 301.75 | F122: 301.50 | G122: 299.60 | H122: 297.45 | I122: 295.55 | J122: 303.65 | K122: 305.55 | L122: 307.70 | M122: 303.4 | N122: 299.35 | O122: 105382400 | P122: 5.33%
A123: 113 | B123: Metals | C123: JINDALSTEL | D123: 2022-07-28 | E123: 371.00 | F123: 367.23 | G123: 361.77 | H123: 352.53 | I123: 347.07 | J123: 376.47 | K123: 381.93 | L123: 391.17 | M123: 372.7 | N123: 358 | O123: 36870000 | P123: -0.90%
A124: 114 | B124: Cement | C124: JKCEMENT | D124: 2022-07-28 | E124: 2354.70 | F124: 2346.70 | G124: 2330.00 | H124: 2305.30 | I124: 2288.60 | J124: 2371.40 | K124: 2388.10 | L124: 2412.80 | M124: 2363.4 | N124: 2322 | O124: 596000 | P124: -6.69%
A125: 115 | B125: Metals | C125: JSWSTEEL | D125: 2022-07-28 | E125: 586.45 | F125: 583.63 | G125: 577.82 | H125: 569.18 | I125: 563.37 | J125: 592.27 | K125: 598.08 | L125: 606.72 | M125: 589.45 | N125: 575 | O125: 50784300 | P125: 2.94%
A126: 116 | B126: Others | C126: JUBLFOOD | D126: 2022-07-28 | E126: 575.40 | F126: 579.60 | G126: 567.85 | H126: 560.30 | I126: 548.55 | J126: 587.15 | K126: 598.90 | L126: 606.45 | M126: 591.35 | N126: 572.05 | O126: 9983750 | P126: 3.90%
A127: 117 | B127: Banking | C127: KOTAKBANK | D127: 2022-07-28 | E127: 1793.00 | F127: 1807.17 | G127: 1766.33 | H127: 1739.67 | I127: 1698.83 | J127: 1833.83 | K127: 1874.67 | L127: 1901.33 | M127: 1848 | N127: 1780.5 | O127: 15392800 | P127: 3.50%
A128: 118 | B128: Finance | C128: L&TFH | D128: 2022-07-28 | E128: 72.60 | F128: 72.25 | G128: 71.70 | H128: 70.80 | I128: 70.25 | J128: 73.15 | K128: 73.70 | L128: 74.60 | M128: 72.8 | N128: 71.35 | O128: 55302028 | P128: -14.32%
A129: 119 | B129: Others | C129: LALPATHLAB | D129: 2022-07-28 | E129: 2104.50 | F129: 2099.15 | G129: 2070.35 | H129: 2036.20 | I129: 2007.40 | J129: 2133.30 | K129: 2162.10 | L129: 2196.25 | M129: 2127.95 | N129: 2065 | O129: 1213500 | P129: -9.17%
A130: 120 | B130: Pharma | C130: LAURUSLABS | D130: 2022-07-28 | E130: 497.65 | F130: 500.05 | G130: 491.90 | H130: 486.15 | I130: 478.00 | J130: 505.80 | K130: 513.95 | L130: 519.70 | M130: 508.2 | N130: 494.3 | O130: 5812200 | P130: 2.97%
A131: 121 | B131: Finance | C131: LICHSGFIN | D131: 2022-07-28 | E131: 371.60 | F131: 373.67 | G131: 367.68 | H131: 363.77 | I131: 357.78 | J131: 377.58 | K131: 383.57 | L131: 387.48 | M131: 379.65 | N131: 369.75 | O131: 17478000 | P131: 0.82%
A132: 122 | B132: Capital_Goods | C132: LT | D132: 2022-07-28 | E132: 1779.45 | F132: 1776.62 | G132: 1766.68 | H132: 1753.92 | I132: 1743.98 | J132: 1789.38 | K132: 1799.32 | L132: 1812.08 | M132: 1786.55 | N132: 1763.85 | O132: 12236700 | P132: 3.18%
A133: 123 | B133: Technology | C133: LTI | D133: 2022-07-28 | E133: 4511.75 | F133: 4501.95 | G133: 4473.95 | H133: 4436.15 | I133: 4408.15 | J133: 4539.75 | K133: 4567.75 | L133: 4605.55 | M133: 4529.95 | N133: 4464.15 | O133: 1544250 | P133: -0.04%
A134: 124 | B134: Technology | C134: LTTS | D134: 2022-07-28 | E134: 3450.75 | F134: 3444.80 | G134: 3404.60 | H134: 3358.45 | I134: 3318.25 | J134: 3490.95 | K134: 3531.15 | L134: 3577.30 | M134: 3485 | N134: 3398.65 | O134: 1559400 | P134: -1.54%
A135: 125 | B135: Pharma | C135: LUPIN | D135: 2022-07-28 | E135: 631.00 | F135: 632.55 | G135: 623.20 | H135: 615.40 | I135: 606.05 | J135: 640.35 | K135: 649.70 | L135: 657.50 | M135: 641.9 | N135: 624.75 | O135: 8611350 | P135: 4.61%
A136: 126 | B136: Automobile | C136: M&M | D136: 2022-07-28 | E136: 1136.50 | F136: 1151.62 | G136: 1117.98 | H136: 1099.47 | I136: 1065.83 | J136: 1170.13 | K136: 1203.77 | L136: 1222.28 | M136: 1185.25 | N136: 1133.1 | O136: 16140600 | P136: -6.12%
A137: 127 | B137: Finance | C137: M&MFIN | D137: 2022-07-28 | E137: 208.80 | F137: 209.67 | G137: 206.68 | H137: 204.57 | I137: 201.58 | J137: 211.78 | K137: 214.77 | L137: 216.88 | M137: 212.65 | N137: 207.55 | O137: 24764000 | P137: 2.79%
A138: 128 | B138: Finance | C138: MANAPPURAM | D138: 2022-07-28 | E138: 94.15 | F138: 94.00 | G138: 93.15 | H138: 92.15 | I138: 91.30 | J138: 95.00 | K138: 95.85 | L138: 96.85 | M138: 94.85 | N138: 93 | O138: 30624000 | P138: -3.13%
A139: 129 | B139: FMCG | C139: MARICO | D139: 2022-07-28 | E139: 523.65 | F139: 525.52 | G139: 520.23 | H139: 516.82 | I139: 511.53 | J139: 528.93 | K139: 534.22 | L139: 537.63 | M139: 530.8 | N139: 522.1 | O139: 11125200 | P139: 2.54%
A140: 130 | B140: Automobile | C140: MARUTI | D140: 2022-07-28 | E140: 8615.95 | F140: 8655.53 | G140: 8441.47 | H140: 8266.98 | I140: 8052.92 | J140: 8830.02 | K140: 9044.08 | L140: 9218.57 | M140: 8869.6 | N140: 8481.05 | O140: 4289600 | P140: 0.44%
A141: 131 | B141: FMCG | C141: MCDOWELL-N | D141: 2022-07-28 | E141: 865.25 | F141: 857.55 | G141: 846.60 | H141: 827.95 | I141: 817.00 | J141: 876.20 | K141: 887.15 | L141: 905.80 | M141: 868.5 | N141: 838.9 | O141: 14461875 | P141: 0.46%
A142: 132 | B142: Others | C142: MCX | D142: 2022-07-28 | E142: 1407.10 | F142: 1410.03 | G142: 1401.07 | H142: 1395.03 | I142: 1386.07 | J142: 1416.07 | K142: 1425.03 | L142: 1431.07 | M142: 1419 | N142: 1404 | O142: 3476800 | P142: -0.28%
A143: 133 | B143: Pharma | C143: METROPOLIS | D143: 2022-07-28 | E143: 1520.80 | F143: 1527.72 | G143: 1505.48 | H143: 1490.17 | I143: 1467.93 | J143: 1543.03 | K143: 1565.27 | L143: 1580.58 | M143: 1549.95 | N143: 1512.4 | O143: 1002600 | P143: -3.19%
A144: 134 | B144: Finance | C144: MFSL | D144: 2022-07-28 | E144: 853.40 | F144: 850.17 | G144: 845.33 | H144: 837.27 | I144: 832.43 | J144: 858.23 | K144: 863.07 | L144: 871.13 | M144: 855 | N144: 842.1 | O144: 1818050 | P144: 19.22%
A145: 135 | B145: Oil_Gas | C145: MGL | D145: 2022-07-28 | E145: 744.50 | F145: 744.97 | G145: 737.53 | H145: 730.57 | I145: 723.13 | J145: 751.93 | K145: 759.37 | L145: 766.33 | M145: 752.4 | N145: 738 | O145: 4816000 | P145: 14.82%
A146: 136 | B146: Technology | C146: MINDTREE | D146: 2022-07-28 | E146: 3194.30 | F146: 3189.05 | G146: 3164.95 | H146: 3135.60 | I146: 3111.50 | J146: 3218.40 | K146: 3242.50 | L146: 3271.85 | M146: 3213.15 | N146: 3159.7 | O146: 3110000 | P146: -2.29%
A147: 137 | B147: Automobile | C147: MOTHERSON | D147: 2022-07-28 | E147: 131.00 | F147: 131.55 | G147: 128.30 | H147: 125.60 | I147: 122.35 | J147: 134.25 | K147: 137.50 | L147: 140.20 | M147: 134.8 | N147: 128.85 | O147: 44487000 | P147: 0.20%
A148: 138 | B148: Technology | C148: MPHASIS | D148: 2022-07-28 | E148: 2323.40 | F148: 2312.95 | G148: 2279.25 | H148: 2235.10 | I148: 2201.40 | J148: 2357.10 | K148: 2390.80 | L148: 2434.95 | M148: 2346.65 | N148: 2268.8 | O148: 2394525 | P148: -4.95%
A149: 139 | B149: Automobile | C149: MRF | D149: 2022-07-28 | E149: 80913.85 | F149: 80563.20 | G149: 79860.65 | H149: 78807.45 | I149: 78104.90 | J149: 81616.40 | K149: 82318.95 | L149: 83372.15 | M149: 81265.75 | N149: 79510 | O149: 101420 | P149: -2.75%
A150: 140 | B150: Finance | C150: MUTHOOTFIN | D150: 2022-07-28 | E150: 1052.65 | F150: 1047.95 | G150: 1038.90 | H150: 1025.15 | I150: 1016.10 | J150: 1061.70 | K150: 1070.75 | L150: 1084.50 | M150: 1057 | N150: 1034.2 | O150: 5504250 | P150: 2.09%
A151: 141 | B151: Others | C151: NAM-INDIA | D151: 2022-07-28 | E151: 283.80 | F151: 283.63 | G151: 280.72 | H151: 277.63 | I151: 274.72 | J151: 286.72 | K151: 289.63 | L151: 292.72 | M151: 286.55 | N151: 280.55 | O151: 3244800 | P151: -3.15%
A152: 142 | B152: Metals | C152: NATIONALUM | D152: 2022-07-28 | E152: 75.45 | F152: 75.18 | G152: 74.67 | H152: 73.88 | I152: 73.37 | J152: 75.97 | K152: 76.48 | L152: 77.27 | M152: 75.7 | N152: 74.4 | O152: 71196000 | P152: 1.06%
A153: 143 | B153: Others | C153: NAUKRI | D153: 2022-07-28 | E153: 4028.30 | F153: 4031.60 | G153: 3969.70 | H153: 3911.10 | I153: 3849.20 | J153: 4090.20 | K153: 4152.10 | L153: 4210.70 | M153: 4093.5 | N153: 3973 | O153: 1506250 | P153: -1.66%
A154: 144 | B154: Chemical | C154: NAVINFLUOR | D154: 2022-07-28 | E154: 4184.35 | F154: 4077.43 | G154: 3911.87 | H154: 3639.38 | I154: 3473.82 | J154: 4349.92 | K154: 4515.48 | L154: 4787.97 | M154: 4243 | N154: 3804.95 | O154: 763875 | P154: 33.98%
A155: 145 | B155: Others | C155: NBCC | D155: 2022-07-28 | E155: 32.65 | F155: 32.52 | G155: 32.18 | H155: 31.72 | I155: 31.38 | J155: 32.98 | K155: 33.32 | L155: 33.78 | M155: 32.85 | N155: 32.05 | O155: 12750000 | P155: -9.86%
A156: 146 | B156: FMCG | C156: NESTLEIND | D156: 2022-07-28 | E156: 18787.70 | F156: 18842.07 | G156: 18695.73 | H156: 18603.77 | I156: 18457.43 | J156: 18934.03 | K156: 19080.37 | L156: 19172.33 | M156: 18988.4 | N156: 18750.1 | O156: 419680 | P156: 1.89%
A157: 147 | B157: Metals | C157: NMDC | D157: 2022-07-28 | E157: 105.95 | F157: 105.30 | G157: 104.15 | H157: 102.35 | I157: 101.20 | J157: 107.10 | K157: 108.25 | L157: 110.05 | M157: 106.45 | N157: 103.5 | O157: 82118550 | P157: -4.86%
A158: 148 | B158: Power | C158: NTPC | D158: 2022-07-28 | E158: 149.95 | F158: 149.22 | G158: 148.18 | H158: 146.42 | I158: 145.38 | J158: 150.98 | K158: 152.02 | L158: 153.78 | M158: 150.25 | N158: 147.45 | O158: 78796800 | P158: 20.30%
A159: 149 | B159: Realty | C159: OBEROIRLTY | D159: 2022-07-28 | E159: 883.10 | F159: 886.05 | G159: 875.55 | H159: 868.00 | I159: 857.50 | J159: 893.60 | K159: 904.10 | L159: 911.65 | M159: 896.55 | N159: 878.5 | O159: 4830000 | P159: 0.47%
A160: 150 | B160: Technology | C160: OFSS | D160: 2022-07-28 | E160: 3235.40 | F160: 3235.27 | G160: 3217.38 | H160: 3199.37 | I160: 3181.48 | J160: 3253.28 | K160: 3271.17 | L160: 3289.18 | M160: 3253.15 | N160: 3217.25 | O160: 362200 | P160: 0.89%
A161: 151 | B161: Oil_Gas | C161: ONGC | D161: 2022-07-28 | E161: 130.20 | F161: 130.45 | G161: 128.55 | H161: 126.90 | I161: 125.00 | J161: 132.10 | K161: 134.00 | L161: 135.65 | M161: 132.35 | N161: 128.8 | O161: 74647650 | P161: 5.59%
A162: 152 | B162: Textile | C162: PAGEIND | D162: 2022-07-28 | E162: 45640.05 | F162: 45773.93 | G162: 45233.02 | H162: 44825.98 | I162: 44285.07 | J162: 46180.97 | K162: 46721.88 | L162: 47128.92 | M162: 46314.85 | N162: 45366.9 | O162: 119880 | P162: 2.07%
A163: 153 | B163: Pharma | C163: PEL | D163: 2022-07-28 | E163: 1799.75 | F163: 1809.45 | G163: 1764.75 | H163: 1729.75 | I163: 1685.05 | J163: 1844.45 | K163: 1889.15 | L163: 1924.15 | M163: 1854.15 | N163: 1774.45 | O163: 4139025 | P163: 1.07%
A164: 154 | B164: Technology | C164: PERSISTENT | D164: 2022-07-28 | E164: 3608.65 | F164: 3623.55 | G164: 3567.10 | H164: 3525.55 | I164: 3469.10 | J164: 3665.10 | K164: 3721.55 | L164: 3763.10 | M164: 3680 | N164: 3582 | O164: 948000 | P164: -0.50%
A165: 155 | B165: Oil_Gas | C165: PETRONET | D165: 2022-07-28 | E165: 228.00 | F165: 227.08 | G165: 225.62 | H165: 223.23 | I165: 221.77 | J165: 229.47 | K165: 230.93 | L165: 233.32 | M165: 228.55 | N165: 224.7 | O165: 13881000 | P165: 4.59%
A166: 156 | B166: Finance | C166: PFC | D166: 2022-07-28 | E166: 113.10 | F166: 112.50 | G166: 111.55 | H166: 110.00 | I166: 109.05 | J166: 114.05 | K166: 115.00 | L166: 116.55 | M166: 113.45 | N166: 110.95 | O166: 36332000 | P166: 5.47%
A167: 157 | B167: FMCG | C167: PIDILITIND | D167: 2022-07-28 | E167: 2330.80 | F167: 2341.55 | G167: 2303.20 | H167: 2275.60 | I167: 2237.25 | J167: 2369.15 | K167: 2407.50 | L167: 2435.10 | M167: 2379.9 | N167: 2313.95 | O167: 3238500 | P167: -4.17%
A168: 158 | B168: Chemical | C168: PIIND | D168: 2022-07-28 | E168: 3072.75 | F168: 3046.37 | G168: 3006.38 | H168: 2940.02 | I168: 2900.03 | J168: 3112.73 | K168: 3152.72 | L168: 3219.08 | M168: 3086.35 | N168: 2980 | O168: 1957500 | P168: 3.20%
A169: 159 | B169: Banking | C169: PNB | D169: 2022-07-28 | E169: 31.65 | F169: 31.60 | G169: 31.40 | H169: 31.15 | I169: 30.95 | J169: 31.85 | K169: 32.05 | L169: 32.30 | M169: 31.8 | N169: 31.35 | O169: 260656000 | P169: 5.77%
A170: 160 | B170: Others | C170: POLYCAB | D170: 2022-07-28 | E170: 2224.95 | F170: 2218.93 | G170: 2197.82 | H170: 2170.68 | I170: 2149.57 | J170: 2246.07 | K170: 2267.18 | L170: 2294.32 | M170: 2240.05 | N170: 2191.8 | O170: 1407000 | P170: 2.05%
A171: 161 | B171: Power | C171: POWERGRID | D171: 2022-07-28 | E171: 208.20 | F171: 209.25 | G171: 206.90 | H171: 205.60 | I171: 203.25 | J171: 210.55 | K171: 212.90 | L171: 214.20 | M171: 211.6 | N171: 207.95 | O171: 60930900 | P171: 2.62%
A172: 162 | B172: Media | C172: PVR | D172: 2022-07-28 | E172: 1914.95 | F172: 1921.15 | G172: 1868.85 | H172: 1822.75 | I172: 1770.45 | J172: 1967.25 | K172: 2019.55 | L172: 2065.65 | M172: 1973.45 | N172: 1875.05 | O172: 2748878 | P172: -3.51%
A173: 163 | B173: Others | C173: RAIN | D173: 2022-07-28 | E173: 162.60 | F173: 162.85 | G173: 161.15 | H173: 159.70 | I173: 158.00 | J173: 164.30 | K173: 166.00 | L173: 167.45 | M173: 164.55 | N173: 161.4 | O173: 9653000 | P173: -3.57%
A174: 164 | B174: Cement | C174: RAMCOCEM | D174: 2022-07-28 | E174: 677.15 | F174: 677.00 | G174: 665.20 | H174: 653.25 | I174: 641.45 | J174: 688.95 | K174: 700.75 | L174: 712.70 | M174: 688.8 | N174: 665.05 | O174: 5640600 | P174: -8.23%
A175: 165 | B175: Banking | C175: RBLBANK | D175: 2022-07-28 | E175: 95.05 | F175: 93.70 | G175: 92.10 | H175: 89.15 | I175: 87.55 | J175: 96.65 | K175: 98.25 | L175: 101.20 | M175: 95.3 | N175: 90.75 | O175: 45230000 | P175: -10.29%
A176: 166 | B176: Power | C176: RECLTD | D176: 2022-07-28 | E176: 128.50 | F176: 127.93 | G176: 126.97 | H176: 125.43 | I176: 124.47 | J176: 129.47 | K176: 130.43 | L176: 131.97 | M176: 128.9 | N176: 126.4 | O176: 29046000 | P176: 1.89%
A177: 167 | B177: Oil_Gas | C177: RELIANCE | D177: 2022-07-28 | E177: 2422.20 | F177: 2432.72 | G177: 2393.43 | H177: 2364.67 | I177: 2325.38 | J177: 2461.48 | K177: 2500.77 | L177: 2529.53 | M177: 2472 | N177: 2403.95 | O177: 41808000 | P177: 8.62%
A178: 168 | B178: Metals | C178: SAIL | D178: 2022-07-28 | E178: 73.95 | F178: 74.13 | G178: 72.57 | H178: 71.18 | I178: 69.62 | J178: 75.52 | K178: 77.08 | L178: 78.47 | M178: 75.7 | N178: 72.75 | O178: 118614000 | P178: -2.80%
A179: 169 | B179: Banking | C179: SBICARD | D179: 2022-07-28 | E179: 885.65 | F179: 880.53 | G179: 873.17 | H179: 860.68 | I179: 853.32 | J179: 893.02 | K179: 900.38 | L179: 912.87 | M179: 887.9 | N179: 868.05 | O179: 5467200 | P179: -1.14%
A180: 170 | B180: Finance | C180: SBILIFE | D180: 2022-07-28 | E180: 1147.25 | F180: 1153.08 | G180: 1136.07 | H180: 1124.88 | I180: 1107.87 | J180: 1164.27 | K180: 1181.28 | L180: 1192.47 | M180: 1170.1 | N180: 1141.9 | O180: 7978500 | P180: 1.40%
A181: 171 | B181: Banking | C181: SBIN | D181: 2022-07-28 | E181: 517.15 | F181: 514.98 | G181: 511.07 | H181: 504.98 | I181: 501.07 | J181: 521.07 | K181: 524.98 | L181: 531.07 | M181: 518.9 | N181: 508.9 | O181: 58764000 | P181: -1.70%
A182: 172 | B182: Cement | C182: SHREECEM | D182: 2022-07-28 | E182: 20565.45 | F182: 20534.78 | G182: 20245.47 | H182: 19925.48 | I182: 19636.17 | J182: 20854.77 | K182: 21144.08 | L182: 21464.07 | M182: 20824.1 | N182: 20214.8 | O182: 281575 | P182: -4.82%
A183: 173 | B183: Capital_Goods | C183: SIEMENS | D183: 2022-07-28 | E183: 2727.45 | F183: 2739.35 | G183: 2704.75 | H183: 2682.05 | I183: 2647.45 | J183: 2762.05 | K183: 2796.65 | L183: 2819.35 | M183: 2773.95 | N183: 2716.65 | O183: 2029225 | P183: 2.37%
A184: 174 | B184: Textile | C184: SRF | D184: 2022-07-28 | E184: 2386.25 | F184: 2364.37 | G184: 2323.03 | H184: 2259.82 | I184: 2218.48 | J184: 2427.58 | K184: 2468.92 | L184: 2532.13 | M184: 2405.7 | N184: 2301.15 | O184: 4356750 | P184: 0.74%
A185: 175 | B185: Finance | C185: SRTRANSFIN | D185: 2022-07-28 | E185: 1500.50 | F185: 1496.10 | G185: 1483.70 | H185: 1466.90 | I185: 1454.50 | J185: 1512.90 | K185: 1525.30 | L185: 1542.10 | M185: 1508.5 | N185: 1479.3 | O185: 4468800 | P185: 1.69%
A186: 176 | B186: Pharma | C186: SUNPHARMA | D186: 2022-07-28 | E186: 870.35 | F186: 868.23 | G186: 858.62 | H186: 846.88 | I186: 837.27 | J186: 879.97 | K186: 889.58 | L186: 901.32 | M186: 877.85 | N186: 856.5 | O186: 21053200 | P186: 1.76%
A187: 177 | B187: Media | C187: SUNTV | D187: 2022-07-28 | E187: 443.05 | F187: 442.63 | G187: 438.92 | H187: 434.78 | I187: 431.07 | J187: 446.77 | K187: 450.48 | L187: 454.62 | M187: 446.35 | N187: 438.5 | O187: 10249500 | P187: 1.21%
A188: 178 | B188: Pharma | C188: SYNGENE | D188: 2022-07-28 | E188: 568.00 | F188: 571.33 | G188: 562.17 | H188: 556.33 | I188: 547.17 | J188: 577.17 | K188: 586.33 | L188: 592.17 | M188: 580.5 | N188: 565.5 | O188: 2042000 | P188: 4.61%
A189: 179 | B189: Chemical | C189: TATACHEM | D189: 2022-07-28 | E189: 893.90 | F189: 888.13 | G189: 879.32 | H189: 864.73 | I189: 855.92 | J189: 902.72 | K189: 911.53 | L189: 926.12 | M189: 896.95 | N189: 873.55 | O189: 5225000 | P189: 2.79%
A190: 180 | B190: Telecom | C190: TATACOMM | D190: 2022-07-28 | E190: 1056.95 | F190: 1061.53 | G190: 1043.12 | H190: 1029.28 | I190: 1010.87 | J190: 1075.37 | K190: 1093.78 | L190: 1107.62 | M190: 1079.95 | N190: 1047.7 | O190: 3387000 | P190: -2.71%
A191: 181 | B191: FMCG | C191: TATACONSUM | D191: 2022-07-28 | E191: 809.60 | F191: 808.55 | G191: 802.25 | H191: 794.90 | I191: 788.60 | J191: 815.90 | K191: 822.20 | L191: 829.55 | M191: 814.85 | N191: 801.2 | O191: 7569000 | P191: -0.25%
A192: 182 | B192: Automobile | C192: TATAMOTORS | D192: 2022-07-28 | E192: 450.75 | F192: 451.83 | G192: 446.07 | H192: 441.38 | I192: 435.62 | J192: 456.52 | K192: 462.28 | L192: 466.97 | M192: 457.6 | N192: 447.15 | O192: 71004900 | P192: 1.72%
A193: 183 | B193: Power | C193: TATAPOWER | D193: 2022-07-28 | E193: 232.95 | F193: 232.07 | G193: 230.28 | H193: 227.62 | I193: 225.83 | J193: 234.73 | K193: 236.52 | L193: 239.18 | M193: 233.85 | N193: 229.4 | O193: 82451250 | P193: -0.83%
A194: 184 | B194: Metals | C194: TATASTEEL | D194: 2022-07-28 | E194: 963.10 | F194: 954.50 | G194: 942.45 | H194: 921.80 | I194: 909.75 | J194: 975.15 | K194: 987.20 | L194: 1007.85 | M194: 966.55 | N194: 933.85 | O194: 30806550 | P194: 5.92%
A195: 185 | B195: Technology | C195: TCS | D195: 2022-07-28 | E195: 3175.60 | F195: 3173.33 | G195: 3154.72 | H195: 3133.83 | I195: 3115.22 | J195: 3194.22 | K195: 3212.83 | L195: 3233.72 | M195: 3191.95 | N195: 3152.45 | O195: 13805550 | P195: -1.62%
A196: 186 | B196: Technology | C196: TECHM | D196: 2022-07-28 | E196: 1017.85 | F196: 1017.18 | G196: 1006.52 | H196: 995.18 | I196: 984.52 | J196: 1028.52 | K196: 1039.18 | L196: 1050.52 | M196: 1027.85 | N196: 1005.85 | O196: 23251800 | P196: 2.23%
A197: 187 | B197: FMCG | C197: TITAN | D197: 2022-07-28 | E197: 2325.15 | F197: 2325.88 | G197: 2307.97 | H197: 2290.78 | I197: 2272.87 | J197: 2343.07 | K197: 2360.98 | L197: 2378.17 | M197: 2343.8 | N197: 2308.7 | O197: 6211500 | P197: 0.69%
A198: 188 | B198: Pharma | C198: TORNTPHARM | D198: 2022-07-28 | E198: 1487.05 | F198: 1484.78 | G198: 1470.77 | H198: 1454.48 | I198: 1440.47 | J198: 1501.07 | K198: 1515.08 | L198: 1531.37 | M198: 1498.8 | N198: 1468.5 | O198: 1845500 | P198: -0.40%
A199: 189 | B199: Power | C199: TORNTPOWER | D199: 2022-07-28 | E199: 504.70 | F199: 504.57 | G199: 500.33 | H199: 495.97 | I199: 491.73 | J199: 508.93 | K199: 513.17 | L199: 517.53 | M199: 508.8 | N199: 500.2 | O199: 3883500 | P199: -20.56%
A200: 190 | B200: Others | C200: TRENT | D200: 2022-07-28 | E200: 1236.20 | F200: 1236.47 | G200: 1223.83 | H200: 1211.47 | I200: 1198.83 | J200: 1248.83 | K200: 1261.47 | L200: 1273.83 | M200: 1249.1 | N200: 1224.1 | O200: 5663700 | P200: 2.84%
A201: 191 | B201: Automobile | C201: TVSMOTOR | D201: 2022-07-28 | E201: 870.25 | F201: 876.30 | G201: 862.15 | H201: 854.05 | I201: 839.90 | J201: 884.40 | K201: 898.55 | L201: 906.65 | M201: 890.45 | N201: 868.2 | O201: 10662400 | P201: 2.30%
A202: 192 | B202: FMCG | C202: UBL | D202: 2022-07-28 | E202: 1680.65 | F202: 1687.43 | G202: 1666.37 | H202: 1652.08 | I202: 1631.02 | J202: 1701.72 | K202: 1722.78 | L202: 1737.07 | M202: 1708.5 | N202: 1673.15 | O202: 1292800 | P202: 12.38%
A203: 193 | B203: Cement | C203: ULTRACEMCO | D203: 2022-07-28 | E203: 6364.30 | F203: 6309.02 | G203: 6179.58 | H203: 5994.87 | I203: 5865.43 | J203: 6493.73 | K203: 6623.17 | L203: 6807.88 | M203: 6438.45 | N203: 6124.3 | O203: 2522800 | P203: -6.49%
A204: 194 | B204: Chemical | C204: UPL | D204: 2022-07-28 | E204: 725.10 | F204: 720.75 | G204: 713.25 | H204: 701.40 | I204: 693.90 | J204: 732.60 | K204: 740.10 | L204: 751.95 | M204: 728.25 | N204: 708.9 | O204: 22285900 | P204: 0.47%
A205: 195 | B205: Metals | C205: VEDL | D205: 2022-07-28 | E205: 258.15 | F205: 257.35 | G205: 254.10 | H205: 250.05 | I205: 246.80 | J205: 261.40 | K205: 264.65 | L205: 268.70 | M205: 260.6 | N205: 253.3 | O205: 48980000 | P205: -0.65%
A206: 196 | B206: Capital_Goods | C206: VOLTAS | D206: 2022-07-28 | E206: 999.65 | F206: 998.35 | G206: 990.30 | H206: 980.95 | I206: 972.90 | J206: 1007.70 | K206: 1015.75 | L206: 1025.10 | M206: 1006.4 | N206: 989 | O206: 4715500 | P206: -6.89%
... 19 more rows

Sheet Cash Intra
M5: Back to Main Page
A6: FOR INTRA DAY TRADING | K6: =Main!B10 -> 2022-07-26
A8: Sr.no | C8: CLOSE RATE | D8: Pivot Point | E8: Supports | H8: Resistances
E9: S1 | F9: S2 | G9: S3 | H9: R1 | I9: R2 | J9: R3 | K9: HIGH | L9: LOW | M9: Total Trade Quanity in Lakhs
A10: 1 | B10: Nifty 50 | C10: 16631 | D10: 16633.77 | E10: 16561.48 | F10: 16491.97 | G10: 16419.68 | H10: 16703.28 | I10: 16775.57 | J10: 16845.08 | K10: 16706.05 | L10: 16564.25
A11: 2 | B11: Nifty Bank | C11: 36726.4 | D11: 36734.08 | E11: 36456.97 | F11: 36187.53 | G11: 35910.42 | H11: 37003.52 | I11: 37280.63 | J11: 37550.07 | K11: 37011.2 | L11: 36464.65
A12: 3 | B12: Nifty CPSE | C12: 2459.95 | D12: 2455.43 | E12: 2441.42 | F12: 2422.88 | G12: 2408.87 | H12: 2473.97 | I12: 2487.98 | J12: 2506.52 | K12: 2469.45 | L12: 2436.9
A13: 4 | B13: Nifty Infra | C13: 4797.35 | D13: 4797.35 | E13: 4778.50 | F13: 4759.65 | G13: 4740.80 | H13: 4816.20 | I13: 4835.05 | J13: 4853.90 | K13: 4816.2 | L13: 4778.5
A14: 5 | B14: Nifty IT | C14: 28216 | D14: 28142.50 | E14: 27964.15 | F14: 27712.30 | G14: 27533.95 | H14: 28394.35 | I14: 28572.70 | J14: 28824.55 | K14: 28320.85 | L14: 27890.65
A15: 6 | B15: Nifty PSE | C15: 3900.3 | D15: 3892.57 | E15: 3877.83 | F15: 3855.37 | G15: 3840.63 | H15: 3915.03 | I15: 3929.77 | J15: 3952.23 | K15: 3907.3 | L15: 3870.1
A16: 7 | B16: Nifty Midcap 50 | C16: 8039.4 | D16: 8033.10 | E16: 8006.00 | F16: 7972.60 | G16: 7945.50 | H16: 8066.50 | I16: 8093.60 | J16: 8127.00 | K16: 8060.2 | L16: 7999.7
A17: 8 | B17: ABB | C17: 2662.9 | D17: 2670.80 | E17: 2628.60 | F17: 2594.30 | G17: 2552.10 | H17: 2705.10 | I17: 2747.30 | J17: 2781.60 | K17: 2713 | L17: 2636.5 | M17: 2.92148
A18: 9 | B18: ACC | C18: 2204.45 | D18: 2198.12 | E18: 2183.23 | F18: 2162.02 | G18: 2147.13 | H18: 2219.33 | I18: 2234.22 | J18: 2255.43 | K18: 2213 | L18: 2176.9 | M18: 3.79605
A19: 10 | B19: AUBANK | C19: 581.7 | D19: 578.92 | E19: 572.88 | F19: 564.07 | G19: 558.03 | H19: 587.73 | I19: 593.77 | J19: 602.58 | K19: 584.95 | L19: 570.1 | M19: 10.98397
A20: 11 | B20: ABBOTINDIA | C20: 19737.45 | D20: 19788.83 | E20: 19578.67 | F20: 19419.88 | G20: 19209.72 | H20: 19947.62 | I20: 20157.78 | J20: 20316.57 | K20: 19999 | L20: 19630.05 | M20: 0.1147
A21: 12 | B21: ADANIENT | C21: 2550.6 | D21: 2537.58 | E21: 2513.02 | F21: 2475.43 | G21: 2450.87 | H21: 2575.17 | I21: 2599.73 | J21: 2637.32 | K21: 2562.15 | L21: 2500 | M21: 12.20351
A22: 13 | B22: ADANIGREEN | C22: 2137.6 | D22: 2137.78 | E22: 2115.57 | F22: 2093.53 | G22: 2071.32 | H22: 2159.82 | I22: 2182.03 | J22: 2204.07 | K22: 2160 | L22: 2115.75 | M22: 11.66283
A23: 14 | B23: ADANIPORTS | C23: 749.95 | D23: 751.08 | E23: 744.92 | F23: 739.88 | G23: 733.72 | H23: 756.12 | I23: 762.28 | J23: 767.32 | K23: 757.25 | L23: 746.05 | M23: 15.92179
A24: 15 | B24: ATGL | C24: 2878.85 | D24: 2879.97 | E24: 2835.73 | F24: 2792.62 | G24: 2748.38 | H24: 2923.08 | I24: 2967.32 | J24: 3010.43 | K24: 2924.2 | L24: 2836.85 | M24: 3.63143
A25: 16 | B25: ADANITRANS | C25: 2969.75 | D25: 2984.58 | E25: 2945.17 | F25: 2920.58 | G25: 2881.17 | H25: 3009.17 | I25: 3048.58 | J25: 3073.17 | K25: 3024 | L25: 2960 | M25: 2.94966
A26: 17 | B26: ABCAPITAL | C26: 102.5 | D26: 103.02 | E26: 101.48 | F26: 100.47 | G26: 98.93 | H26: 104.03 | I26: 105.57 | J26: 106.58 | K26: 104.55 | L26: 102 | M26: 21.39216
A27: 18 | B27: ABFRL | C27: 267.5 | D27: 268.52 | E27: 265.03 | F27: 262.57 | G27: 259.08 | H27: 270.98 | I27: 274.47 | J27: 276.93 | K27: 272 | L27: 266.05 | M27: 17.2718
A28: 19 | B28: APLLTD | C28: 700.85 | D28: 703.47 | E28: 697.38 | F28: 693.92 | G28: 687.83 | H28: 706.93 | I28: 713.02 | J28: 716.48 | K28: 709.55 | L28: 700 | M28: 0.26653
A29: 20 | B29: ALKEM | C29: 3109.1 | D29: 3129.63 | E29: 3069.57 | F29: 3030.03 | G29: 2969.97 | H29: 3169.17 | I29: 3229.23 | J29: 3268.77 | K29: 3189.7 | L29: 3090.1 | M29: 0.39564
A30: 21 | B30: AMBUJACEM | C30: 371.15 | D30: 371.68 | E30: 369.87 | F30: 368.58 | G30: 366.77 | H30: 372.97 | I30: 374.78 | J30: 376.07 | K30: 373.5 | L30: 370.4 | M30: 32.24932
A31: 22 | B31: APOLLOHOSP | C31: 4189.9 | D31: 4193.62 | E31: 4134.33 | F31: 4078.77 | G31: 4019.48 | H31: 4249.18 | I31: 4308.47 | J31: 4364.03 | K31: 4252.9 | L31: 4138.05 | M31: 11.27478
A32: 23 | B32: APOLLOTYRE | C32: 213.8 | D32: 213.42 | E32: 211.03 | F32: 208.27 | G32: 205.88 | H32: 216.18 | I32: 218.57 | J32: 221.33 | K32: 215.8 | L32: 210.65 | M32: 15.75796
A33: 24 | B33: ASHOKLEY | C33: 146.9 | D33: 147.03 | E33: 144.87 | F33: 142.83 | G33: 140.67 | H33: 149.07 | I33: 151.23 | J33: 153.27 | K33: 149.2 | L33: 145 | M33: 69.45596
A34: 25 | B34: ASIANPAINT | C34: 3104.95 | D34: 3091.27 | E34: 3065.33 | F34: 3025.72 | G34: 2999.78 | H34: 3130.88 | I34: 3156.82 | J34: 3196.43 | K34: 3117.2 | L34: 3051.65 | M34: 9.85844
A35: 26 | B35: ASTRAL | C35: 1759.75 | D35: 1746.73 | E35: 1726.17 | F35: 1692.58 | G35: 1672.02 | H35: 1780.32 | I35: 1800.88 | J35: 1834.47 | K35: 1767.3 | L35: 1713.15 | M35: 2.16077
A36: 27 | B36: AUROPHARMA | C36: 543.85 | D36: 546.78 | E36: 538.07 | F36: 532.28 | G36: 523.57 | H36: 552.57 | I36: 561.28 | J36: 567.07 | K36: 555.5 | L36: 541 | M36: 8.08969
A37: 28 | B37: DMART | C37: 4040.05 | D37: 4008.35 | E37: 3966.70 | F37: 3893.35 | G37: 3851.70 | H37: 4081.70 | I37: 4123.35 | J37: 4196.70 | K37: 4050 | L37: 3935 | M37: 4.44451
A38: 29 | B38: AXISBANK | C38: 727.35 | D38: 729.55 | E38: 720.30 | F38: 713.25 | G38: 704.00 | H38: 736.60 | I38: 745.85 | J38: 752.90 | K38: 738.8 | L38: 722.5 | M38: 62.30411
A39: 30 | B39: BAJAJ-AUTO | C39: 4021.15 | D39: 4031.13 | E39: 3988.32 | F39: 3955.48 | G39: 3912.67 | H39: 4063.97 | I39: 4106.78 | J39: 4139.62 | K39: 4073.95 | L39: 3998.3 | M39: 3.72987
A40: 31 | B40: BAJFINANCE | C40: 6227 | D40: 6248.67 | E40: 6163.33 | F40: 6099.67 | G40: 6014.33 | H40: 6312.33 | I40: 6397.67 | J40: 6461.33 | K40: 6334 | L40: 6185 | M40: 7.24023
A41: 32 | B41: BAJAJFINSV | C41: 12619.55 | D41: 12661.50 | E41: 12528.05 | F41: 12436.55 | G41: 12303.10 | H41: 12753.00 | I41: 12886.45 | J41: 12977.95 | K41: 12794.95 | L41: 12570 | M41: 1.74702
A42: 33 | B42: BAJAJHLDNG | C42: 4857.05 | D42: 4856.68 | E42: 4825.37 | F42: 4793.68 | G42: 4762.37 | H42: 4888.37 | I42: 4919.68 | J42: 4951.37 | K42: 4888 | L42: 4825 | M42: 0.16772
A43: 34 | B43: BALKRISIND | C43: 2349.1 | D43: 2323.17 | E43: 2285.93 | F43: 2222.77 | G43: 2185.53 | H43: 2386.33 | I43: 2423.57 | J43: 2486.73 | K43: 2360.4 | L43: 2260 | M43: 3.89315
A44: 35 | B44: BANDHANBNK | C44: 273.8 | D44: 276.27 | E44: 266.18 | F44: 258.57 | G44: 248.48 | H44: 283.88 | I44: 293.97 | J44: 301.58 | K44: 286.35 | L44: 268.65 | M44: 175.31151
A45: 36 | B45: BANKBARODA | C45: 115.2 | D45: 115.38 | E45: 114.07 | F45: 112.93 | G45: 111.62 | H45: 116.52 | I45: 117.83 | J45: 118.97 | K45: 116.7 | L45: 114.25 | M45: 201.71737
A46: 37 | B46: BANKINDIA | C46: 48.25 | D46: 48.45 | E46: 47.85 | F46: 47.45 | G46: 46.85 | H46: 48.85 | I46: 49.45 | J46: 49.85 | K46: 49.05 | L46: 48.05 | M46: 15.83087
A47: 38 | B47: BATAINDIA | C47: 1835.8 | D47: 1829.22 | E47: 1814.58 | F47: 1793.37 | G47: 1778.73 | H47: 1850.43 | I47: 1865.07 | J47: 1886.28 | K47: 1843.85 | L47: 1808 | M47: 2.51631
A48: 39 | B48: BERGEPAINT | C48: 594.55 | D48: 592.18 | E48: 587.37 | F48: 580.18 | G48: 575.37 | H48: 599.37 | I48: 604.18 | J48: 611.37 | K48: 597 | L48: 585 | M48: 8.74083
A49: 40 | B49: BEL | C49: 270.05 | D49: 270.83 | E49: 267.27 | F49: 264.48 | G49: 260.92 | H49: 273.62 | I49: 277.18 | J49: 279.97 | K49: 274.4 | L49: 268.05 | M49: 91.60521
A50: 41 | B50: BHARATFORG | C50: 705.25 | D50: 706.10 | E50: 696.00 | F50: 686.75 | G50: 676.65 | H50: 715.35 | I50: 725.45 | J50: 734.70 | K50: 716.2 | L50: 696.85 | M50: 15.22712
A51: 42 | B51: BHEL | C51: 53.85 | D51: 53.57 | E51: 53.13 | F51: 52.42 | G51: 51.98 | H51: 54.28 | I51: 54.72 | J51: 55.43 | K51: 54 | L51: 52.85 | M51: 222.5952
A52: 43 | B52: BPCL | C52: 317.15 | D52: 317.87 | E52: 314.83 | F52: 312.52 | G52: 309.48 | H52: 320.18 | I52: 323.22 | J52: 325.53 | K52: 320.9 | L52: 315.55 | M52: 32.64614
A53: 44 | B53: BHARTIARTL | C53: 678.4 | D53: 680.50 | E53: 674.45 | F53: 670.50 | G53: 664.45 | H53: 684.45 | I53: 690.50 | J53: 694.45 | K53: 686.55 | L53: 676.55 | M53: 29.13348
A54: 45 | B54: BIOCON | C54: 322.75 | D54: 323.67 | E54: 319.78 | F54: 316.82 | G54: 312.93 | H54: 326.63 | I54: 330.52 | J54: 333.48 | K54: 327.55 | L54: 320.7 | M54: 7.81225
A55: 46 | B55: BOSCHLTD | C55: 16508.95 | D55: 16656.30 | E55: 16312.65 | F55: 16116.35 | G55: 15772.70 | H55: 16852.60 | I55: 17196.25 | J55: 17392.55 | K55: 16999.95 | L55: 16460 | M55: 0.33185
A56: 47 | B56: BRITANNIA | C56: 3885.9 | D56: 3883.63 | E56: 3852.27 | F56: 3818.63 | G56: 3787.27 | H56: 3917.27 | I56: 3948.63 | J56: 3982.27 | K56: 3915 | L56: 3850 | M56: 2.90157
A57: 48 | B57: CANBK | C57: 224.8 | D57: 226.65 | E57: 218.80 | F57: 212.80 | G57: 204.95 | H57: 232.65 | I57: 240.50 | J57: 246.50 | K57: 234.5 | L57: 220.65 | M57: 277.55911
A58: 49 | B58: CHOLAFIN | C58: 684.85 | D58: 685.67 | E58: 677.88 | F58: 670.92 | G58: 663.13 | H58: 692.63 | I58: 700.42 | J58: 707.38 | K58: 693.45 | L58: 678.7 | M58: 10.45998
A59: 50 | B59: CIPLA | C59: 959.8 | D59: 964.88 | E59: 949.97 | F59: 940.13 | G59: 925.22 | H59: 974.72 | I59: 989.63 | J59: 999.47 | K59: 979.8 | L59: 955.05 | M59: 10.24751
A60: 51 | B60: CLEAN | C60: 1757.85 | D60: 1756.22 | E60: 1736.63 | F60: 1715.42 | G60: 1695.83 | H60: 1777.43 | I60: 1797.02 | J60: 1818.23 | K60: 1775.8 | L60: 1735 | M60: 0.98698
A61: 52 | B61: COALINDIA | C61: 200.9 | D61: 199.07 | E61: 196.43 | F61: 191.97 | G61: 189.33 | H61: 203.53 | I61: 206.17 | J61: 210.63 | K61: 201.7 | L61: 194.6 | M61: 102.07034
A62: 53 | B62: COFORGE | C62: 3789.5 | D62: 3769.85 | E62: 3704.70 | F62: 3619.90 | G62: 3554.75 | H62: 3854.65 | I62: 3919.80 | J62: 4004.60 | K62: 3835 | L62: 3685.05 | M62: 6.21916
A63: 54 | B63: COLPAL | C63: 1565.1 | D63: 1578.00 | E63: 1541.00 | F63: 1516.90 | G63: 1479.90 | H63: 1602.10 | I63: 1639.10 | J63: 1663.20 | K63: 1615 | L63: 1553.9 | M63: 4.47129
A64: 55 | B64: CONCOR | C64: 671.5 | D64: 670.38 | E64: 663.77 | F64: 656.03 | G64: 649.42 | H64: 678.12 | I64: 684.73 | J64: 692.47 | K64: 677 | L64: 662.65 | M64: 10.33364
A65: 56 | B65: COROMANDEL | C65: 1022.2 | D65: 1023.13 | E65: 1012.92 | F65: 1003.63 | G65: 993.42 | H65: 1032.42 | I65: 1042.63 | J65: 1051.92 | K65: 1033.35 | L65: 1013.85 | M65: 2.5517
A66: 57 | B66: CROMPTON | C66: 375.15 | D66: 373.37 | E66: 365.03 | F66: 354.92 | G66: 346.58 | H66: 383.48 | I66: 391.82 | J66: 401.93 | K66: 381.7 | L66: 363.25 | M66: 24.04847
A67: 58 | B67: CUMMINSIND | C67: 1186.85 | D67: 1195.90 | E67: 1173.95 | F67: 1161.05 | G67: 1139.10 | H67: 1208.80 | I67: 1230.75 | J67: 1243.65 | K67: 1217.85 | L67: 1183 | M67: 8.06178
A68: 59 | B68: DLF | C68: 357.35 | D68: 357.20 | E68: 353.65 | F68: 349.95 | G68: 346.40 | H68: 360.90 | I68: 364.45 | J68: 368.15 | K68: 360.75 | L68: 353.5 | M68: 23.03596
A69: 60 | B69: DABUR | C69: 567.9 | D69: 569.28 | E69: 562.77 | F69: 557.63 | G69: 551.12 | H69: 574.42 | I69: 580.93 | J69: 586.07 | K69: 575.8 | L69: 564.15 | M69: 14.40874
A70: 61 | B70: DALBHARAT | C70: 1549.75 | D70: 1561.90 | E70: 1528.70 | F70: 1507.65 | G70: 1474.45 | H70: 1582.95 | I70: 1616.15 | J70: 1637.20 | K70: 1595.1 | L70: 1540.85 | M70: 1.50588
A71: 62 | B71: DEEPAKNTR | C71: 1849.85 | D71: 1835.28 | E71: 1806.57 | F71: 1763.28 | G71: 1734.57 | H71: 1878.57 | I71: 1907.28 | J71: 1950.57 | K71: 1864 | L71: 1792 | M71: 13.82266
A72: 63 | B72: DIVISLAB | C72: 3774.3 | D72: 3784.77 | E72: 3751.53 | F72: 3728.77 | G72: 3695.53 | H72: 3807.53 | I72: 3840.77 | J72: 3863.53 | K72: 3818 | L72: 3762 | M72: 1.11963
A73: 64 | B73: DIXON | C73: 3764.05 | D73: 3790.68 | E73: 3726.37 | F73: 3688.68 | G73: 3624.37 | H73: 3828.37 | I73: 3892.68 | J73: 3930.37 | K73: 3855 | L73: 3753 | M73: 1.87799
A74: 65 | B74: LALPATHLAB | C74: 2098 | D74: 2099.77 | E74: 2074.53 | F74: 2051.07 | G74: 2025.83 | H74: 2123.23 | I74: 2148.47 | J74: 2171.93 | K74: 2125 | L74: 2076.3 | M74: 1.89571
A75: 66 | B75: DRREDDY | C75: 4330.55 | D75: 4340.47 | E75: 4290.08 | F75: 4249.62 | G75: 4199.23 | H75: 4380.93 | I75: 4431.32 | J75: 4471.78 | K75: 4390.85 | L75: 4300 | M75: 3.45382
A76: 67 | B76: EICHERMOT | C76: 3086.7 | D76: 3102.90 | E76: 3051.90 | F76: 3017.10 | G76: 2966.10 | H76: 3137.70 | I76: 3188.70 | J76: 3223.50 | K76: 3153.9 | L76: 3068.1 | M76: 6.23585
A77: 68 | B77: EMAMILTD | C77: 473.4 | D77: 471.53 | E77: 467.62 | F77: 461.83 | G77: 457.92 | H77: 477.32 | I77: 481.23 | J77: 487.02 | K77: 475.45 | L77: 465.75 | M77: 0.94448
A78: 69 | B78: ESCORTS | C78: 1692.4 | D78: 1685.58 | E78: 1658.32 | F78: 1624.23 | G78: 1596.97 | H78: 1719.67 | I78: 1746.93 | J78: 1781.02 | K78: 1712.85 | L78: 1651.5 | M78: 3.76172
A79: 70 | B79: EXIDEIND | C79: 150.8 | D79: 150.82 | E79: 149.73 | F79: 148.67 | G79: 147.58 | H79: 151.88 | I79: 152.97 | J79: 154.03 | K79: 151.9 | L79: 149.75 | M79: 12.57932
A80: 71 | B80: NYKAA | C80: 1433.9 | D80: 1430.97 | E80: 1407.93 | F80: 1381.97 | G80: 1358.93 | H80: 1456.93 | I80: 1479.97 | J80: 1505.93 | K80: 1454 | L80: 1405 | M80: 3.13316
A81: 72 | B81: FEDERALBNK | C81: 107.35 | D81: 106.95 | E81: 105.90 | F81: 104.45 | G81: 103.40 | H81: 108.40 | I81: 109.45 | J81: 110.90 | K81: 108 | L81: 105.5 | M81: 115.01496
A82: 73 | B82: FORTIS | C82: 275.8 | D82: 277.32 | E82: 273.58 | F82: 271.37 | G82: 267.63 | H82: 279.53 | I82: 283.27 | J82: 285.48 | K82: 281.05 | L82: 275.1 | M82: 4.64826
A83: 74 | B83: GAIL | C83: 147 | D83: 145.77 | E83: 144.03 | F83: 141.07 | G83: 139.33 | H83: 148.73 | I83: 150.47 | J83: 153.43 | K83: 147.5 | L83: 142.8 | M83: 135.4494
A84: 75 | B84: GLAND | C84: 2227.7 | D84: 2247.07 | E84: 2199.68 | F84: 2171.67 | G84: 2124.28 | H84: 2275.08 | I84: 2322.47 | J84: 2350.48 | K84: 2294.45 | L84: 2219.05 | M84: 4.00159
A85: 76 | B85: GLENMARK | C85: 374.1 | D85: 372.47 | E85: 368.63 | F85: 363.17 | G85: 359.33 | H85: 377.93 | I85: 381.77 | J85: 387.23 | K85: 376.3 | L85: 367 | M85: 8.44865
A86: 77 | B86: GODREJCP | C86: 868.7 | D86: 873.52 | E86: 859.18 | F86: 849.67 | G86: 835.33 | H86: 883.03 | I86: 897.37 | J86: 906.88 | K86: 887.85 | L86: 864 | M86: 6.63666
A87: 78 | B87: GODREJPROP | C87: 1432.45 | D87: 1432.20 | E87: 1415.45 | F87: 1398.45 | G87: 1381.70 | H87: 1449.20 | I87: 1465.95 | J87: 1482.95 | K87: 1448.95 | L87: 1415.2 | M87: 3.33854
A88: 79 | B88: GRASIM | C88: 1498.5 | D88: 1500.58 | E88: 1479.82 | F88: 1461.13 | G88: 1440.37 | H88: 1519.27 | I88: 1540.03 | J88: 1558.72 | K88: 1521.35 | L88: 1481.9 | M88: 12.00512
A89: 80 | B89: GUJGASLTD | C89: 455.05 | D89: 454.83 | E89: 450.42 | F89: 445.78 | G89: 441.37 | H89: 459.47 | I89: 463.88 | J89: 468.52 | K89: 459.25 | L89: 450.2 | M89: 9.11558
A90: 81 | B90: GSPL | C90: 228.8 | D90: 232.23 | E90: 224.62 | F90: 220.43 | G90: 212.82 | H90: 236.42 | I90: 244.03 | J90: 248.22 | K90: 239.85 | L90: 228.05 | M90: 14.49823
A91: 82 | B91: HCLTECH | C91: 930.65 | D91: 925.55 | E91: 919.10 | F91: 907.55 | G91: 901.10 | H91: 937.10 | I91: 943.55 | J91: 955.10 | K91: 932 | L91: 914 | M91: 21.20224
A92: 83 | B92: HDFCAMC | C92: 1860.35 | D92: 1868.87 | E92: 1831.48 | F92: 1802.62 | G92: 1765.23 | H92: 1897.73 | I92: 1935.12 | J92: 1963.98 | K92: 1906.25 | L92: 1840 | M92: 6.50149
A93: 84 | B93: HDFCBANK | C93: 1396.6 | D93: 1394.83 | E93: 1385.07 | F93: 1373.53 | G93: 1363.77 | H93: 1406.37 | I93: 1416.13 | J93: 1427.67 | K93: 1404.6 | L93: 1383.3 | M93: 50.71563
A94: 85 | B94: HDFCLIFE | C94: 526.75 | D94: 529.58 | E94: 523.17 | F94: 519.58 | G94: 513.17 | H94: 533.17 | I94: 539.58 | J94: 543.17 | K94: 536 | L94: 526 | M94: 38.00562
A95: 86 | B95: HAVELLS | C95: 1226.3 | D95: 1215.75 | E95: 1200.75 | F95: 1175.20 | G95: 1160.20 | H95: 1241.30 | I95: 1256.30 | J95: 1281.85 | K95: 1230.75 | L95: 1190.2 | M95: 10.23851
A96: 87 | B96: HEROMOTOCO | C96: 2838.85 | D96: 2848.70 | E96: 2821.60 | F96: 2804.35 | G96: 2777.25 | H96: 2865.95 | I96: 2893.05 | J96: 2910.30 | K96: 2875.8 | L96: 2831.45 | M96: 4.21977
A97: 88 | B97: HINDALCO | C97: 387.05 | D97: 385.30 | E97: 382.05 | F97: 377.05 | G97: 373.80 | H97: 390.30 | I97: 393.55 | J97: 398.55 | K97: 388.55 | L97: 380.3 | M97: 77.34139
A98: 89 | B98: HAL | C98: 1903.45 | D98: 1893.42 | E98: 1878.08 | F98: 1852.72 | G98: 1837.38 | H98: 1918.78 | I98: 1934.12 | J98: 1959.48 | K98: 1908.75 | L98: 1868.05 | M98: 11.7815
A99: 90 | B99: HINDPETRO | C99: 231.2 | D99: 231.90 | E99: 228.90 | F99: 226.60 | G99: 223.60 | H99: 234.20 | I99: 237.20 | J99: 239.50 | K99: 234.9 | L99: 229.6 | M99: 26.42851
A100: 91 | B100: HINDUNILVR | C100: 2623.6 | D100: 2629.87 | E100: 2605.73 | F100: 2587.87 | G100: 2563.73 | H100: 2647.73 | I100: 2671.87 | J100: 2689.73 | K100: 2654 | L100: 2612 | M100: 12.53821
A101: 92 | B101: HINDZINC | C101: 273.05 | D101: 274.35 | E101: 271.00 | F101: 268.95 | G101: 265.60 | H101: 276.40 | I101: 279.75 | J101: 281.80 | K101: 277.7 | L101: 272.3 | M101: 7.52631
A102: 93 | B102: HONAUT | C102: 38891.9 | D102: 38999.97 | E102: 38491.93 | F102: 38091.97 | G102: 37583.93 | H102: 39399.93 | I102: 39907.97 | J102: 40307.93 | K102: 39508 | L102: 38600 | M102: 0.03103
A103: 94 | B103: HDFC | C103: 2308.65 | D103: 2301.42 | E103: 2282.83 | F103: 2257.02 | G103: 2238.43 | H103: 2327.23 | I103: 2345.82 | J103: 2371.63 | K103: 2320 | L103: 2275.6 | M103: 19.31624
A104: 95 | B104: ICICIBANK | C104: 800.9 | D104: 805.27 | E104: 792.73 | F104: 784.57 | G104: 772.03 | H104: 813.43 | I104: 825.97 | J104: 834.13 | K104: 817.8 | L104: 797.1 | M104: 210.34148
A105: 96 | B105: ICICIGI | C105: 1189.2 | D105: 1196.70 | E105: 1173.50 | F105: 1157.80 | G105: 1134.60 | H105: 1212.40 | I105: 1235.60 | J105: 1251.30 | K105: 1219.9 | L105: 1181 | M105: 7.37793
A106: 97 | B106: ICICIPRULI | C106: 532.05 | D106: 532.73 | E106: 528.57 | F106: 525.08 | G106: 520.92 | H106: 536.22 | I106: 540.38 | J106: 543.87 | K106: 536.9 | L106: 529.25 | M106: 8.11189
A107: 98 | B107: ISEC | C107: 465.7 | D107: 468.88 | E107: 458.32 | F107: 450.93 | G107: 440.37 | H107: 476.27 | I107: 486.83 | J107: 494.22 | K107: 479.45 | L107: 461.5 | M107: 2.92119
A108: 99 | B108: IDBI | C108: 35.2 | D108: 35.55 | E108: 34.55 | F108: 33.90 | G108: 32.90 | H108: 36.20 | I108: 37.20 | J108: 37.85 | K108: 36.55 | L108: 34.9 | M108: 66.34837
A109: 100 | B109: IDFCFIRSTB | C109: 35.95 | D109: 35.83 | E109: 35.57 | F109: 35.18 | G109: 34.92 | H109: 36.22 | I109: 36.48 | J109: 36.87 | K109: 36.1 | L109: 35.45 | M109: 173.31544
A110: 101 | B110: ITC | C110: 301.1 | D110: 300.95 | E110: 298.95 | F110: 296.80 | G110: 294.80 | H110: 303.10 | I110: 305.10 | J110: 307.25 | K110: 302.95 | L110: 298.8 | M110: 106.40727
A111: 102 | B111: INDIAMART | C111: 3986.6 | D111: 3995.80 | E111: 3918.00 | F111: 3849.40 | G111: 3771.60 | H111: 4064.40 | I111: 4142.20 | J111: 4210.80 | K111: 4073.6 | L111: 3927.2 | M111: 1.99856
A112: 103 | B112: INDIANB | C112: 175.85 | D112: 176.07 | E112: 173.03 | F112: 170.22 | G112: 167.18 | H112: 178.88 | I112: 181.92 | J112: 184.73 | K112: 179.1 | L112: 173.25 | M112: 13.38648
A113: 104 | B113: IEX | C113: 158.5 | D113: 159.12 | E113: 156.38 | F113: 154.27 | G113: 151.53 | H113: 161.23 | I113: 163.97 | J113: 166.08 | K113: 161.85 | L113: 157 | M113: 66.42806
A114: 105 | B114: INDHOTEL | C114: 260.75 | D114: 258.12 | E114: 254.33 | F114: 247.92 | G114: 244.13 | H114: 264.53 | I114: 268.32 | J114: 274.73 | K114: 261.9 | L114: 251.7 | M114: 81.86609
A115: 106 | B115: IOC | C115: 72.1 | D115: 71.90 | E115: 71.45 | F115: 70.80 | G115: 70.35 | H115: 72.55 | I115: 73.00 | J115: 73.65 | K115: 72.35 | L115: 71.25 | M115: 101.24538
A116: 107 | B116: IRCTC | C116: 599.3 | D116: 602.05 | E116: 593.30 | F116: 587.30 | G116: 578.55 | H116: 608.05 | I116: 616.80 | J116: 622.80 | K116: 610.8 | L116: 596.05 | M116: 12.88536
A117: 108 | B117: IGL | C117: 361.2 | D117: 364.18 | E117: 355.67 | F117: 350.13 | G117: 341.62 | H117: 369.72 | I117: 378.23 | J117: 383.77 | K117: 372.7 | L117: 358.65 | M117: 11.95642
A118: 109 | B118: INDUSTOWER | C118: 222.65 | D118: 223.87 | E118: 219.73 | F118: 216.82 | G118: 212.68 | H118: 226.78 | I118: 230.92 | J118: 233.83 | K118: 228 | L118: 220.95 | M118: 22.40801
A119: 110 | B119: INDUSINDBK | C119: 962.05 | D119: 956.03 | E119: 945.57 | F119: 929.08 | G119: 918.62 | H119: 972.52 | I119: 982.98 | J119: 999.47 | K119: 966.5 | L119: 939.55 | M119: 60.43152
A120: 111 | B120: NAUKRI | C120: 4024.55 | D120: 4039.33 | E120: 3974.12 | F120: 3923.68 | G120: 3858.47 | H120: 4089.77 | I120: 4154.98 | J120: 4205.42 | K120: 4104.55 | L120: 3988.9 | M120: 2.33628
A121: 112 | B121: INFY | C121: 1503.6 | D121: 1500.28 | E121: 1483.42 | F121: 1463.23 | G121: 1446.37 | H121: 1520.47 | I121: 1537.33 | J121: 1557.52 | K121: 1517.15 | L121: 1480.1 | M121: 78.59626
A122: 113 | B122: INDIGO | C122: 1816.4 | D122: 1812.27 | E122: 1799.93 | F122: 1783.47 | G122: 1771.13 | H122: 1828.73 | I122: 1841.07 | J122: 1857.53 | K122: 1824.6 | L122: 1795.8 | M122: 2.17342
A123: 114 | B123: IPCALAB | C123: 966.15 | D123: 971.80 | E123: 956.40 | F123: 946.65 | G123: 931.25 | H123: 981.55 | I123: 996.95 | J123: 1006.70 | K123: 987.2 | L123: 962.05 | M123: 3.32206
A124: 115 | B124: JSWENERGY | C124: 229.65 | D124: 232.15 | E124: 226.50 | F124: 223.35 | G124: 217.70 | H124: 235.30 | I124: 240.95 | J124: 244.10 | K124: 237.8 | L124: 229 | M124: 13.56884
A125: 116 | B125: JSWSTEEL | C125: 585.5 | D125: 582.47 | E125: 576.53 | F125: 567.57 | G125: 561.63 | H125: 591.43 | I125: 597.37 | J125: 606.33 | K125: 588.4 | L125: 573.5 | M125: 57.83353
A126: 117 | B126: JINDALSTEL | C126: 370.15 | D126: 366.30 | E126: 361.10 | F126: 352.05 | G126: 346.85 | H126: 375.35 | I126: 380.55 | J126: 389.60 | K126: 371.5 | L126: 357.25 | M126: 48.74583
A127: 118 | B127: JUBLFOOD | C127: 573.35 | D127: 578.22 | E127: 565.53 | F127: 557.72 | G127: 545.03 | H127: 586.03 | I127: 598.72 | J127: 606.53 | K127: 590.9 | L127: 570.4 | M127: 33.21798
A128: 119 | B128: KOTAKBANK | C128: 1795.55 | D128: 1809.82 | E128: 1770.83 | F128: 1746.12 | G128: 1707.13 | H128: 1834.53 | I128: 1873.52 | J128: 1898.23 | K128: 1848.8 | L128: 1785.1 | M128: 18.86515
A129: 120 | B129: L&TFH | C129: 72.45 | D129: 72.13 | E129: 71.67 | F129: 70.88 | G129: 70.42 | H129: 72.92 | I129: 73.38 | J129: 74.17 | K129: 72.6 | L129: 71.35 | M129: 49.17398
A130: 121 | B130: LTTS | C130: 3440.35 | D130: 3440.03 | E130: 3401.52 | F130: 3362.68 | G130: 3324.17 | H130: 3478.87 | I130: 3517.38 | J130: 3556.22 | K130: 3478.55 | L130: 3401.2 | M130: 3.2502
A131: 122 | B131: LICHSGFIN | C131: 370.8 | D131: 373.02 | E131: 366.78 | F131: 362.77 | G131: 356.53 | H131: 377.03 | I131: 383.27 | J131: 387.28 | K131: 379.25 | L131: 369 | M131: 17.18209
A132: 123 | B132: LTI | C132: 4500.8 | D132: 4497.17 | E132: 4464.23 | F132: 4427.67 | G132: 4394.73 | H132: 4533.73 | I132: 4566.67 | J132: 4603.23 | K132: 4530.1 | L132: 4460.6 | M132: 4.21761
A133: 124 | B133: LT | C133: 1782.45 | D133: 1776.00 | E133: 1766.50 | F133: 1750.55 | G133: 1741.05 | H133: 1791.95 | I133: 1801.45 | J133: 1817.40 | K133: 1785.5 | L133: 1760.05 | M133: 19.16615
A134: 125 | B134: LAURUSLABS | C134: 497.05 | D134: 500.02 | E134: 491.03 | F134: 485.02 | G134: 476.03 | H134: 506.03 | I134: 515.02 | J134: 521.03 | K134: 509 | L134: 494 | M134: 18.76202
A135: 126 | B135: LUPIN | C135: 632.45 | D135: 633.93 | E135: 624.52 | F135: 616.58 | G135: 607.17 | H135: 641.87 | I135: 651.28 | J135: 659.22 | K135: 643.35 | L135: 626 | M135: 8.20286
A136: 127 | B136: MRF | C136: 80834.05 | D136: 80521.60 | E136: 79844.25 | F136: 78854.45 | G136: 78177.10 | H136: 81511.40 | I136: 82188.75 | J136: 83178.55 | K136: 81198.95 | L136: 79531.8 | M136: 0.11727
A137: 128 | B137: M&MFIN | C137: 208.15 | D137: 209.10 | E137: 206.35 | F137: 204.55 | G137: 201.80 | H137: 210.90 | I137: 213.65 | J137: 215.45 | K137: 211.85 | L137: 207.3 | M137: 16.30154
A138: 129 | B138: M&M | C138: 1135.85 | D138: 1150.95 | E138: 1116.90 | F138: 1097.95 | G138: 1063.90 | H138: 1169.90 | I138: 1203.95 | J138: 1222.90 | K138: 1185 | L138: 1132 | M138: 43.80502
A139: 130 | B139: MANAPPURAM | C139: 94.05 | D139: 94.02 | E139: 93.08 | F139: 92.12 | G139: 91.18 | H139: 94.98 | I139: 95.92 | J139: 96.88 | K139: 94.95 | L139: 93.05 | M139: 20.02255
A140: 131 | B140: MARICO | C140: 521.85 | D140: 524.63 | E140: 517.52 | F140: 513.18 | G140: 506.07 | H140: 528.97 | I140: 536.08 | J140: 540.42 | K140: 531.75 | L140: 520.3 | M140: 10.87243
A141: 132 | B141: MARUTI | C141: 8621.6 | D141: 8656.73 | E141: 8454.87 | F141: 8288.13 | G141: 8086.27 | H141: 8823.47 | I141: 9025.33 | J141: 9192.07 | K141: 8858.6 | L141: 8490 | M141: 6.23462
A142: 133 | B142: MFSL | C142: 850.5 | D142: 848.02 | E142: 843.08 | F142: 835.67 | G142: 830.73 | H142: 855.43 | I142: 860.37 | J142: 867.78 | K142: 852.95 | L142: 840.6 | M142: 2.84034
A143: 134 | B143: MAXHEALTH | C143: 361.6 | D143: 360.70 | E143: 357.70 | F143: 353.80 | G143: 350.80 | H143: 364.60 | I143: 367.60 | J143: 371.50 | K143: 363.7 | L143: 356.8 | M143: 2.90048
A144: 135 | B144: METROPOLIS | C144: 1518.15 | D144: 1529.02 | E144: 1499.53 | F144: 1480.92 | G144: 1451.43 | H144: 1547.63 | I144: 1577.12 | J144: 1595.73 | K144: 1558.5 | L144: 1510.4 | M144: 1.59053
A145: 136 | B145: MINDTREE | C145: 3191.9 | D145: 3184.15 | E145: 3158.30 | F145: 3124.70 | G145: 3098.85 | H145: 3217.75 | I145: 3243.60 | J145: 3277.20 | K145: 3210 | L145: 3150.55 | M145: 4.27172
A146: 137 | B146: MPHASIS | C146: 2322.35 | D146: 2309.77 | E146: 2277.53 | F146: 2232.72 | G146: 2200.48 | H146: 2354.58 | I146: 2386.82 | J146: 2431.63 | K146: 2342 | L146: 2264.95 | M146: 11.12984
A147: 138 | B147: MUTHOOTFIN | C147: 1052.05 | D147: 1047.60 | E147: 1040.40 | F147: 1028.75 | G147: 1021.55 | H147: 1059.25 | I147: 1066.45 | J147: 1078.10 | K147: 1054.8 | L147: 1035.95 | M147: 3.70281
A148: 139 | B148: NMDC | C148: 105.65 | D148: 105.12 | E148: 104.08 | F148: 102.52 | G148: 101.48 | H148: 106.68 | I148: 107.72 | J148: 109.28 | K148: 106.15 | L148: 103.55 | M148: 74.42192
A149: 140 | B149: NTPC | C149: 150.1 | D149: 149.30 | E149: 148.15 | F149: 146.20 | G149: 145.05 | H149: 151.25 | I149: 152.40 | J149: 154.35 | K149: 150.45 | L149: 147.35 | M149: 79.96687
A150: 141 | B150: NATIONALUM | C150: 75.2 | D150: 74.97 | E150: 74.48 | F150: 73.77 | G150: 73.28 | H150: 75.68 | I150: 76.17 | J150: 76.88 | K150: 75.45 | L150: 74.25 | M150: 104.13496
A151: 142 | B151: NAVINFLUOR | C151: 4208.2 | D151: 4091.72 | E151: 3917.48 | F151: 3626.77 | G151: 3452.53 | H151: 4382.43 | I151: 4556.67 | J151: 4847.38 | K151: 4265.95 | L151: 3801 | M151: 25.5802
A152: 143 | B152: NESTLEIND | C152: 18757.55 | D152: 18826.53 | E152: 18643.07 | F152: 18528.58 | G152: 18345.12 | H152: 18941.02 | I152: 19124.48 | J152: 19238.97 | K152: 19010 | L152: 18712.05 | M152: 0.35959
A153: 144 | B153: NAM-INDIA | C153: 284.45 | D153: 285.42 | E153: 281.83 | F153: 279.22 | G153: 275.63 | H153: 288.03 | I153: 291.62 | J153: 294.23 | K153: 289 | L153: 282.8 | M153: 2.3851
A154: 145 | B154: OBEROIRLTY | C154: 879.9 | D154: 883.67 | E154: 872.33 | F154: 864.77 | G154: 853.43 | H154: 891.23 | I154: 902.57 | J154: 910.13 | K154: 895 | L154: 876.1 | M154: 2.96716
A155: 146 | B155: ONGC | C155: 129.8 | D155: 130.22 | E155: 127.98 | F155: 126.17 | G155: 123.93 | H155: 132.03 | I155: 134.27 | J155: 136.08 | K155: 132.45 | L155: 128.4 | M155: 217.05935
A156: 147 | B156: OIL | C156: 186.5 | D156: 189.12 | E156: 183.23 | F156: 179.97 | G156: 174.08 | H156: 192.38 | I156: 198.27 | J156: 201.53 | K156: 195 | L156: 185.85 | M156: 24.42386
A157: 148 | B157: PAYTM | C157: 758 | D157: 749.27 | E157: 735.23 | F157: 712.47 | G157: 698.43 | H157: 772.03 | I157: 786.07 | J157: 808.83 | K157: 763.3 | L157: 726.5 | M157: 22.51194
A158: 149 | B158: OFSS | C158: 3228.45 | D158: 3231.63 | E158: 3209.92 | F158: 3191.38 | G158: 3169.67 | H158: 3250.17 | I158: 3271.88 | J158: 3290.42 | K158: 3253.35 | L158: 3213.1 | M158: 0.60053
A159: 150 | B159: POLICYBZR | C159: 499.7 | D159: 505.97 | E159: 491.03 | F159: 482.37 | G159: 467.43 | H159: 514.63 | I159: 529.57 | J159: 538.23 | K159: 520.9 | L159: 497.3 | M159: 6.07803
A160: 151 | B160: PIIND | C160: 3062.25 | D160: 3037.75 | E160: 2996.50 | F160: 2930.75 | G160: 2889.50 | H160: 3103.50 | I160: 3144.75 | J160: 3210.50 | K160: 3079 | L160: 2972 | M160: 2.64105
A161: 152 | B161: PAGEIND | C161: 45616.8 | D161: 45693.93 | E161: 45187.87 | F161: 44758.93 | G161: 44252.87 | H161: 46122.87 | I161: 46628.93 | J161: 47057.87 | K161: 46200 | L161: 45265 | M161: 0.1065
A162: 153 | B162: PERSISTENT | C162: 3606.55 | D162: 3621.82 | E162: 3564.73 | F162: 3522.92 | G162: 3465.83 | H162: 3663.63 | I162: 3720.72 | J162: 3762.53 | K162: 3678.9 | L162: 3580 | M162: 5.5813
A163: 154 | B163: PETRONET | C163: 227.85 | D163: 226.78 | E163: 225.27 | F163: 222.68 | G163: 221.17 | H163: 229.37 | I163: 230.88 | J163: 233.47 | K163: 228.3 | L163: 224.2 | M163: 8.94588
A164: 155 | B164: PIDILITIND | C164: 2333.3 | D164: 2345.13 | E164: 2306.27 | F164: 2279.23 | G164: 2240.37 | H164: 2372.17 | I164: 2411.03 | J164: 2438.07 | K164: 2384 | L164: 2318.1 | M164: 3.23481
A165: 156 | B165: PEL | C165: 1795.65 | D165: 1808.90 | E165: 1762.25 | F165: 1728.85 | G165: 1682.20 | H165: 1842.30 | I165: 1888.95 | J165: 1922.35 | K165: 1855.55 | L165: 1775.5 | M165: 6.55486
A166: 157 | B166: POLYCAB | C166: 2222.25 | D166: 2221.08 | E166: 2205.17 | F166: 2188.08 | G166: 2172.17 | H166: 2238.17 | I166: 2254.08 | J166: 2271.17 | K166: 2237 | L166: 2204 | M166: 2.81283
A167: 158 | B167: PFC | C167: 113.15 | D167: 112.50 | E167: 111.65 | F167: 110.15 | G167: 109.30 | H167: 114.00 | I167: 114.85 | J167: 116.35 | K167: 113.35 | L167: 111 | M167: 30.3236
A168: 159 | B168: POWERGRID | C168: 207.9 | D168: 208.77 | E168: 206.53 | F168: 205.17 | G168: 202.93 | H168: 210.13 | I168: 212.37 | J168: 213.73 | K168: 211 | L168: 207.4 | M168: 49.76396
A169: 160 | B169: PRESTIGE | C169: 446.4 | D169: 445.95 | E169: 441.60 | F169: 436.80 | G169: 432.45 | H169: 450.75 | I169: 455.10 | J169: 459.90 | K169: 450.3 | L169: 441.15 | M169: 2.20324
A170: 161 | B170: PGHH | C170: 14404.25 | D170: 14300.50 | E170: 14161.00 | F170: 13917.75 | G170: 13778.25 | H170: 14543.75 | I170: 14683.25 | J170: 14926.50 | K170: 14440 | L170: 14057.25 | M170: 0.03604
A171: 162 | B171: PNB | C171: 31.6 | D171: 31.58 | E171: 31.37 | F171: 31.13 | G171: 30.92 | H171: 31.82 | I171: 32.03 | J171: 32.27 | K171: 31.8 | L171: 31.35 | M171: 215.87323
A172: 163 | B172: RECLTD | C172: 128.1 | D172: 127.70 | E172: 126.70 | F172: 125.30 | G172: 124.30 | H172: 129.10 | I172: 130.10 | J172: 131.50 | K172: 128.7 | L172: 126.3 | M172: 31.42436
A173: 164 | B173: RELIANCE | C173: 2420.4 | D173: 2430.28 | E173: 2393.12 | F173: 2365.83 | G173: 2328.67 | H173: 2457.57 | I173: 2494.73 | J173: 2522.02 | K173: 2467.45 | L173: 2403 | M173: 106.6547
A174: 165 | B174: SBICARD | C174: 883.9 | D174: 879.45 | E174: 870.90 | F174: 857.90 | G174: 849.35 | H174: 892.45 | I174: 901.00 | J174: 914.00 | K174: 888 | L174: 866.45 | M174: 8.3916
A175: 166 | B175: SBILIFE | C175: 1144.95 | D175: 1152.05 | E175: 1132.10 | F175: 1119.25 | G175: 1099.30 | H175: 1164.90 | I175: 1184.85 | J175: 1197.70 | K175: 1172 | L175: 1139.2 | M175: 9.34158
A176: 167 | B176: SRF | C176: 2383.45 | D176: 2362.77 | E176: 2320.53 | F176: 2257.62 | G176: 2215.38 | H176: 2425.68 | I176: 2467.92 | J176: 2530.83 | K176: 2405 | L176: 2299.85 | M176: 19.18499
A177: 168 | B177: SHREECEM | C177: 20679.05 | D177: 20601.87 | E177: 20388.38 | F177: 20097.72 | G177: 19884.23 | H177: 20892.53 | I177: 21106.02 | J177: 21396.68 | K177: 20815.35 | L177: 20311.2 | M177: 0.27434
A178: 169 | B178: SRTRANSFIN | C178: 1496.5 | D178: 1492.83 | E178: 1476.67 | F178: 1456.83 | G178: 1440.67 | H178: 1512.67 | I178: 1528.83 | J178: 1548.67 | K178: 1509 | L178: 1473 | M178: 9.44333
A179: 170 | B179: SIEMENS | C179: 2722.55 | D179: 2733.43 | E179: 2697.92 | F179: 2673.28 | G179: 2637.77 | H179: 2758.07 | I179: 2793.58 | J179: 2818.22 | K179: 2768.95 | L179: 2708.8 | M179: 3.915
A180: 171 | B180: SONACOMS | C180: 569.9 | D180: 569.75 | E180: 562.55 | F180: 555.20 | G180: 548.00 | H180: 577.10 | I180: 584.30 | J180: 591.65 | K180: 576.95 | L180: 562.4 | M180: 4.10441
A181: 172 | B181: SBIN | C181: 517.8 | D181: 515.32 | E181: 511.63 | F181: 505.47 | G181: 501.78 | H181: 521.48 | I181: 525.17 | J181: 531.33 | K181: 519 | L181: 509.15 | M181: 102.29778
A182: 173 | B182: SAIL | C182: 76 | D182: 75.65 | E182: 75.15 | F182: 74.30 | G182: 73.80 | H182: 76.50 | I182: 77.00 | J182: 77.85 | K182: 76.15 | L182: 74.8 | M182: 199.24422
A183: 174 | B183: SUNPHARMA | C183: 868.35 | D183: 867.58 | E183: 857.17 | F183: 845.98 | G183: 835.57 | H183: 878.77 | I183: 889.18 | J183: 900.37 | K183: 878 | L183: 856.4 | M183: 24.19358
A184: 175 | B184: SUNTV | C184: 442.7 | D184: 442.07 | E184: 438.63 | F184: 434.57 | G184: 431.13 | H184: 446.13 | I184: 449.57 | J184: 453.63 | K184: 445.5 | L184: 438 | M184: 7.46211
A185: 176 | B185: SYNGENE | C185: 569.25 | D185: 571.73 | E185: 563.62 | F185: 557.98 | G185: 549.87 | H185: 577.37 | I185: 585.48 | J185: 591.12 | K185: 579.85 | L185: 566.1 | M185: 5.16569
A186: 177 | B186: TVSMOTOR | C186: 871 | D186: 877.23 | E186: 861.47 | F186: 851.93 | G186: 836.17 | H186: 886.77 | I186: 902.53 | J186: 912.07 | K186: 893 | L186: 867.7 | M186: 9.80576
A187: 178 | B187: TATACHEM | C187: 892.7 | D187: 885.53 | E187: 875.07 | F187: 857.43 | G187: 846.97 | H187: 903.17 | I187: 913.63 | J187: 931.27 | K187: 896 | L187: 867.9 | M187: 9.68433
A188: 179 | B188: TATACOMM | C188: 1055.55 | D188: 1061.42 | E188: 1040.83 | F188: 1026.12 | G188: 1005.53 | H188: 1076.13 | I188: 1096.72 | J188: 1111.43 | K188: 1082 | L188: 1046.7 | M188: 8.05146
A189: 180 | B189: TCS | C189: 3166.75 | D189: 3167.43 | E189: 3148.42 | F189: 3130.08 | G189: 3111.07 | H189: 3185.77 | I189: 3204.78 | J189: 3223.12 | K189: 3186.45 | L189: 3149.1 | M189: 17.97504
A190: 181 | B190: TATACONSUM | C190: 807.95 | D190: 807.67 | E190: 801.53 | F190: 795.12 | G190: 788.98 | H190: 814.08 | I190: 820.22 | J190: 826.63 | K190: 813.8 | L190: 801.25 | M190: 9.4024
A191: 182 | B191: TATAELXSI | C191: 8529.4 | D191: 8466.20 | E191: 8382.40 | F191: 8235.40 | G191: 8151.60 | H191: 8613.20 | I191: 8697.00 | J191: 8844.00 | K191: 8550 | L191: 8319.2 | M191: 3.88514
A192: 183 | B192: TATAMOTORS | C192: 449.55 | D192: 451.15 | E192: 444.70 | F192: 439.85 | G192: 433.40 | H192: 456.00 | I192: 462.45 | J192: 467.30 | K192: 457.6 | L192: 446.3 | M192: 125.05062
A193: 184 | B193: TATAPOWER | C193: 232.5 | D193: 231.78 | E193: 230.22 | F193: 227.93 | G193: 226.37 | H193: 234.07 | I193: 235.63 | J193: 237.92 | K193: 233.35 | L193: 229.5 | M193: 101.69772
A194: 185 | B194: TATASTEEL | C194: 960.7 | D194: 953.05 | E194: 941.25 | F194: 921.80 | G194: 910.00 | H194: 972.50 | I194: 984.30 | J194: 1003.75 | K194: 964.85 | L194: 933.6 | M194: 99.63563
A195: 186 | B195: TECHM | C195: 1017.25 | D195: 1018.13 | E195: 1007.37 | F195: 997.48 | G195: 986.72 | H195: 1028.02 | I195: 1038.78 | J195: 1048.67 | K195: 1028.9 | L195: 1008.25 | M195: 28.88919
A196: 187 | B196: RAMCOCEM | C196: 680.85 | D196: 684.03 | E196: 668.07 | F196: 655.28 | G196: 639.32 | H196: 696.82 | I196: 712.78 | J196: 725.57 | K196: 700 | L196: 671.25 | M196: 6.13819
A197: 188 | B197: TITAN | C197: 2328.85 | D197: 2330.22 | E197: 2311.63 | F197: 2294.42 | G197: 2275.83 | H197: 2347.43 | I197: 2366.02 | J197: 2383.23 | K197: 2348.8 | L197: 2313 | M197: 12.48393
A198: 189 | B198: TORNTPHARM | C198: 1484.45 | D198: 1482.82 | E198: 1467.63 | F198: 1450.82 | G198: 1435.63 | H198: 1499.63 | I198: 1514.82 | J198: 1531.63 | K198: 1498 | L198: 1466 | M198: 3.15581
A199: 190 | B199: TORNTPOWER | C199: 504.25 | D199: 504.68 | E199: 500.17 | F199: 496.08 | G199: 491.57 | H199: 508.77 | I199: 513.28 | J199: 517.37 | K199: 509.2 | L199: 500.6 | M199: 11.53332
A200: 191 | B200: TRENT | C200: 1232.55 | D200: 1232.95 | E200: 1220.90 | F200: 1209.25 | G200: 1197.20 | H200: 1244.60 | I200: 1256.65 | J200: 1268.30 | K200: 1245 | L200: 1221.3 | M200: 3.81778
A201: 192 | B201: TRIDENT | C201: 38.65 | D201: 38.57 | E201: 38.08 | F201: 37.52 | G201: 37.03 | H201: 39.13 | I201: 39.62 | J201: 40.18 | K201: 39.05 | L201: 38 | M201: 62.13186
A202: 193 | B202: UPL | C202: 733.95 | D202: 731.85 | E202: 726.00 | F202: 718.05 | G202: 712.20 | H202: 739.80 | I202: 745.65 | J202: 753.60 | K202: 737.7 | L202: 723.9 | M202: 21.79454
A203: 194 | B203: ULTRACEMCO | C203: 6382.9 | D203: 6363.25 | E203: 6279.70 | F203: 6176.50 | G203: 6092.95 | H203: 6466.45 | I203: 6550.00 | J203: 6653.20 | K203: 6446.8 | L203: 6260.05 | M203: 9.1905
A204: 195 | B204: UNIONBANK | C204: 37.95 | D204: 37.97 | E204: 37.48 | F204: 37.02 | G204: 36.53 | H204: 38.43 | I204: 38.92 | J204: 39.38 | K204: 38.45 | L204: 37.5 | M204: 39.08147
A205: 196 | B205: UBL | C205: 1676.05 | D205: 1683.70 | E205: 1660.20 | F205: 1644.35 | G205: 1620.85 | H205: 1699.55 | I205: 1723.05 | J205: 1738.90 | K205: 1707.2 | L205: 1667.85 | M205: 2.77461
... 29 more rows

Sheet MidCap Intra
L5: Back To Main Page
A6: FOR INTRA DAY TRADING | K6: =Main!B10 -> 2022-07-26
A9: Sr.no | B9: Scrip | C9: CLOSE RATE | D9: Pivot Point | E9: Supports | H9: Resistances
E10: S1 | F10: S2 | G10: S3 | H10: R1 | I10: R2 | J10: R3 | K10: HIGH | L10: LOW | M10: Total Trade Quanity in Lakhs
A11: 1 | B11: 3MINDIA | C11: 22872.2 | D11: 22874.03 | E11: 22648.17 | F11: 22424.13 | G11: 22198.27 | H11: 23098.07 | I11: 23323.93 | J11: 23547.97 | K11: 23099.9 | L11: 22650 | M11: 0.01227
A12: 2 | B12: ABB | C12: 2662.9 | D12: 2670.80 | E12: 2628.60 | F12: 2594.30 | G12: 2552.10 | H12: 2705.10 | I12: 2747.30 | J12: 2781.60 | K12: 2713 | L12: 2636.5 | M12: 2.92148
A13: 3 | B13: ACC | C13: 2204.45 | D13: 2198.12 | E13: 2183.23 | F13: 2162.02 | G13: 2147.13 | H13: 2219.33 | I13: 2234.22 | J13: 2255.43 | K13: 2213 | L13: 2176.9 | M13: 3.79605
A14: 4 | B14: AIAENG | C14: 2360.05 | D14: 2375.03 | E14: 2335.02 | F14: 2309.98 | G14: 2269.97 | H14: 2400.07 | I14: 2440.08 | J14: 2465.12 | K14: 2415.05 | L14: 2350 | M14: 0.32289
A15: 5 | B15: APLAPOLLO | C15: 927.5 | D15: 924.17 | E15: 911.28 | F15: 895.07 | G15: 882.18 | H15: 940.38 | I15: 953.27 | J15: 969.48 | K15: 937.05 | L15: 907.95 | M15: 2.91777
A16: 6 | B16: AUBANK | C16: 581.7 | D16: 578.92 | E16: 572.88 | F16: 564.07 | G16: 558.03 | H16: 587.73 | I16: 593.77 | J16: 602.58 | K16: 584.95 | L16: 570.1 | M16: 10.98397
A17: 7 | B17: AARTIDRUGS | C17: 433.25 | D17: 433.37 | E17: 424.88 | F17: 416.52 | G17: 408.03 | H17: 441.73 | I17: 450.22 | J17: 458.58 | K17: 441.85 | L17: 425 | M17: 0.77541
A18: 8 | B18: AAVAS | C18: 2216.45 | D18: 2216.65 | E18: 2181.00 | F18: 2145.55 | G18: 2109.90 | H18: 2252.10 | I18: 2287.75 | J18: 2323.20 | K18: 2252.3 | L18: 2181.2 | M18: 0.68212
A19: 9 | B19: ABBOTINDIA | C19: 19737.45 | D19: 19788.83 | E19: 19578.67 | F19: 19419.88 | G19: 19209.72 | H19: 19947.62 | I19: 20157.78 | J19: 20316.57 | K19: 19999 | L19: 19630.05 | M19: 0.1147
A20: 10 | B20: ADANIENT | C20: 2550.6 | D20: 2537.58 | E20: 2513.02 | F20: 2475.43 | G20: 2450.87 | H20: 2575.17 | I20: 2599.73 | J20: 2637.32 | K20: 2562.15 | L20: 2500 | M20: 12.20351
A21: 11 | B21: ADANIGREEN | C21: 2137.6 | D21: 2137.78 | E21: 2115.57 | F21: 2093.53 | G21: 2071.32 | H21: 2159.82 | I21: 2182.03 | J21: 2204.07 | K21: 2160 | L21: 2115.75 | M21: 11.66283
A22: 12 | B22: ADANIPORTS | C22: 749.95 | D22: 751.08 | E22: 744.92 | F22: 739.88 | G22: 733.72 | H22: 756.12 | I22: 762.28 | J22: 767.32 | K22: 757.25 | L22: 746.05 | M22: 15.92179
A23: 13 | B23: ATGL | C23: 2878.85 | D23: 2879.97 | E23: 2835.73 | F23: 2792.62 | G23: 2748.38 | H23: 2923.08 | I23: 2967.32 | J23: 3010.43 | K23: 2924.2 | L23: 2836.85 | M23: 3.63143
A24: 14 | B24: ADANITRANS | C24: 2969.75 | D24: 2984.58 | E24: 2945.17 | F24: 2920.58 | G24: 2881.17 | H24: 3009.17 | I24: 3048.58 | J24: 3073.17 | K24: 3024 | L24: 2960 | M24: 2.94966
A25: 15 | B25: ABCAPITAL | C25: 102.5 | D25: 103.02 | E25: 101.48 | F25: 100.47 | G25: 98.93 | H25: 104.03 | I25: 105.57 | J25: 106.58 | K25: 104.55 | L25: 102 | M25: 21.39216
A26: 16 | B26: ABFRL | C26: 267.5 | D26: 268.52 | E26: 265.03 | F26: 262.57 | G26: 259.08 | H26: 270.98 | I26: 274.47 | J26: 276.93 | K26: 272 | L26: 266.05 | M26: 17.2718
A27: 17 | B27: ABSLAMC | C27: 421.2 | D27: 421.38 | E27: 413.87 | F27: 406.53 | G27: 399.02 | H27: 428.72 | I27: 436.23 | J27: 443.57 | K27: 428.9 | L27: 414.05 | M27: 0.53817
A28: 18 | B28: ADVENZYMES | C28: 287.1 | D28: 288.67 | E28: 283.43 | F28: 279.77 | G28: 274.53 | H28: 292.33 | I28: 297.57 | J28: 301.23 | K28: 293.9 | L28: 285 | M28: 0.38184
A29: 19 | B29: AEGISCHEM | C29: 260.9 | D29: 258.92 | E29: 253.33 | F29: 245.77 | G29: 240.18 | H29: 266.48 | I29: 272.07 | J29: 279.63 | K29: 264.5 | L29: 251.35 | M29: 23.2112
A30: 20 | B30: AFFLE | C30: 1029.1 | D30: 1035.25 | E30: 1019.65 | F30: 1010.20 | G30: 994.60 | H30: 1044.70 | I30: 1060.30 | J30: 1069.75 | K30: 1050.85 | L30: 1025.8 | M30: 1.20403
A31: 21 | B31: AJANTPHARM | C31: 1277.55 | D31: 1281.95 | E31: 1261.60 | F31: 1245.65 | G31: 1225.30 | H31: 1297.90 | I31: 1318.25 | J31: 1334.20 | K31: 1302.3 | L31: 1266 | M31: 0.23754
A32: 22 | B32: APLLTD | C32: 700.85 | D32: 703.47 | E32: 697.38 | F32: 693.92 | G32: 687.83 | H32: 706.93 | I32: 713.02 | J32: 716.48 | K32: 709.55 | L32: 700 | M32: 0.26653
A33: 23 | B33: ALKEM | C33: 3109.1 | D33: 3129.63 | E33: 3069.57 | F33: 3030.03 | G33: 2969.97 | H33: 3169.17 | I33: 3229.23 | J33: 3268.77 | K33: 3189.7 | L33: 3090.1 | M33: 0.39564
A34: 24 | B34: ALKYLAMINE | C34: 2843.5 | D34: 2838.65 | E34: 2777.10 | F34: 2710.70 | G34: 2649.15 | H34: 2905.05 | I34: 2966.60 | J34: 3033.00 | K34: 2900.2 | L34: 2772.25 | M34: 0.57755
A35: 25 | B35: ALLCARGO | C35: 291.1 | D35: 289.55 | E35: 282.10 | F35: 273.10 | G35: 265.65 | H35: 298.55 | I35: 306.00 | J35: 315.00 | K35: 297 | L35: 280.55 | M35: 6.99652
A36: 26 | B36: ALOKINDS | C36: 19.45 | D36: 19.52 | E36: 19.03 | F36: 18.62 | G36: 18.13 | H36: 19.93 | I36: 20.42 | J36: 20.83 | K36: 20 | L36: 19.1 | M36: 20.14817
A37: 27 | B37: AMARAJABAT | C37: 468.05 | D37: 469.12 | E37: 462.38 | F37: 456.72 | G37: 449.98 | H37: 474.78 | I37: 481.52 | J37: 487.18 | K37: 475.85 | L37: 463.45 | M37: 4.92038
A38: 28 | B38: AMBER | C38: 2427.85 | D38: 2438.10 | E38: 2393.55 | F38: 2359.25 | G38: 2314.70 | H38: 2472.40 | I38: 2516.95 | J38: 2551.25 | K38: 2482.65 | L38: 2403.8 | M38: 0.36685
A39: 29 | B39: AMBUJACEM | C39: 371.15 | D39: 371.68 | E39: 369.87 | F39: 368.58 | G39: 366.77 | H39: 372.97 | I39: 374.78 | J39: 376.07 | K39: 373.5 | L39: 370.4 | M39: 32.24932
A40: 30 | B40: ANGELONE | C40: 1414.05 | D40: 1424.13 | E40: 1391.62 | F40: 1369.18 | G40: 1336.67 | H40: 1446.57 | I40: 1479.08 | J40: 1501.52 | K40: 1456.65 | L40: 1401.7 | M40: 5.12962
A41: 31 | B41: ANURAS | C41: 787.65 | D41: 792.50 | E41: 767.30 | F41: 746.95 | G41: 721.75 | H41: 812.85 | I41: 838.05 | J41: 858.40 | K41: 817.7 | L41: 772.15 | M41: 3.58366
A42: 32 | B42: APOLLOHOSP | C42: 4189.9 | D42: 4193.62 | E42: 4134.33 | F42: 4078.77 | G42: 4019.48 | H42: 4249.18 | I42: 4308.47 | J42: 4364.03 | K42: 4252.9 | L42: 4138.05 | M42: 11.27478
A43: 33 | B43: APOLLOTYRE | C43: 213.8 | D43: 213.42 | E43: 211.03 | F43: 208.27 | G43: 205.88 | H43: 216.18 | I43: 218.57 | J43: 221.33 | K43: 215.8 | L43: 210.65 | M43: 15.75796
A44: 34 | B44: APTUS | C44: 278.95 | D44: 276.55 | E44: 273.20 | F44: 267.45 | G44: 264.10 | H44: 282.30 | I44: 285.65 | J44: 291.40 | K44: 279.9 | L44: 270.8 | M44: 0.96472
A45: 35 | B45: ASAHIINDIA | C45: 593.4 | D45: 593.65 | E45: 585.30 | F45: 577.20 | G45: 568.85 | H45: 601.75 | I45: 610.10 | J45: 618.20 | K45: 602 | L45: 585.55 | M45: 4.53116
A46: 36 | B46: ASHOKLEY | C46: 146.9 | D46: 147.03 | E46: 144.87 | F46: 142.83 | G46: 140.67 | H46: 149.07 | I46: 151.23 | J46: 153.27 | K46: 149.2 | L46: 145 | M46: 69.45596
A47: 37 | B47: ASIANPAINT | C47: 3104.95 | D47: 3091.27 | E47: 3065.33 | F47: 3025.72 | G47: 2999.78 | H47: 3130.88 | I47: 3156.82 | J47: 3196.43 | K47: 3117.2 | L47: 3051.65 | M47: 9.85844
A48: 38 | B48: ASTERDM | C48: 220 | D48: 221.32 | E48: 216.73 | F48: 213.47 | G48: 208.88 | H48: 224.58 | I48: 229.17 | J48: 232.43 | K48: 225.9 | L48: 218.05 | M48: 3.74115
A49: 39 | B49: ASTRAZEN | C49: 3049.3 | D49: 3050.98 | E49: 3033.32 | F49: 3017.33 | G49: 2999.67 | H49: 3066.97 | I49: 3084.63 | J49: 3100.62 | K49: 3068.65 | L49: 3035 | M49: 0.08224
A50: 40 | B50: ASTRAL | C50: 1759.75 | D50: 1746.73 | E50: 1726.17 | F50: 1692.58 | G50: 1672.02 | H50: 1780.32 | I50: 1800.88 | J50: 1834.47 | K50: 1767.3 | L50: 1713.15 | M50: 2.16077
A51: 41 | B51: ATUL | C51: 8674.05 | D51: 8707.22 | E51: 8469.18 | F51: 8264.32 | G51: 8026.28 | H51: 8912.08 | I51: 9150.12 | J51: 9354.98 | K51: 8945.25 | L51: 8502.35 | M51: 1.71536
A52: 42 | B52: AUROPHARMA | C52: 543.85 | D52: 546.78 | E52: 538.07 | F52: 532.28 | G52: 523.57 | H52: 552.57 | I52: 561.28 | J52: 567.07 | K52: 555.5 | L52: 541 | M52: 8.08969
A53: 43 | B53: AVANTIFEED | C53: 453.7 | D53: 452.53 | E53: 449.82 | F53: 445.93 | G53: 443.22 | H53: 456.42 | I53: 459.13 | J53: 463.02 | K53: 455.25 | L53: 448.65 | M53: 0.74879
A54: 44 | B54: DMART | C54: 4040.05 | D54: 4008.35 | E54: 3966.70 | F54: 3893.35 | G54: 3851.70 | H54: 4081.70 | I54: 4123.35 | J54: 4196.70 | K54: 4050 | L54: 3935 | M54: 4.44451
A55: 45 | B55: AXISBANK | C55: 727.35 | D55: 729.55 | E55: 720.30 | F55: 713.25 | G55: 704.00 | H55: 736.60 | I55: 745.85 | J55: 752.90 | K55: 738.8 | L55: 722.5 | M55: 62.30411
A56: 46 | B56: BASF | C56: 2664.3 | D56: 2676.43 | E56: 2642.87 | F56: 2621.43 | G56: 2587.87 | H56: 2697.87 | I56: 2731.43 | J56: 2752.87 | K56: 2710 | L56: 2655 | M56: 0.16806
A57: 47 | B57: BSE | C57: 665.85 | D57: 669.17 | E57: 657.38 | F57: 648.92 | G57: 637.13 | H57: 677.63 | I57: 689.42 | J57: 697.88 | K57: 680.95 | L57: 660.7 | M57: 5.79833
A58: 48 | B58: BAJAJ-AUTO | C58: 4021.15 | D58: 4031.13 | E58: 3988.32 | F58: 3955.48 | G58: 3912.67 | H58: 4063.97 | I58: 4106.78 | J58: 4139.62 | K58: 4073.95 | L58: 3998.3 | M58: 3.72987
A59: 49 | B59: BAJAJELEC | C59: 1169 | D59: 1167.78 | E59: 1156.57 | F59: 1144.13 | G59: 1132.92 | H59: 1180.22 | I59: 1191.43 | J59: 1203.87 | K59: 1179 | L59: 1155.35 | M59: 0.67424
A60: 50 | B60: BAJFINANCE | C60: 6227 | D60: 6248.67 | E60: 6163.33 | F60: 6099.67 | G60: 6014.33 | H60: 6312.33 | I60: 6397.67 | J60: 6461.33 | K60: 6334 | L60: 6185 | M60: 7.24023
A61: 51 | B61: BAJAJFINSV | C61: 12619.55 | D61: 12661.50 | E61: 12528.05 | F61: 12436.55 | G61: 12303.10 | H61: 12753.00 | I61: 12886.45 | J61: 12977.95 | K61: 12794.95 | L61: 12570 | M61: 1.74702
A62: 52 | B62: BAJAJHLDNG | C62: 4857.05 | D62: 4856.68 | E62: 4825.37 | F62: 4793.68 | G62: 4762.37 | H62: 4888.37 | I62: 4919.68 | J62: 4951.37 | K62: 4888 | L62: 4825 | M62: 0.16772
A63: 53 | B63: BALAMINES | C63: 3431.5 | D63: 3407.02 | E63: 3364.48 | F63: 3297.47 | G63: 3254.93 | H63: 3474.03 | I63: 3516.57 | J63: 3583.58 | K63: 3449.55 | L63: 3340 | M63: 2.77663
A64: 54 | B64: BALKRISIND | C64: 2349.1 | D64: 2323.17 | E64: 2285.93 | F64: 2222.77 | G64: 2185.53 | H64: 2386.33 | I64: 2423.57 | J64: 2486.73 | K64: 2360.4 | L64: 2260 | M64: 3.89315
A65: 55 | B65: BALRAMCHIN | C65: 382.05 | D65: 380.48 | E65: 377.57 | F65: 373.08 | G65: 370.17 | H65: 384.97 | I65: 387.88 | J65: 392.37 | K65: 383.4 | L65: 376 | M65: 11.02425
A66: 56 | B66: BANDHANBNK | C66: 273.8 | D66: 276.27 | E66: 266.18 | F66: 258.57 | G66: 248.48 | H66: 283.88 | I66: 293.97 | J66: 301.58 | K66: 286.35 | L66: 268.65 | M66: 175.31151
A67: 57 | B67: BANKBARODA | C67: 115.2 | D67: 115.38 | E67: 114.07 | F67: 112.93 | G67: 111.62 | H67: 116.52 | I67: 117.83 | J67: 118.97 | K67: 116.7 | L67: 114.25 | M67: 201.71737
A68: 58 | B68: BANKINDIA | C68: 48.25 | D68: 48.45 | E68: 47.85 | F68: 47.45 | G68: 46.85 | H68: 48.85 | I68: 49.45 | J68: 49.85 | K68: 49.05 | L68: 48.05 | M68: 15.83087
A69: 59 | B69: MAHABANK | C69: 16.7 | D69: 16.85 | E69: 16.50 | F69: 16.30 | G69: 15.95 | H69: 17.05 | I69: 17.40 | J69: 17.60 | K69: 17.2 | L69: 16.65 | M69: 19.1309
A70: 60 | B70: BATAINDIA | C70: 1835.8 | D70: 1829.22 | E70: 1814.58 | F70: 1793.37 | G70: 1778.73 | H70: 1850.43 | I70: 1865.07 | J70: 1886.28 | K70: 1843.85 | L70: 1808 | M70: 2.51631
A71: 61 | B71: BAYERCROP | C71: 5297.85 | D71: 5322.62 | E71: 5250.23 | F71: 5202.62 | G71: 5130.23 | H71: 5370.23 | I71: 5442.62 | J71: 5490.23 | K71: 5395 | L71: 5275 | M71: 0.06755
A72: 62 | B72: BERGEPAINT | C72: 594.55 | D72: 592.18 | E72: 587.37 | F72: 580.18 | G72: 575.37 | H72: 599.37 | I72: 604.18 | J72: 611.37 | K72: 597 | L72: 585 | M72: 8.74083
A73: 63 | B73: BDL | C73: 719.55 | D73: 719.35 | E73: 711.70 | F73: 703.85 | G73: 696.20 | H73: 727.20 | I73: 734.85 | J73: 742.70 | K73: 727 | L73: 711.5 | M73: 4.49305
A74: 64 | B74: BEL | C74: 270.05 | D74: 270.83 | E74: 267.27 | F74: 264.48 | G74: 260.92 | H74: 273.62 | I74: 277.18 | J74: 279.97 | K74: 274.4 | L74: 268.05 | M74: 91.60521
A75: 65 | B75: BHARATFORG | C75: 705.25 | D75: 706.10 | E75: 696.00 | F75: 686.75 | G75: 676.65 | H75: 715.35 | I75: 725.45 | J75: 734.70 | K75: 716.2 | L75: 696.85 | M75: 15.22712
A76: 66 | B76: BHEL | C76: 53.85 | D76: 53.57 | E76: 53.13 | F76: 52.42 | G76: 51.98 | H76: 54.28 | I76: 54.72 | J76: 55.43 | K76: 54 | L76: 52.85 | M76: 222.5952
A77: 67 | B77: BPCL | C77: 317.15 | D77: 317.87 | E77: 314.83 | F77: 312.52 | G77: 309.48 | H77: 320.18 | I77: 323.22 | J77: 325.53 | K77: 320.9 | L77: 315.55 | M77: 32.64614
A78: 68 | B78: BHARTIARTL | C78: 678.4 | D78: 680.50 | E78: 674.45 | F78: 670.50 | G78: 664.45 | H78: 684.45 | I78: 690.50 | J78: 694.45 | K78: 686.55 | L78: 676.55 | M78: 29.13348
A79: 69 | B79: BIOCON | C79: 322.75 | D79: 323.67 | E79: 319.78 | F79: 316.82 | G79: 312.93 | H79: 326.63 | I79: 330.52 | J79: 333.48 | K79: 327.55 | L79: 320.7 | M79: 7.81225
A80: 70 | B80: BIRLACORPN | C80: 965.45 | D80: 970.55 | E80: 955.00 | F80: 944.55 | G80: 929.00 | H80: 981.00 | I80: 996.55 | J80: 1007.00 | K80: 986.1 | L80: 960.1 | M80: 1.42791
A81: 71 | B81: BSOFT | C81: 332.75 | D81: 332.97 | E81: 330.03 | F81: 327.32 | G81: 324.38 | H81: 335.68 | I81: 338.62 | J81: 341.33 | K81: 335.9 | L81: 330.25 | M81: 10.18447
A82: 72 | B82: BLUEDART | C82: 8374.45 | D82: 8376.75 | E82: 8330.75 | F82: 8287.05 | G82: 8241.05 | H82: 8420.45 | I82: 8466.45 | J82: 8510.15 | K82: 8422.75 | L82: 8333.05 | M82: 0.12221
A83: 73 | B83: BLUESTARCO | C83: 996.55 | D83: 995.53 | E83: 981.02 | F83: 965.48 | G83: 950.97 | H83: 1011.07 | I83: 1025.58 | J83: 1041.12 | K83: 1010.05 | L83: 980 | M83: 0.30081
A84: 74 | B84: BBTC | C84: 946.25 | D84: 944.00 | E84: 937.65 | F84: 929.05 | G84: 922.70 | H84: 952.60 | I84: 958.95 | J84: 967.55 | K84: 950.35 | L84: 935.4 | M84: 0.1753
A85: 75 | B85: BORORENEW | C85: 635 | D85: 639.20 | E85: 627.15 | F85: 619.30 | G85: 607.25 | H85: 647.05 | I85: 659.10 | J85: 666.95 | K85: 651.25 | L85: 631.35 | M85: 2.36746
A86: 76 | B86: BOSCHLTD | C86: 16508.95 | D86: 16656.30 | E86: 16312.65 | F86: 16116.35 | G86: 15772.70 | H86: 16852.60 | I86: 17196.25 | J86: 17392.55 | K86: 16999.95 | L86: 16460 | M86: 0.33185
A87: 77 | B87: BRIGADE | C87: 488.25 | D87: 486.22 | E87: 482.43 | F87: 476.62 | G87: 472.83 | H87: 492.03 | I87: 495.82 | J87: 501.63 | K87: 490 | L87: 480.4 | M87: 1.09116
A88: 78 | B88: BCG | C88: 54.85 | D88: 55.55 | E88: 53.30 | F88: 51.75 | G88: 49.50 | H88: 57.10 | I88: 59.35 | J88: 60.90 | K88: 57.8 | L88: 54 | M88: 105.7047
A89: 79 | B89: BRITANNIA | C89: 3885.9 | D89: 3883.63 | E89: 3852.27 | F89: 3818.63 | G89: 3787.27 | H89: 3917.27 | I89: 3948.63 | J89: 3982.27 | K89: 3915 | L89: 3850 | M89: 2.90157
A90: 80 | B90: MAPMYINDIA | C90: 1401.85 | D90: 1414.32 | E90: 1383.93 | F90: 1366.02 | G90: 1335.63 | H90: 1432.23 | I90: 1462.62 | J90: 1480.53 | K90: 1444.7 | L90: 1396.4 | M90: 0.46868
A91: 81 | B91: CCL | C91: 413.4 | D91: 410.13 | E91: 404.27 | F91: 395.13 | G91: 389.27 | H91: 419.27 | I91: 425.13 | J91: 434.27 | K91: 416 | L91: 401 | M91: 1.90356
A92: 82 | B92: CESC | C92: 74.75 | D92: 74.95 | E92: 74.40 | F92: 74.05 | G92: 73.50 | H92: 75.30 | I92: 75.85 | J92: 76.20 | K92: 75.5 | L92: 74.6 | M92: 5.63615
A93: 83 | B93: CGPOWER | C93: 217.9 | D93: 221.80 | E93: 212.35 | F93: 206.80 | G93: 197.35 | H93: 227.35 | I93: 236.80 | J93: 242.35 | K93: 231.25 | L93: 216.25 | M93: 26.54793
A94: 84 | B94: CRISIL | C94: 3279.05 | D94: 3287.02 | E94: 3226.03 | F94: 3173.02 | G94: 3112.03 | H94: 3340.03 | I94: 3401.02 | J94: 3454.03 | K94: 3348 | L94: 3234 | M94: 0.41459
A95: 85 | B95: CSBBANK | C95: 200.95 | D95: 203.10 | E95: 197.90 | F95: 194.85 | G95: 189.65 | H95: 206.15 | I95: 211.35 | J95: 214.40 | K95: 208.3 | L95: 200.05 | M95: 2.13809
A96: 86 | B96: CANFINHOME | C96: 550.75 | D96: 544.67 | E96: 536.18 | F96: 521.62 | G96: 513.13 | H96: 559.23 | I96: 567.72 | J96: 582.28 | K96: 553.15 | L96: 530.1 | M96: 19.79426
A97: 87 | B97: CANBK | C97: 224.8 | D97: 226.65 | E97: 218.80 | F97: 212.80 | G97: 204.95 | H97: 232.65 | I97: 240.50 | J97: 246.50 | K97: 234.5 | L97: 220.65 | M97: 277.55911
A98: 88 | B98: CAPLIPOINT | C98: 805 | D98: 806.63 | E98: 788.37 | F98: 771.73 | G98: 753.47 | H98: 823.27 | I98: 841.53 | J98: 858.17 | K98: 824.9 | L98: 790 | M98: 2.36067
A99: 89 | B99: CGCL | C99: 715.6 | D99: 716.17 | E99: 705.48 | F99: 695.37 | G99: 684.68 | H99: 726.28 | I99: 736.97 | J99: 747.08 | K99: 726.85 | L99: 706.05 | M99: 0.22908
A100: 90 | B100: CARBORUNIV | C100: 790.35 | D100: 789.80 | E100: 780.60 | F100: 770.85 | G100: 761.65 | H100: 799.55 | I100: 808.75 | J100: 818.50 | K100: 799 | L100: 780.05 | M100: 1.39897
A101: 91 | B101: CASTROLIND | C101: 110.15 | D101: 109.88 | E101: 109.27 | F101: 108.38 | G101: 107.77 | H101: 110.77 | I101: 111.38 | J101: 112.27 | K101: 110.5 | L101: 109 | M101: 4.85937
A102: 92 | B102: CEATLTD | C102: 1203.6 | D102: 1211.20 | E102: 1192.40 | F102: 1181.20 | G102: 1162.40 | H102: 1222.40 | I102: 1241.20 | J102: 1252.40 | K102: 1230 | L102: 1200 | M102: 0.65781
A103: 93 | B103: CENTRALBK | C103: 18.2 | D103: 18.23 | E103: 17.67 | F103: 17.13 | G103: 16.57 | H103: 18.77 | I103: 19.33 | J103: 19.87 | K103: 18.8 | L103: 17.7 | M103: 41.48233
A104: 94 | B104: CDSL | C104: 1133.8 | D104: 1141.30 | E104: 1124.60 | F104: 1115.40 | G104: 1098.70 | H104: 1150.50 | I104: 1167.20 | J104: 1176.40 | K104: 1158 | L104: 1132.1 | M104: 2.70086
A105: 95 | B105: CENTURYPLY | C105: 594.45 | D105: 588.02 | E105: 578.08 | F105: 561.72 | G105: 551.78 | H105: 604.38 | I105: 614.32 | J105: 630.68 | K105: 597.95 | L105: 571.65 | M105: 5.30881
A106: 96 | B106: CENTURYTEX | C106: 801.35 | D106: 806.08 | E106: 785.37 | F106: 769.38 | G106: 748.67 | H106: 822.07 | I106: 842.78 | J106: 858.77 | K106: 826.8 | L106: 790.1 | M106: 3.70817
A107: 97 | B107: CERA | C107: 4439.5 | D107: 4472.17 | E107: 4382.33 | F107: 4325.17 | G107: 4235.33 | H107: 4529.33 | I107: 4619.17 | J107: 4676.33 | K107: 4562 | L107: 4415 | M107: 0.19691
A108: 98 | B108: CHALET | C108: 323.9 | D108: 322.58 | E108: 312.17 | F108: 300.43 | G108: 290.02 | H108: 334.32 | I108: 344.73 | J108: 356.47 | K108: 333 | L108: 310.85 | M108: 3.95972
A109: 99 | B109: CHAMBLFERT | C109: 316.15 | D109: 317.23 | E109: 311.92 | F109: 307.68 | G109: 302.37 | H109: 321.47 | I109: 326.78 | J109: 331.02 | K109: 322.55 | L109: 313 | M109: 23.30788
A110: 100 | B110: CHEMPLASTS | C110: 473.3 | D110: 479.25 | E110: 465.65 | F110: 458.00 | G110: 444.40 | H110: 486.90 | I110: 500.50 | J110: 508.15 | K110: 492.85 | L110: 471.6 | M110: 3.67682
A111: 101 | B111: CHOLAHLDNG | C111: 630.35 | D111: 632.23 | E111: 624.57 | F111: 618.78 | G111: 611.12 | H111: 638.02 | I111: 645.68 | J111: 651.47 | K111: 639.9 | L111: 626.45 | M111: 0.1126
A112: 102 | B112: CHOLAFIN | C112: 684.85 | D112: 685.67 | E112: 677.88 | F112: 670.92 | G112: 663.13 | H112: 692.63 | I112: 700.42 | J112: 707.38 | K112: 693.45 | L112: 678.7 | M112: 10.45998
A113: 103 | B113: CIPLA | C113: 959.8 | D113: 964.88 | E113: 949.97 | F113: 940.13 | G113: 925.22 | H113: 974.72 | I113: 989.63 | J113: 999.47 | K113: 979.8 | L113: 955.05 | M113: 10.24751
A114: 104 | B114: CUB | C114: 161.55 | D114: 161.82 | E114: 159.13 | F114: 156.72 | G114: 154.03 | H114: 164.23 | I114: 166.92 | J114: 169.33 | K114: 164.5 | L114: 159.4 | M114: 26.32344
A115: 105 | B115: CLEAN | C115: 1757.85 | D115: 1756.22 | E115: 1736.63 | F115: 1715.42 | G115: 1695.83 | H115: 1777.43 | I115: 1797.02 | J115: 1818.23 | K115: 1775.8 | L115: 1735 | M115: 0.98698
A116: 106 | B116: COALINDIA | C116: 200.9 | D116: 199.07 | E116: 196.43 | F116: 191.97 | G116: 189.33 | H116: 203.53 | I116: 206.17 | J116: 210.63 | K116: 201.7 | L116: 194.6 | M116: 102.07034
A117: 107 | B117: COCHINSHIP | C117: 326.05 | D117: 324.53 | E117: 322.22 | F117: 318.38 | G117: 316.07 | H117: 328.37 | I117: 330.68 | J117: 334.52 | K117: 326.85 | L117: 320.7 | M117: 0.55463
A118: 108 | B118: COFORGE | C118: 3789.5 | D118: 3769.85 | E118: 3704.70 | F118: 3619.90 | G118: 3554.75 | H118: 3854.65 | I118: 3919.80 | J118: 4004.60 | K118: 3835 | L118: 3685.05 | M118: 6.21916
A119: 109 | B119: COLPAL | C119: 1565.1 | D119: 1578.00 | E119: 1541.00 | F119: 1516.90 | G119: 1479.90 | H119: 1602.10 | I119: 1639.10 | J119: 1663.20 | K119: 1615 | L119: 1553.9 | M119: 4.47129
A120: 110 | B120: CAMS | C120: 2436.2 | D120: 2432.38 | E120: 2417.37 | F120: 2398.53 | G120: 2383.52 | H120: 2451.22 | I120: 2466.23 | J120: 2485.07 | K120: 2447.4 | L120: 2413.55 | M120: 0.6054
A121: 111 | B121: CONCOR | C121: 671.5 | D121: 670.38 | E121: 663.77 | F121: 656.03 | G121: 649.42 | H121: 678.12 | I121: 684.73 | J121: 692.47 | K121: 677 | L121: 662.65 | M121: 10.33364
A122: 112 | B122: COROMANDEL | C122: 1022.2 | D122: 1023.13 | E122: 1012.92 | F122: 1003.63 | G122: 993.42 | H122: 1032.42 | I122: 1042.63 | J122: 1051.92 | K122: 1033.35 | L122: 1013.85 | M122: 2.5517
A123: 113 | B123: CREDITACC | C123: 996.25 | D123: 1010.78 | E123: 971.57 | F123: 946.88 | G123: 907.67 | H123: 1035.47 | I123: 1074.68 | J123: 1099.37 | K123: 1050 | L123: 986.1 | M123: 1.43279
A124: 114 | B124: CROMPTON | C124: 375.15 | D124: 373.37 | E124: 365.03 | F124: 354.92 | G124: 346.58 | H124: 383.48 | I124: 391.82 | J124: 401.93 | K124: 381.7 | L124: 363.25 | M124: 24.04847
A125: 115 | B125: CUMMINSIND | C125: 1186.85 | D125: 1195.90 | E125: 1173.95 | F125: 1161.05 | G125: 1139.10 | H125: 1208.80 | I125: 1230.75 | J125: 1243.65 | K125: 1217.85 | L125: 1183 | M125: 8.06178
A126: 116 | B126: CYIENT | C126: 780.3 | D126: 780.38 | E126: 773.32 | F126: 766.33 | G126: 759.27 | H126: 787.37 | I126: 794.43 | J126: 801.42 | K126: 787.45 | L126: 773.4 | M126: 1.24529
A127: 117 | B127: DCMSHRIRAM | C127: 967.25 | D127: 970.25 | E127: 958.15 | F127: 949.05 | G127: 936.95 | H127: 979.35 | I127: 991.45 | J127: 1000.55 | K127: 982.35 | L127: 961.15 | M127: 0.82899
A128: 118 | B128: DLF | C128: 357.35 | D128: 357.20 | E128: 353.65 | F128: 349.95 | G128: 346.40 | H128: 360.90 | I128: 364.45 | J128: 368.15 | K128: 360.75 | L128: 353.5 | M128: 23.03596
A129: 119 | B129: DABUR | C129: 567.9 | D129: 569.28 | E129: 562.77 | F129: 557.63 | G129: 551.12 | H129: 574.42 | I129: 580.93 | J129: 586.07 | K129: 575.8 | L129: 564.15 | M129: 14.40874
A130: 120 | B130: DALBHARAT | C130: 1549.75 | D130: 1561.90 | E130: 1528.70 | F130: 1507.65 | G130: 1474.45 | H130: 1582.95 | I130: 1616.15 | J130: 1637.20 | K130: 1595.1 | L130: 1540.85 | M130: 1.50588
A131: 121 | B131: DEEPAKNTR | C131: 1849.85 | D131: 1835.28 | E131: 1806.57 | F131: 1763.28 | G131: 1734.57 | H131: 1878.57 | I131: 1907.28 | J131: 1950.57 | K131: 1864 | L131: 1792 | M131: 13.82266
A132: 122 | B132: DELTACORP | C132: 184.6 | D132: 182.28 | E132: 178.82 | F132: 173.03 | G132: 169.57 | H132: 188.07 | I132: 191.53 | J132: 197.32 | K132: 185.75 | L132: 176.5 | M132: 60.57461
A133: 123 | B133: DEVYANI | C133: 162.95 | D133: 165.12 | E133: 160.23 | F133: 157.52 | G133: 152.63 | H133: 167.83 | I133: 172.72 | J133: 175.43 | K133: 170 | L133: 162.4 | M133: 11.51972
A134: 124 | B134: DHANI | C134: 37.65 | D134: 37.25 | E134: 36.50 | F134: 35.35 | G134: 34.60 | H134: 38.40 | I134: 39.15 | J134: 40.30 | K134: 38 | L134: 36.1 | M134: 41.78668
A135: 125 | B135: DBL | C135: 220.65 | D135: 218.90 | E135: 215.80 | F135: 210.95 | G135: 207.85 | H135: 223.75 | I135: 226.85 | J135: 231.70 | K135: 222 | L135: 214.05 | M135: 2.86852
A136: 126 | B136: DIVISLAB | C136: 3774.3 | D136: 3784.77 | E136: 3751.53 | F136: 3728.77 | G136: 3695.53 | H136: 3807.53 | I136: 3840.77 | J136: 3863.53 | K136: 3818 | L136: 3762 | M136: 1.11963
A137: 127 | B137: DIXON | C137: 3764.05 | D137: 3790.68 | E137: 3726.37 | F137: 3688.68 | G137: 3624.37 | H137: 3828.37 | I137: 3892.68 | J137: 3930.37 | K137: 3855 | L137: 3753 | M137: 1.87799
A138: 128 | B138: LALPATHLAB | C138: 2098 | D138: 2099.77 | E138: 2074.53 | F138: 2051.07 | G138: 2025.83 | H138: 2123.23 | I138: 2148.47 | J138: 2171.93 | K138: 2125 | L138: 2076.3 | M138: 1.89571
A139: 129 | B139: DRREDDY | C139: 4330.55 | D139: 4340.47 | E139: 4290.08 | F139: 4249.62 | G139: 4199.23 | H139: 4380.93 | I139: 4431.32 | J139: 4471.78 | K139: 4390.85 | L139: 4300 | M139: 3.45382
A140: 130 | B140: EIDPARRY | C140: 563.55 | D140: 565.50 | E140: 550.10 | F140: 536.65 | G140: 521.25 | H140: 578.95 | I140: 594.35 | J140: 607.80 | K140: 580.9 | L140: 552.05 | M140: 9.37112
A141: 131 | B141: EIHOTEL | C141: 144.1 | D141: 142.38 | E141: 140.27 | F141: 136.43 | G141: 134.32 | H141: 146.22 | I141: 148.33 | J141: 152.17 | K141: 144.5 | L141: 138.55 | M141: 6.98907
A142: 132 | B142: EPL | C142: 180.05 | D142: 182.10 | E142: 176.20 | F142: 172.35 | G142: 166.45 | H142: 185.95 | I142: 191.85 | J142: 195.70 | K142: 188 | L142: 178.25 | M142: 3.38845
A143: 133 | B143: EASEMYTRIP | C143: 402.65 | D143: 403.22 | E143: 398.43 | F143: 394.22 | G143: 389.43 | H143: 407.43 | I143: 412.22 | J143: 416.43 | K143: 408 | L143: 399 | M143: 10.14448
A144: 134 | B144: EDELWEISS | C144: 56.25 | D144: 56.57 | E144: 55.68 | F144: 55.12 | G144: 54.23 | H144: 57.13 | I144: 58.02 | J144: 58.58 | K144: 57.45 | L144: 56 | M144: 3.93739
A145: 135 | B145: EICHERMOT | C145: 3086.7 | D145: 3102.90 | E145: 3051.90 | F145: 3017.10 | G145: 2966.10 | H145: 3137.70 | I145: 3188.70 | J145: 3223.50 | K145: 3153.9 | L145: 3068.1 | M145: 6.23585
A146: 136 | B146: ELGIEQUIP | C146: 368.95 | D146: 370.53 | E146: 364.57 | F146: 360.18 | G146: 354.22 | H146: 374.92 | I146: 380.88 | J146: 385.27 | K146: 376.5 | L146: 366.15 | M146: 2.11554
A147: 137 | B147: EMAMILTD | C147: 473.4 | D147: 471.53 | E147: 467.62 | F147: 461.83 | G147: 457.92 | H147: 477.32 | I147: 481.23 | J147: 487.02 | K147: 475.45 | L147: 465.75 | M147: 0.94448
A148: 138 | B148: ENDURANCE | C148: 1480.95 | D148: 1477.08 | E148: 1464.07 | F148: 1447.18 | G148: 1434.17 | H148: 1493.97 | I148: 1506.98 | J148: 1523.87 | K148: 1490.1 | L148: 1460.2 | M148: 0.44977
A149: 139 | B149: ENGINERSIN | C149: 68.1 | D149: 67.95 | E149: 66.65 | F149: 65.20 | G149: 63.90 | H149: 69.40 | I149: 70.70 | J149: 72.15 | K149: 69.25 | L149: 66.5 | M149: 11.79005
A150: 140 | B150: EQUITAS | C150: 99.35 | D150: 98.38 | E150: 96.87 | F150: 94.38 | G150: 92.87 | H150: 100.87 | I150: 102.38 | J150: 104.87 | K150: 99.9 | L150: 95.9 | M150: 10.96952
A151: 141 | B151: EQUITASBNK | C151: 45.3 | D151: 45.90 | E151: 44.00 | F151: 42.70 | G151: 40.80 | H151: 47.20 | I151: 49.10 | J151: 50.40 | K151: 47.8 | L151: 44.6 | M151: 24.05168
A152: 142 | B152: ERIS | C152: 680.35 | D152: 682.47 | E152: 672.93 | F152: 665.52 | G152: 655.98 | H152: 689.88 | I152: 699.42 | J152: 706.83 | K152: 692 | L152: 675.05 | M152: 0.10756
A153: 143 | B153: ESCORTS | C153: 1692.4 | D153: 1685.58 | E153: 1658.32 | F153: 1624.23 | G153: 1596.97 | H153: 1719.67 | I153: 1746.93 | J153: 1781.02 | K153: 1712.85 | L153: 1651.5 | M153: 3.76172
A154: 144 | B154: EXIDEIND | C154: 150.8 | D154: 150.82 | E154: 149.73 | F154: 148.67 | G154: 147.58 | H154: 151.88 | I154: 152.97 | J154: 154.03 | K154: 151.9 | L154: 149.75 | M154: 12.57932
A155: 145 | B155: FDC | C155: 252.4 | D155: 252.95 | E155: 251.05 | F155: 249.70 | G155: 247.80 | H155: 254.30 | I155: 256.20 | J155: 257.55 | K155: 254.85 | L155: 251.6 | M155: 0.25253
A156: 146 | B156: NYKAA | C156: 1433.9 | D156: 1430.97 | E156: 1407.93 | F156: 1381.97 | G156: 1358.93 | H156: 1456.93 | I156: 1479.97 | J156: 1505.93 | K156: 1454 | L156: 1405 | M156: 3.13316
A157: 147 | B157: FEDERALBNK | C157: 107.35 | D157: 106.95 | E157: 105.90 | F157: 104.45 | G157: 103.40 | H157: 108.40 | I157: 109.45 | J157: 110.90 | K157: 108 | L157: 105.5 | M157: 115.01496
A158: 148 | B158: FACT | C158: 104.15 | D158: 104.25 | E158: 102.60 | F158: 101.05 | G158: 99.40 | H158: 105.80 | I158: 107.45 | J158: 109.00 | K158: 105.9 | L158: 102.7 | M158: 0.98875
A159: 149 | B159: FINEORG | C159: 5130.8 | D159: 5151.72 | E159: 5089.08 | F159: 5047.37 | G159: 4984.73 | H159: 5193.43 | I159: 5256.07 | J159: 5297.78 | K159: 5214.35 | L159: 5110 | M159: 0.31577
A160: 150 | B160: FINCABLES | C160: 408.3 | D160: 409.90 | E160: 403.80 | F160: 399.30 | G160: 393.20 | H160: 414.40 | I160: 420.50 | J160: 425.00 | K160: 416 | L160: 405.4 | M160: 1.39793
A161: 151 | B161: FINPIPE | C161: 131.9 | D161: 133.13 | E161: 130.27 | F161: 128.63 | G161: 125.77 | H161: 134.77 | I161: 137.63 | J161: 139.27 | K161: 136 | L161: 131.5 | M161: 13.79484
A162: 152 | B162: FSL | C162: 110.55 | D162: 109.72 | E162: 108.13 | F162: 105.72 | G162: 104.13 | H162: 112.13 | I162: 113.72 | J162: 116.13 | K162: 111.3 | L162: 107.3 | M162: 47.54252
A163: 153 | B163: FORTIS | C163: 275.8 | D163: 277.32 | E163: 273.58 | F163: 271.37 | G163: 267.63 | H163: 279.53 | I163: 283.27 | J163: 285.48 | K163: 281.05 | L163: 275.1 | M163: 4.64826
A164: 154 | B164: GRINFRA | C164: 1251.6 | D164: 1250.15 | E164: 1242.10 | F164: 1232.60 | G164: 1224.55 | H164: 1259.65 | I164: 1267.70 | J164: 1277.20 | K164: 1258.2 | L164: 1240.65 | M164: 0.09822
A165: 155 | B165: GAIL | C165: 147 | D165: 145.77 | E165: 144.03 | F165: 141.07 | G165: 139.33 | H165: 148.73 | I165: 150.47 | J165: 153.43 | K165: 147.5 | L165: 142.8 | M165: 135.4494
A166: 156 | B166: GMMPFAUDLR | C166: 1429 | D166: 1435.67 | E166: 1413.33 | F166: 1397.67 | G166: 1375.33 | H166: 1451.33 | I166: 1473.67 | J166: 1489.33 | K166: 1458 | L166: 1420 | M166: 0.44604
A167: 157 | B167: GMRINFRA | C167: 35.8 | D167: 35.58 | E167: 35.02 | F167: 34.23 | G167: 33.67 | H167: 36.37 | I167: 36.93 | J167: 37.72 | K167: 36.15 | L167: 34.8 | M167: 82.66996
A168: 158 | B168: GALAXYSURF | C168: 3109.15 | D168: 3087.67 | E168: 3051.38 | F168: 2993.62 | G168: 2957.33 | H168: 3145.43 | I168: 3181.72 | J168: 3239.48 | K168: 3123.95 | L168: 3029.9 | M168: 0.19429
A169: 159 | B169: GARFIBRES | C169: 3328.05 | D169: 3354.08 | E169: 3288.17 | F169: 3248.28 | G169: 3182.37 | H169: 3393.97 | I169: 3459.88 | J169: 3499.77 | K169: 3420 | L169: 3314.2 | M169: 0.0481
A170: 160 | B170: GICRE | C170: 116.85 | D170: 116.42 | E170: 115.18 | F170: 113.52 | G170: 112.28 | H170: 118.08 | I170: 119.32 | J170: 120.98 | K170: 117.65 | L170: 114.75 | M170: 0.92664
A171: 161 | B171: GLAND | C171: 2227.7 | D171: 2247.07 | E171: 2199.68 | F171: 2171.67 | G171: 2124.28 | H171: 2275.08 | I171: 2322.47 | J171: 2350.48 | K171: 2294.45 | L171: 2219.05 | M171: 4.00159
A172: 162 | B172: GLAXO | C172: 1495.7 | D172: 1498.57 | E172: 1485.13 | F172: 1474.57 | G172: 1461.13 | H172: 1509.13 | I172: 1522.57 | J172: 1533.13 | K172: 1512 | L172: 1488 | M172: 0.26294
A173: 163 | B173: GLS | C173: 471.4 | D173: 470.03 | E173: 466.12 | F173: 460.83 | G173: 456.92 | H173: 475.32 | I173: 479.23 | J173: 484.52 | K173: 473.95 | L173: 464.75 | M173: 0.23064
A174: 164 | B174: GLENMARK | C174: 374.1 | D174: 372.47 | E174: 368.63 | F174: 363.17 | G174: 359.33 | H174: 377.93 | I174: 381.77 | J174: 387.23 | K174: 376.3 | L174: 367 | M174: 8.44865
A175: 165 | B175: GOCOLORS | C175: 995.55 | D175: 996.97 | E175: 987.93 | F175: 980.32 | G175: 971.28 | H175: 1004.58 | I175: 1013.62 | J175: 1021.23 | K175: 1006 | L175: 989.35 | M175: 0.10659
A176: 166 | B176: GODFRYPHLP | C176: 1112.55 | D176: 1120.78 | E176: 1096.57 | F176: 1080.58 | G176: 1056.37 | H176: 1136.77 | I176: 1160.98 | J176: 1176.97 | K176: 1145 | L176: 1104.8 | M176: 0.43546
A177: 167 | B177: GODREJAGRO | C177: 506.35 | D177: 505.28 | E177: 501.67 | F177: 496.98 | G177: 493.37 | H177: 509.97 | I177: 513.58 | J177: 518.27 | K177: 508.9 | L177: 500.6 | M177: 0.48603
A178: 168 | B178: GODREJCP | C178: 868.7 | D178: 873.52 | E178: 859.18 | F178: 849.67 | G178: 835.33 | H178: 883.03 | I178: 897.37 | J178: 906.88 | K178: 887.85 | L178: 864 | M178: 6.63666
A179: 169 | B179: GODREJIND | C179: 457.15 | D179: 458.87 | E179: 454.33 | F179: 451.52 | G179: 446.98 | H179: 461.68 | I179: 466.22 | J179: 469.03 | K179: 463.4 | L179: 456.05 | M179: 0.24871
A180: 170 | B180: GODREJPROP | C180: 1432.45 | D180: 1432.20 | E180: 1415.45 | F180: 1398.45 | G180: 1381.70 | H180: 1449.20 | I180: 1465.95 | J180: 1482.95 | K180: 1448.95 | L180: 1415.2 | M180: 3.33854
A181: 171 | B181: GRANULES | C181: 302.85 | D181: 302.35 | E181: 297.70 | F181: 292.55 | G181: 287.90 | H181: 307.50 | I181: 312.15 | J181: 317.30 | K181: 307 | L181: 297.2 | M181: 16.62322
A182: 172 | B182: GRAPHITE | C182: 409.35 | D182: 408.27 | E182: 403.78 | F182: 398.22 | G182: 393.73 | H182: 413.83 | I182: 418.32 | J182: 423.88 | K182: 412.75 | L182: 402.7 | M182: 2.87234
A183: 173 | B183: GRASIM | C183: 1498.5 | D183: 1500.58 | E183: 1479.82 | F183: 1461.13 | G183: 1440.37 | H183: 1519.27 | I183: 1540.03 | J183: 1558.72 | K183: 1521.35 | L183: 1481.9 | M183: 12.00512
A184: 174 | B184: GESHIP | C184: 464.3 | D184: 466.03 | E184: 452.57 | F184: 440.83 | G184: 427.37 | H184: 477.77 | I184: 491.23 | J184: 502.97 | K184: 479.5 | L184: 454.3 | M184: 11.88169
A185: 175 | B185: GRINDWELL | C185: 1735.15 | D185: 1735.92 | E185: 1720.83 | F185: 1706.52 | G185: 1691.43 | H185: 1750.23 | I185: 1765.32 | J185: 1779.63 | K185: 1751 | L185: 1721.6 | M185: 0.51723
A186: 176 | B186: GUJALKALI | C186: 726.45 | D186: 729.45 | E186: 717.90 | F186: 709.35 | G186: 697.80 | H186: 738.00 | I186: 749.55 | J186: 758.10 | K186: 741 | L186: 720.9 | M186: 3.33795
A187: 177 | B187: GAEL | C187: 301.2 | D187: 302.95 | E187: 296.60 | F187: 292.00 | G187: 285.65 | H187: 307.55 | I187: 313.90 | J187: 318.50 | K187: 309.3 | L187: 298.35 | M187: 1.91951
A188: 178 | B188: FLUOROCHEM | C188: 3334.6 | D188: 3320.95 | E188: 3263.90 | F188: 3193.20 | G188: 3136.15 | H188: 3391.65 | I188: 3448.70 | J188: 3519.40 | K188: 3378 | L188: 3250.25 | M188: 2.38336
A189: 179 | B189: GUJGASLTD | C189: 455.05 | D189: 454.83 | E189: 450.42 | F189: 445.78 | G189: 441.37 | H189: 459.47 | I189: 463.88 | J189: 468.52 | K189: 459.25 | L189: 450.2 | M189: 9.11558
A190: 180 | B190: GNFC | C190: 672.05 | D190: 672.85 | E190: 664.20 | F190: 656.35 | G190: 647.70 | H190: 680.70 | I190: 689.35 | J190: 697.20 | K190: 681.5 | L190: 665 | M190: 15.84292
A191: 181 | B191: GPPL | C191: 81.4 | D191: 81.57 | E191: 80.13 | F191: 78.87 | G191: 77.43 | H191: 82.83 | I191: 84.27 | J191: 85.53 | K191: 83 | L191: 80.3 | M191: 2.88193
A192: 182 | B192: GSFC | C192: 157.5 | D192: 158.23 | E192: 153.77 | F192: 150.03 | G192: 145.57 | H192: 161.97 | I192: 166.43 | J192: 170.17 | K192: 162.7 | L192: 154.5 | M192: 68.01297
A193: 183 | B193: GSPL | C193: 228.8 | D193: 232.23 | E193: 224.62 | F193: 220.43 | G193: 212.82 | H193: 236.42 | I193: 244.03 | J193: 248.22 | K193: 239.85 | L193: 228.05 | M193: 14.49823
A194: 184 | B194: HEG | C194: 1108.85 | D194: 1112.55 | E194: 1098.10 | F194: 1087.35 | G194: 1072.90 | H194: 1123.30 | I194: 1137.75 | J194: 1148.50 | K194: 1127 | L194: 1101.8 | M194: 1.01516
A195: 185 | B195: HCLTECH | C195: 930.65 | D195: 925.55 | E195: 919.10 | F195: 907.55 | G195: 901.10 | H195: 937.10 | I195: 943.55 | J195: 955.10 | K195: 932 | L195: 914 | M195: 21.20224
A196: 186 | B196: HDFCAMC | C196: 1860.35 | D196: 1868.87 | E196: 1831.48 | F196: 1802.62 | G196: 1765.23 | H196: 1897.73 | I196: 1935.12 | J196: 1963.98 | K196: 1906.25 | L196: 1840 | M196: 6.50149
A197: 187 | B197: HDFCBANK | C197: 1396.6 | D197: 1394.83 | E197: 1385.07 | F197: 1373.53 | G197: 1363.77 | H197: 1406.37 | I197: 1416.13 | J197: 1427.67 | K197: 1404.6 | L197: 1383.3 | M197: 50.71563
A198: 188 | B198: HDFCLIFE | C198: 526.75 | D198: 529.58 | E198: 523.17 | F198: 519.58 | G198: 513.17 | H198: 533.17 | I198: 539.58 | J198: 543.17 | K198: 536 | L198: 526 | M198: 38.00562
A199: 189 | B199: HFCL | C199: 63.2 | D199: 63.43 | E199: 62.17 | F199: 61.13 | G199: 59.87 | H199: 64.47 | I199: 65.73 | J199: 66.77 | K199: 64.7 | L199: 62.4 | M199: 111.78314
A200: 190 | B200: HLEGLAS | C200: 3260.05 | D200: 3274.88 | E200: 3237.77 | F200: 3215.48 | G200: 3178.37 | H200: 3297.17 | I200: 3334.28 | J200: 3356.57 | K200: 3312 | L200: 3252.6 | M200: 0.07131
A201: 191 | B201: HAPPSTMNDS | C201: 970.9 | D201: 976.12 | E201: 958.28 | F201: 945.67 | G201: 927.83 | H201: 988.73 | I201: 1006.57 | J201: 1019.18 | K201: 993.95 | L201: 963.5 | M201: 5.58811
A202: 192 | B202: HATHWAY | C202: 16.9 | D202: 17.00 | E202: 16.70 | F202: 16.50 | G202: 16.20 | H202: 17.20 | I202: 17.50 | J202: 17.70 | K202: 17.3 | L202: 16.8 | M202: 9.47234
A203: 193 | B203: HATSUN | C203: 903.1 | D203: 908.03 | E203: 895.07 | F203: 887.03 | G203: 874.07 | H203: 916.07 | I203: 929.03 | J203: 937.07 | K203: 921 | L203: 900 | M203: 0.11213
A204: 194 | B204: HAVELLS | C204: 1226.3 | D204: 1215.75 | E204: 1200.75 | F204: 1175.20 | G204: 1160.20 | H204: 1241.30 | I204: 1256.30 | J204: 1281.85 | K204: 1230.75 | L204: 1190.2 | M204: 10.23851
A205: 195 | B205: HEMIPROP | C205: 104.25 | D205: 104.38 | E205: 103.47 | F205: 102.68 | G205: 101.77 | H205: 105.17 | I205: 106.08 | J205: 106.87 | K205: 105.3 | L205: 103.6 | M205: 2.19058
A206: 196 | B206: HEROMOTOCO | C206: 2838.85 | D206: 2848.70 | E206: 2821.60 | F206: 2804.35 | G206: 2777.25 | H206: 2865.95 | I206: 2893.05 | J206: 2910.30 | K206: 2875.8 | L206: 2831.45 | M206: 4.21977
... 320 more rows

Sheet Bulk Deals
E6: Back To Main Page
A7: Subject : | B7: BULK DEAL | D7: =Main!B10 -> 2022-07-26
A9: Date | B9: Scrip code | C9: Scrip Name | D9: Client Name | E9: Buy / Sell | F9: Quantity Traded | G9: Trade Price / Wt.Avg.trade price | H9: Exchange
A10: 2022-07-25 | B10: 531156 | C10: ALFAVIO | D10: ANKIT GUPTA | E10: SELL | F10: 35,034 | G10: 205.76 | H10: BSE
A11: 2022-07-25 | B11: 540135 | C11: ARCFIN | D11: ALPHA LEON ENTERPRISES LLP | E11: SELL | F11: 2,341,639 | G11: 1.28 | H11: BSE
A12: 2022-07-25 | B12: 540135 | C12: ARCFIN | D12: ALPHA LEON ENTERPRISES LLP | E12: BUY | F12: 3,000,000 | G12: 1.28 | H12: BSE
A13: 2022-07-25 | B13: 540135 | C13: ARCFIN | D13: YASHKUMAR POONAMCHAND GOLECHHA | E13: BUY | F13: 3,000,000 | G13: 1.28 | H13: BSE
A14: 2022-07-25 | B14: 539559 | C14: DDIL | D14: DINESH RIKHABCHAND SOLANKI | E14: SELL | F14: 202,100 | G14: 44.25 | H14: BSE
A15: 2022-07-25 | B15: 539559 | C15: DDIL | D15: SHAIBAL GHOSH | E15: BUY | F15: 26,043 | G15: 43.28 | H15: BSE
A16: 2022-07-25 | B16: 539559 | C16: DDIL | D16: SANJAY SHAH | E16: BUY | F16: 41,500 | G16: 40.05 | H16: BSE
A17: 2022-07-25 | B17: 539559 | C17: DDIL | D17: BHAVISHYA ECOMMERCE PRIVATE LIMITED | E17: BUY | F17: 515,979 | G17: 43.6 | H17: BSE
A18: 2022-07-25 | B18: 539559 | C18: DDIL | D18: HITESH DASANI | E18: SELL | F18: 39,123 | G18: 40.33 | H18: BSE
A19: 2022-07-25 | B19: 539559 | C19: DDIL | D19: SWAPAN KARMAKAR | E19: SELL | F19: 42,146 | G19: 44.25 | H19: BSE
A20: 2022-07-25 | B20: 539559 | C20: DDIL | D20: JAI KUMAR BAID | E20: SELL | F20: 55,495 | G20: 44.25 | H20: BSE
A21: 2022-07-25 | B21: 539559 | C21: DDIL | D21: RASHMI PURI | E21: SELL | F21: 88,000 | G21: 40.05 | H21: BSE
A22: 2022-07-25 | B22: 539559 | C22: DDIL | D22: PREETI JAIN | E22: SELL | F22: 640,149 | G22: 44.25 | H22: BSE
A23: 2022-07-25 | B23: 539559 | C23: DDIL | D23: ZENAB AIYUB YACOOBALI | E23: SELL | F23: 16,847 | G23: 40.25 | H23: BSE
A24: 2022-07-25 | B24: 539559 | C24: DDIL | D24: SALONI LOHIA | E24: BUY | F24: 100,000 | G24: 44.25 | H24: BSE
A25: 2022-07-25 | B25: 539559 | C25: DDIL | D25: SAMITA LOHIA | E25: BUY | F25: 100,000 | G25: 44.25 | H25: BSE
A26: 2022-07-25 | B26: 539559 | C26: DDIL | D26: RAKHI LOHIA | E26: BUY | F26: 100,000 | G26: 44.25 | H26: BSE
A27: 2022-07-25 | B27: 539559 | C27: DDIL | D27: PUSPA DEVI LOHIA | E27: BUY | F27: 100,000 | G27: 44.25 | H27: BSE
A28: 2022-07-25 | B28: 539559 | C28: DDIL | D28: MADHUMITA LOHIA | E28: BUY | F28: 100,000 | G28: 44.25 | H28: BSE
A29: 2022-07-25 | B29: 542724 | C29: EARUM | D29: PAYAL BHUMISHTH PATEL | E29: SELL | F29: 500,000 | G29: 3.27 | H29: BSE
A30: 2022-07-25 | B30: 536751 | C30: FIVEXTRADE | D30: ARTLINK VINTRADE LIMITED | E30: SELL | F30: 246,903 | G30: 0.72 | H30: BSE
A31: 2022-07-25 | B31: 531137 | C31: GEMSI | D31: RAMESH BHANDAPPA MUNNOLI | E31: SELL | F31: 475,000 | G31: 0.77 | H31: BSE
A32: 2022-07-25 | B32: 531137 | C32: GEMSI | D32: BASAVARAJ CHANNAPPA MAHASHETTI | E32: SELL | F32: 991,011 | G32: 0.77 | H32: BSE
A33: 2022-07-25 | B33: 542918 | C33: GIANLIFE | D33: ARUN KUMAR GUPTA | E33: SELL | F33: 33,000 | G33: 33.04 | H33: BSE
A34: 2022-07-25 | B34: 532467 | C34: HAZOOR | D34: PARAM TREASURY (INDIA) PRIVATE LIMITED | E34: BUY | F34: 51,000 | G34: 38.7 | H34: BSE
A35: 2022-07-25 | B35: 532467 | C35: HAZOOR | D35: BHUVNESHWARI VYAPAAR PVT.LTD | E35: SELL | F35: 60,250 | G35: 38.7 | H35: BSE
A36: 2022-07-25 | B36: 524590 | C36: HEMORGANIC | D36: ALPHA LEON ENTERPRISES LLP | E36: SELL | F36: 24,732 | G36: 48.4 | H36: BSE
A37: 2022-07-25 | B37: 524590 | C37: HEMORGANIC | D37: ALPHA LEON ENTERPRISES LLP | E37: BUY | F37: 7,500 | G37: 48.4 | H37: BSE
A38: 2022-07-25 | B38: 540377 | C38: IFL | D38: MOHAMMED MOHSIN HAJIMOHAMMED AJMERWALA | E38: SELL | F38: 18,000 | G38: 104.63 | H38: BSE
A39: 2022-07-25 | B39: 540377 | C39: IFL | D39: RADHIKA AJAY MARUDA | E39: BUY | F39: 18,000 | G39: 105 | H39: BSE
A40: 2022-07-25 | B40: 540377 | C40: IFL | D40: RANJANBEN JAYANTIBHAI VAGHELA | E40: BUY | F40: 24,000 | G40: 104.84 | H40: BSE
A41: 2022-07-25 | B41: 540377 | C41: IFL | D41: AKASH PRAJAPATI | E41: BUY | F41: 18,000 | G41: 104.98 | H41: BSE
A42: 2022-07-25 | B42: 540377 | C42: IFL | D42: SUMANBEN HARESHBHAI KABEERA | E42: SELL | F42: 18,000 | G42: 104.85 | H42: BSE
A43: 2022-07-25 | B43: 539433 | C43: INDOGLOBAL | D43: NITA SHRADBHAI MEHTA | E43: BUY | F43: 41,000 | G43: 9.6 | H43: BSE
A44: 2022-07-25 | B44: 539433 | C44: INDOGLOBAL | D44: MADHAV N TEMBHEKAR | E44: SELL | F44: 95,000 | G44: 9.58 | H44: BSE
A45: 2022-07-25 | B45: 543286 | C45: JETMALL | D45: SURESHCHAND SUDARSHAN | E45: SELL | F45: 42,000 | G45: 19.25 | H45: BSE
A46: 2022-07-25 | B46: 543286 | C46: JETMALL | D46: SURESHCHAND SUDARSHAN | E46: BUY | F46: 36,000 | G46: 19.06 | H46: BSE
A47: 2022-07-25 | B47: 543286 | C47: JETMALL | D47: BHARAT KUMAR PUKHRAJJI | E47: SELL | F47: 60,000 | G47: 19 | H47: BSE
A48: 2022-07-25 | B48: 543286 | C48: JETMALL | D48: RATANCHAND LODHA * | E48: BUY | F48: 60,000 | G48: 19.06 | H48: BSE
A49: 2022-07-25 | B49: 543286 | C49: JETMALL | D49: TARUNA PANKAJ TATED | E49: BUY | F49: 36,000 | G49: 18.93 | H49: BSE
A50: 2022-07-25 | B50: 543286 | C50: JETMALL | D50: TARUNA PANKAJ TATED | E50: SELL | F50: 36,000 | G50: 18.02 | H50: BSE
A51: 2022-07-25 | B51: 541161 | C51: KBCGLOBAL | D51: ANUSTUP TRADING PRIVATE LIMITED | E51: BUY | F51: 4,099,001 | G51: 2.97 | H51: BSE
A52: 2022-07-25 | B52: 541161 | C52: KBCGLOBAL | D52: ANUSTUP TRADING PRIVATE LIMITED | E52: SELL | F52: 4,773,389 | G52: 2.92 | H52: BSE
A53: 2022-07-25 | B53: 543273 | C53: KMEW | D53: HARISHKUMARGUPTA | E53: BUY | F53: 57,000 | G53: 383.48 | H53: BSE
A54: 2022-07-25 | B54: 543273 | C54: KMEW | D54: KISHORE KUMAR GIRDHARILAL | E54: SELL | F54: 69,000 | G54: 355.46 | H54: BSE
A55: 2022-07-25 | B55: 531328 | C55: KRETTOSYS | D55: CHEVVUSREENIVASULAREDDY | E55: SELL | F55: 890,000 | G55: 0.58 | H55: BSE
A56: 2022-07-25 | B56: 535387 | C56: LAKHOTIA | D56: INTENSIVE FINANCE PRIVATE LIMITED | E56: SELL | F56: 195,168 | G56: 16.61 | H56: BSE
A57: 2022-07-25 | B57: 535387 | C57: LAKHOTIA | D57: KAVITA KHAJANCHI | E57: BUY | F57: 195,500 | G57: 16.61 | H57: BSE
A58: 2022-07-25 | B58: 540360 | C58: LLFICL | D58: DEEP RAJENDRAKUMAR SHAH | E58: BUY | F58: 79,600 | G58: 126.45 | H58: BSE
A59: 2022-07-25 | B59: 540730 | C59: MEHAI | D59: DYNAMIC SERVICES & SECURITY LIMITED | E59: SELL | F59: 144,857 | G59: 50.15 | H59: BSE
A60: 2022-07-25 | B60: 541337 | C60: MILEFUR | D60: DIVYA DIGAMBAR SONGHARE | E60: SELL | F60: 99,000 | G60: 7.37 | H60: BSE
A61: 2022-07-25 | B61: 543351 | C61: NBL | D61: GKPR TRADEX PRIVATE LIMITED | E61: BUY | F61: 17,600 | G61: 55.53 | H61: BSE
A62: 2022-07-25 | B62: 543351 | C62: NBL | D62: EUROPLUS ONE REALITY PRIVATE LIMITED | E62: BUY | F62: 19,200 | G62: 55.54 | H62: BSE
A63: 2022-07-25 | B63: 543351 | C63: NBL | D63: SEEMA LOKESH KAPOOR | E63: SELL | F63: 9,600 | G63: 55.63 | H63: BSE
A64: 2022-07-25 | B64: 543351 | C64: NBL | D64: LOKESH INDER KAPOOR | E64: SELL | F64: 27,200 | G64: 55.5 | H64: BSE
A65: 2022-07-25 | B65: 543540 | C65: PGCRL | D65: SUMICKSHA | E65: BUY | F65: 12,600 | G65: 237.12 | H65: BSE
A66: 2022-07-25 | B66: 543540 | C66: PGCRL | D66: SUMICKSHA | E66: SELL | F66: 10,200 | G66: 241.81 | H66: BSE
A67: 2022-07-25 | B67: 543540 | C67: PGCRL | D67: NIRAJ RAJNIKANT SHAH | E67: SELL | F67: 33,000 | G67: 217.55 | H67: BSE
A68: 2022-07-25 | B68: 541601 | C68: RAJNISH | D68: TANGO COMMOSALES LLP | E68: BUY | F68: 489,388 | G68: 19.07 | H68: BSE
A69: 2022-07-25 | B69: 541601 | C69: RAJNISH | D69: TANGO COMMOSALES LLP | E69: SELL | F69: 957,195 | G69: 19.2 | H69: BSE
A70: 2022-07-25 | B70: 540821 | C70: SADHNA | D70: SADHNA BIO OILS PRIVATE LIMITED | E70: SELL | F70: 850,000 | G70: 17.79 | H70: BSE
A71: 2022-07-25 | B71: 542753 | C71: SEACOAST | D71: SHAH NISHITH | E71: SELL | F71: 377,952 | G71: 2.26 | H71: BSE
A72: 2022-07-25 | B72: 542753 | C72: SEACOAST | D72: SHAH NISHITH | E72: BUY | F72: 3,200,000 | G72: 2.27 | H72: BSE
A73: 2022-07-25 | B73: 542753 | C73: SEACOAST | D73: PARASMAL KUNDANMAL SHAH | E73: SELL | F73: 2,000,000 | G73: 2.25 | H73: BSE
A74: 2022-07-25 | B74: 542753 | C74: SEACOAST | D74: NEXPACT LIMITED | E74: BUY | F74: 2,000,000 | G74: 2.25 | H74: BSE
A75: 2022-07-25 | B75: 542753 | C75: SEACOAST | D75: SILVER STALLION LIMITED | E75: SELL | F75: 2,867,950 | G75: 2.27 | H75: BSE
A76: 2022-07-25 | B76: 524156 | C76: TCMLMTD | D76: KIFS ENTERPRISE | E76: BUY | F76: 50,000 | G76: 52.75 | H76: BSE
A77: 2022-07-25 | B77: 539310 | C77: THINKINK | D77: TEAM INDIA MANAGERS LTD | E77: BUY | F77: 150,000 | G77: 68.25 | H77: BSE
A78: 2022-07-25 | B78: 539310 | C78: THINKINK | D78: L7 HITECH PRIVATE LIMITED | E78: SELL | F78: 150,000 | G78: 68.3 | H78: BSE
A79: 2022-07-25 | B79: 539040 | C79: TTIL | D79: SHERWOOD SECURITIES PVT LTD | E79: SELL | F79: 80,772 | G79: 17.39 | H79: BSE
A80: 2022-07-25 | B80: 539040 | C80: TTIL | D80: AVANI PARESH SHAH | E80: BUY | F80: 25,400 | G80: 17.39 | H80: BSE
A81: 2022-07-25 | B81: 539040 | C81: TTIL | D81: TANGO COMMOSALES LLP | E81: BUY | F81: 24,424 | G81: 16.22 | H81: BSE
A82: 2022-07-25 | B82: 539040 | C82: TTIL | D82: ALPHA LEON ENTERPRISES LLP | E82: BUY | F82: 20,000 | G82: 17.39 | H82: BSE
A83: 2022-07-25 | B83: 539040 | C83: TTIL | D83: ALPHA LEON ENTERPRISES LLP | E83: SELL | F83: 20,000 | G83: 15.83 | H83: BSE
A84: 2022-07-25 | B84: 539040 | C84: TTIL | D84: SARVAGAY TEXTILE LLP | E84: BUY | F84: 50,000 | G84: 17.39 | H84: BSE
A85: 2022-07-25 | B85: 539040 | C85: TTIL | D85: SHAH KAMINI HEMANTKUMAR | E85: BUY | F85: 25,000 | G85: 17.01 | H85: BSE
A86: 2022-07-25 | B86: 539040 | C86: TTIL | D86: ZUBER TRADING LLP | E86: BUY | F86: 56,925 | G86: 17.39 | H86: BSE
A87: 2022-07-25 | B87: 539040 | C87: TTIL | D87: INDRAWATI ENTERPRISES PRIVATE LIMITED | E87: SELL | F87: 115,000 | G87: 17.39 | H87: BSE
A88: 2022-07-25 | B88: 539040 | C88: TTIL | D88: DULCET ADVISORY PRIVATE LIMITED | E88: SELL | F88: 129,628 | G88: 17.39 | H88: BSE
A89: 2022-07-25 | B89: 543545 | C89: VEERKRUPA | D89: AKSHAY RAJENDRABHAI OSWAL | E89: SELL | F89: 44,000 | G89: 32.6 | H89: BSE
A90: 2022-07-25 | B90: 543545 | C90: VEERKRUPA | D90: AKSHAY RAJENDRABHAI OSWAL | E90: BUY | F90: 48,000 | G90: 32.37 | H90: BSE
A91: 2022-07-25 | B91: 543545 | C91: VEERKRUPA | D91: BHAVESH A VORA (HUF) | E91: BUY | F91: 76,000 | G91: 32.52 | H91: BSE
A92: 2022-07-25 | B92: 524661 | C92: WELCURE | D92: VIBHU BANSAL . | E92: SELL | F92: 136,200 | G92: 6.39 | H92: BSE
A93: 2022-07-25 | B93: 524661 | C93: WELCURE | D93: PAWAN KUMAR KHURANA | E93: BUY | F93: 140,300 | G93: 6.39 | H93: BSE
A94: 2022-07-22 | B94: ANSALHSG | C94: Ansal Housing and Constru | D94: PARTH INFIN BROKERS PVT LTD | E94: BUY | F94: 212,716 | G94: 7.84 | H94: NSE
A95: 2022-07-22 | B95: ANSALHSG | C95: Ansal Housing and Constru | D95: TOPGAIN FINANCE PRIVATE LIMITED | E95: BUY | F95: 705,871 | G95: 7.89 | H95: NSE
A96: 2022-07-22 | B96: ANSALHSG | C96: Ansal Housing and Constru | D96: TOUCHLINE SECURITIES PRIVATE LIMITED | E96: BUY | F96: 300,000 | G96: 7.97 | H96: NSE
A97: 2022-07-22 | B97: ANSALHSG | C97: Ansal Housing and Constru | D97: ACHINTYA COMMODITIES PRIVATE LIMITED | E97: BUY | F97: 83,017 | G97: 7.82 | H97: NSE
A98: 2022-07-22 | B98: CMMIPL | C98: CMM Infraprojects Limited | D98: MANOJ SUDAMCHAND CHAWLA | E98: BUY | F98: 117,000 | G98: 12.75 | H98: NSE
A99: 2022-07-22 | B99: CMMIPL | C99: CMM Infraprojects Limited | D99: KALPALABDHI SECURITIES PRIVATE LTD | E99: BUY | F99: 144,000 | G99: 12.42 | H99: NSE
A100: 2022-07-22 | B100: GLOBE | C100: Globe Textiles (I) Ltd. | D100: NAKSHATRA GARMENTS PRIVATE LIMITED | E100: BUY | F100: 1,510,859 | G100: 9.56 | H100: NSE
A101: 2022-07-22 | B101: GLOBE | C101: Globe Textiles (I) Ltd. | D101: ANUSTUP TRADING PRIVATE LIMITED | E101: BUY | F101: 1,438,606 | G101: 9.47 | H101: NSE
A102: 2022-07-22 | B102: KCK | C102: Kck Industries Limited | D102: RAJEEV S MAHESHWARI HUF | E102: BUY | F102: 28,000 | G102: 30.1 | H102: NSE
A103: 2022-07-22 | B103: KCK | C103: Kck Industries Limited | D103: NIKUNJ KAUSHIK SHAH | E103: BUY | F103: 56,000 | G103: 30.19 | H103: NSE
A104: 2022-07-22 | B104: KSHITIJPOL | C104: Kshitij Polyline Limited | D104: PRADIP MAHENDRABHAI KAPADIYA | E104: BUY | F104: 93,320 | G104: 30.43 | H104: NSE
A105: 2022-07-22 | B105: KSHITIJPOL | C105: Kshitij Polyline Limited | D105: HARSHADBHAI PANCHAL | E105: BUY | F105: 93,320 | G105: 30.5 | H105: NSE
A106: 2022-07-22 | B106: KSHITIJPOL | C106: Kshitij Polyline Limited | D106: SANGITABEN DUSHYANTBHAI SOLANKI | E106: BUY | F106: 93,320 | G106: 30.45 | H106: NSE
A107: 2022-07-22 | B107: KSHITIJPOL | C107: Kshitij Polyline Limited | D107: KEYUR VINODCHANDRA PARMAR | E107: BUY | F107: 93,320 | G107: 30.53 | H107: NSE
A108: 2022-07-22 | B108: KSHITIJPOL | C108: Kshitij Polyline Limited | D108: DHAVAL HARSHVADAN MEHTA | E108: BUY | F108: 93,320 | G108: 30.52 | H108: NSE
A109: 2022-07-22 | B109: LANCER | C109: Lancer Container Line Ltd | D109: ANUSTUP TRADING PRIVATE LIMITED | E109: BUY | F109: 190,488 | G109: 251.37 | H109: NSE
A110: 2022-07-22 | B110: LIBAS | C110: Libas Consu Products Ltd | D110: P S SHETH | E110: BUY | F110: 10,000 | G110: 25.14 | H110: NSE
A111: 2022-07-22 | B111: LIKHITHA | C111: Likhitha Infrastruc Ltd | D111: VICTUS ENTERPRISE LLP | E111: BUY | F111: 126,815 | G111: 292.61 | H111: NSE
A112: 2022-07-22 | B112: NATHBIOGEN | C112: Nath Bio-Genes (I) Ltd | D112: TAPOVAN FARMS LLP | E112: BUY | F112: 900,000 | G112: 205 | H112: NSE
A113: 2022-07-22 | B113: NAVKARCORP | C113: Navkar Corporation Ltd. | D113: PARTH INFIN BROKERS PVT LTD | E113: BUY | F113: 782,886 | G113: 76.78 | H113: NSE
A114: 2022-07-22 | B114: NDTV | C114: New Delhi Television Limi | D114: XTX MARKETS LLP | E114: BUY | F114: 462,041 | G114: 256.73 | H114: NSE
A115: 2022-07-22 | B115: NDTV | C115: New Delhi Television Limi | D115: GRAVITON RESEARCH CAPITAL LLP | E115: BUY | F115: 452,461 | G115: 254.5 | H115: NSE
A116: 2022-07-22 | B116: PVP | C116: PVP Ventures Limited | D116: MECHNO SALES AGENCIES (P) LTD. | E116: BUY | F116: 1,600,000 | G116: 6 | H116: NSE
A117: 2022-07-22 | B117: VIKASPROP | C117: Vikas Prop & Granite Ltd | D117: VIBRANT SECURITIES PVT. LTD | E117: BUY | F117: 3,738,209 | G117: 0.87 | H117: NSE
A118: 2022-07-22 | B118: VIKASPROP | C118: Vikas Prop & Granite Ltd | D118: TOPGAIN FINANCE PRIVATE LIMITED | E118: BUY | F118: 4,425,436 | G118: 0.83 | H118: NSE
A119: 2022-07-22 | B119: ANSALHSG | C119: Ansal Housing and Constru | D119: HOUSING DEVELOPMENT FINANCE CORPORATION LIMITED | E119: SELL | F119: 602,507 | G119: 7.87 | H119: NSE
A120: 2022-07-22 | B120: ANSALHSG | C120: Ansal Housing and Constru | D120: PARTH INFIN BROKERS PVT LTD | E120: SELL | F120: 490,716 | G120: 8.07 | H120: NSE
A121: 2022-07-22 | B121: ANSALHSG | C121: Ansal Housing and Constru | D121: ACHINTYA COMMODITIES PRIVATE LIMITED | E121: SELL | F121: 374,559 | G121: 7.88 | H121: NSE
A122: 2022-07-22 | B122: ANSALHSG | C122: Ansal Housing and Constru | D122: TOPGAIN FINANCE PRIVATE LIMITED | E122: SELL | F122: 514,710 | G122: 8.12 | H122: NSE
A123: 2022-07-22 | B123: CMMIPL | C123: CMM Infraprojects Limited | D123: KISHAN MUNDRA | E123: SELL | F123: 336,000 | G123: 12.66 | H123: NSE
A124: 2022-07-22 | B124: GLOBE | C124: Globe Textiles (I) Ltd. | D124: ANUSTUP TRADING PRIVATE LIMITED | E124: SELL | F124: 1,438,606 | G124: 9.41 | H124: NSE
A125: 2022-07-22 | B125: GLOBE | C125: Globe Textiles (I) Ltd. | D125: NAKSHATRA GARMENTS PRIVATE LIMITED | E125: SELL | F125: 480,859 | G125: 9.33 | H125: NSE
A126: 2022-07-22 | B126: KCK | C126: Kck Industries Limited | D126: NIKUNJ KAUSHIK SHAH | E126: SELL | F126: 104,000 | G126: 29.79 | H126: NSE
A127: 2022-07-22 | B127: KCK | C127: Kck Industries Limited | D127: RAJEEV S MAHESHWARI HUF | E127: SELL | F127: 28,000 | G127: 30.07 | H127: NSE
A128: 2022-07-22 | B128: KSHITIJPOL | C128: Kshitij Polyline Limited | D128: HARSHADBHAI PANCHAL | E128: SELL | F128: 93,320 | G128: 30.45 | H128: NSE
A129: 2022-07-22 | B129: KSHITIJPOL | C129: Kshitij Polyline Limited | D129: PRADIP MAHENDRABHAI KAPADIYA | E129: SELL | F129: 93,320 | G129: 30.52 | H129: NSE
A130: 2022-07-22 | B130: KSHITIJPOL | C130: Kshitij Polyline Limited | D130: SANGITABEN DUSHYANTBHAI SOLANKI | E130: SELL | F130: 93,320 | G130: 30.43 | H130: NSE
A131: 2022-07-22 | B131: KSHITIJPOL | C131: Kshitij Polyline Limited | D131: KEYUR VINODCHANDRA PARMAR | E131: SELL | F131: 93,320 | G131: 30.5 | H131: NSE
A132: 2022-07-22 | B132: KSHITIJPOL | C132: Kshitij Polyline Limited | D132: BHARAT HEMRAJ GALA | E132: SELL | F132: 93,320 | G132: 29.95 | H132: NSE
A133: 2022-07-22 | B133: KSHITIJPOL | C133: Kshitij Polyline Limited | D133: DHAVAL HARSHVADAN MEHTA | E133: SELL | F133: 93,320 | G133: 30.53 | H133: NSE
A134: 2022-07-22 | B134: KSHITIJPOL | C134: Kshitij Polyline Limited | D134: HEMRAJ BHIMSHI GALA | E134: SELL | F134: 93,320 | G134: 29.95 | H134: NSE
A135: 2022-07-22 | B135: LANCER | C135: Lancer Container Line Ltd | D135: ANUSTUP TRADING PRIVATE LIMITED | E135: SELL | F135: 126,612 | G135: 246.96 | H135: NSE
A136: 2022-07-22 | B136: LIBAS | C136: Libas Consu Products Ltd | D136: P S SHETH | E136: SELL | F136: 160,257 | G136: 25.01 | H136: NSE
A137: 2022-07-22 | B137: NATHBIOGEN | C137: Nath Bio-Genes (I) Ltd | D137: AUTHUM INVESTMENT AND INFRASTRUCTURE LIMITED | E137: SELL | F137: 800,000 | G137: 205 | H137: NSE
A138: 2022-07-22 | B138: NAVKARCORP | C138: Navkar Corporation Ltd. | D138: PARTH INFIN BROKERS PVT LTD | E138: SELL | F138: 782,886 | G138: 77.23 | H138: NSE
A139: 2022-07-22 | B139: NDTV | C139: New Delhi Television Limi | D139: XTX MARKETS LLP | E139: SELL | F139: 469,578 | G139: 257.37 | H139: NSE
A140: 2022-07-22 | B140: NDTV | C140: New Delhi Television Limi | D140: GRAVITON RESEARCH CAPITAL LLP | E140: SELL | F140: 452,461 | G140: 254.66 | H140: NSE
A141: 2022-07-22 | B141: PVP | C141: PVP Ventures Limited | D141: INVESTMENT OPPORTUNITIES V PTE LIMITED | E141: SELL | F141: 6,937,808 | G141: 6.01 | H141: NSE
A142: 2022-07-22 | B142: SONAHISONA | C142: Sona Hi Sona Jewell G Ltd | D142: JAYESH CHINUBHAI SHAH | E142: SELL | F142: 210,000 | G142: 12.1 | H142: NSE
A143: 2022-07-22 | B143: VIKASPROP | C143: Vikas Prop & Granite Ltd | D143: TOPGAIN FINANCE PRIVATE LIMITED | E143: SELL | F143: 2,025,436 | G143: 0.81 | H143: NSE
A144: 2022-07-22 | B144: VIKASPROP | C144: Vikas Prop & Granite Ltd | D144: KOMAL | E144: SELL | F144: 19,275,003 | G144: 0.84 | H144: NSE
A145: 2022-07-22 | B145: VIKASPROP | C145: Vikas Prop & Granite Ltd | D145: VIBRANT SECURITIES PVT. LTD | E145: SELL | F145: 2,000,000 | G145: 0.89 | H145: NSE

Sheet Call Tracker (Equity & F&O)
M5: Back To Main Page
A6: Retail Research Technical Calls & Fundamental Performance Report for the month of July-2022
M7: =Main!B10 -> 2022-07-26
B8: Positional Call
A9: Sr.no | B9: Date | D9: Company | E9: Rec | F9: Rec Price | G9: Stop Loss*** | H9: Call Closed At | I9: Target | J9: Remark | K9: Profit / Loss per Share | L9: All charges | M9: Net Gain / Loss % | N9: Status | O9: Closed Date | P9: Market Closing Price
A10: 1 | B10: 2022-05-19 | D10: BHARTIARTL | E10: Buy | F10: 681 | G10: 635 | I10: 750-780 | J10: Open | P10: =VLOOKUP(D10,'MidCap Intra'!B37:C588,2,0) -> 678.4 | R10: H
A11: 2 | B11: 2022-06-07 | D11: HINDUNILVR | E11: Buy<> | F11: 2201 | G11: 2069 | H11: 2332 | I11: 2350-2450 | J11: Profit of Rs.131/- | K11: =H11-F11 -> 131 | L11: =(F11*-0.7)/100 -> -15.41 | M11: =(K11+L11)/F11 -> 5.25% | N11: Successful | O11: 2022-07-04 | R11: H
A12: 3 | B12: 2022-06-10 | D12: AARTIIND | E12: Buy | F12: 705 | G12: 670 | H12: 746 | I12: 750-780 | J12: Profit of Rs.41/- | K12: =H12-F12 -> 41 | L12: =(F12*-0.7)/100 -> -4.94 | M12: =(K12+L12)/F12 -> 5.12% | N12: Successful | O12: 2022-07-11 | R12: H
A13: 4 | B13: 2022-06-21 | D13: TECHM | E13: Buy | F13: 980 | G13: 898 | H13: 1036 | I13: 1150-1200 | J13: Part profit of Rs.56/- | K13: =H13-F13 -> 56 | L13: =(F13*-0.7)/100 -> -6.86 | M13: =(K13+L13)/F13 -> 5.01% | N13: Successful | O13: 2022-07-20 | R13: H
A14: 5 | B14: 2022-06-23 | D14: BALKRISIND | E14: Buy | F14: 2070 | G14: 1940 | H14: 2195 | I14: 2200-2300 | J14: Profit of Rs.125/- | K14: =H14-F14 -> 125 | L14: =(F14*-0.7)/100 -> -14.49 | M14: =(K14+L14)/F14 -> 5.34% | N14: Successful | O14: 2022-07-04 | R14: H
A15: 6 | B15: 2022-06-28 | D15: HCLTECH | E15: Buy | F15: 985 | G15: 920 | H15: 920 | I15: 1100-1150 | J15: Profit of Rs.65/- | K15: -65 | L15: -6.90 | M15: -7.30% | N15: Unsuccessful | O15: 2022-07-14 | R15: H
A16: 7 | B16: 2022-07-01 | D16: MCDOWELL-N | E16: Buy | F16: 775 | G16: 730 | H16: 821.5 | I16: 830-850 | J16: Profit of Rs.46.5/- | K16: =H16-F16 -> 46.5 | L16: =(F16*-0.7)/100 -> -5.43 | M16: =(K16+L16)/F16 -> 5.30% | N16: Successful | O16: 2022-07-11 | R16: H
A17: 8 | B17: 2022-07-01 | D17: BAJAJFINSV | E17: Buy | F17: 11250 | G17: 10500 | H17: 11900 | I17: 12000-12500 | J17: Profit of Rs.650/- | K17: =H17-F17 -> 650 | L17: =(F17*-0.7)/100 -> -78.75 | M17: =(K17+L17)/F17 -> 5.08% | N17: Successful | O17: 2022-07-06 | R17: H
A18: 9 | B18: 2022-07-05 | D18: HDFC | E18: Buy | F18: 2230 | G18: 2120 | H18: 2319 | I18: 2350-2450 | J18: Part Profit of Rs.89/- | K18: =H18-F18 -> 89 | L18: =(F18*-0.7)/100 -> -15.61 | M18: =(K18+L18)/F18 -> 3.29% | N18: Successful | O18: 2022-07-25 | P18: =VLOOKUP(D18,'MidCap Intra'!B50:C601,2,0) -> 2308.65 | R18: H
A19: 10 | B19: 2022-07-06 | D19: REDINGTON | E19: Buy<> | F19: 121.4 | G19: 113.4 | H19: 126.9 | I19: 135-140 | J19: Part profit of Rs.5.5/- | K19: =H19-F19 -> 5.5 | L19: =(F19*-0.7)/100 -> -0.85 | M19: =(K19+L19)/F19 -> 3.83% | N19: Successful | O19: 2022-07-08 | R19: H
A20: 11 | B20: 2022-07-06 | D20: JKLAKSHMI | E20: Buy | F20: 418.5 | G20: 384 | H20: 444 | I20: 460-490 | J20: Profit of Rs.25.5/- | K20: =H20-F20 -> 25.5 | L20: =(F20*-0.7)/100 -> -2.93 | M20: =(K20+L20)/F20 -> 5.39% | N20: Successful | O20: 2022-07-19 | R20: H
A21: 12 | B21: 2022-07-13 | D21: IOC | E21: Buy | F21: 70-71 | G21: 67 | I21: 75-77 | J21: Open | P21: =VLOOKUP(D21,'MidCap Intra'!B53:C604,2,0) -> 72.1 | R21: H
A22: 13 | B22: 2022-07-13 | D22: BALAMINES | E22: Buy | F22: 3040 | G22: 2850 | H22: 3225 | I22: 3300-3500 | J22: Profit of Rs.185/- | K22: =H22-F22 -> 185 | L22: =(F22*-0.7)/100 -> -21.28 | M22: =(K22+L22)/F22 -> 5.39% | N22: Successful | O22: 2022-07-22 | R22: H
A23: 14 | B23: 2022-07-18 | D23: MINDTREE | E23: Buy | F23: 2885 | G23: 2650 | H23: 3100 | I23: 3200-3400 | J23: Profit of Rs.215/- | K23: =H23-F23 -> 215 | L23: =(F23*-0.7)/100 -> -20.20 | M23: =(K23+L23)/F23 -> 6.75% | N23: Successful | O23: 2022-07-20 | R23: H
A28: CLBS = Closing Basis ***
A29: Dividend adjusted <> | F29: Reinitiated $
A30: Part book {} | D30: s | F30: Revised stoploss #
B32: Momentum Call
A33: Sr.no | B33: Date | D33: Company | E33: Rec | F33: Rec Price | G33: Stop Loss | H33: Call Closed At | I33: Target | J33: Remark | K33: Profit / Loss per Share/Lot | L33: All charges | M33: Net Gain / Loss % | N33: Status | O33: Closed Date
A34: 1 | B34: 2022-06-20 | D34: AXISBANK | E34: Buy | F34: 633.5 | G34: 615 | H34: 650.5 | I34: 655-675 | J34: Profit of Rs.17/- | K34: =H34-F34 -> 17 | L34: =(F34*-0.7)/100 -> -4.43 | M34: =(K34+L34)/F34 -> 1.98% | N34: Successful | O34: 2022-07-04 | R34: H
A35: 2 | B35: 2022-06-29 | D35: ICICIGI | E35: Buy | F35: 1118 | G35: 1085 | H35: 1155 | I35: 1160-1180 | J35: Profit of Rs.37/- | K35: =H35-F35 -> 37 | L35: =(F35*-0.7)/100 -> -7.83 | M35: =(K35+L35)/F35 -> 2.61% | N35: Successful | O35: 2022-07-04 | R35: H
A36: 3 | B36: 2022-07-01 | D36: CARBORUNIV | E36: Buy | F36: 700 | G36: 679 | H36: 720 | I36: 730-750 | J36: Profit of Rs.20/- | K36: =H36-F36 -> 20 | L36: =(F36*-0.07)/100 -> -0.49 | M36: =(K36+L36)/F36 -> 2.79% | N36: Successful | O36: 2022-07-01 | R36: H
A37: 4 | B37: 2022-07-04 | D37: BEL | E37: Buy | F37: 229 | G37: 224 | H37: 236 | I37: 240-245 | J37: Profit of Rs.7/- | K37: =H37-F37 -> 7 | L37: =(F37*-0.7)/100 -> -1.60 | M37: 2.36% | N37: Successful | O37: 2022-07-07 | R37: H
A38: 5 | B38: 2022-07-04 | D38: RALLIS | E38: Buy | F38: 193.5 | G38: 187 | H38: 201 | I38: 205-210 | J38: Profit of Rs.7.50/- | K38: 7.5 | L38: =(F38*-0.7)/100 -> -1.35 | M38: 3.18% | N38: Successful | O38: 2022-07-12 | R38: H
A39: 6 | B39: 2022-07-05 | D39: SRF | E39: Buy | F39: 2160 | G39: 2085 | H39: 2085 | I39: 2250-2300 | J39: Loss of Rs.75/- | K39: =H39-F39 -> -75 | L39: =(F39*-0.07)/100 -> -1.51 | M39: =(K39+L39)/F39 -> -3.54% | N39: Unsuccessful | O39: 2022-07-05 | R39: H
A40: 7 | B40: 2022-07-05 | D40: CARBORUNIV | E40: Buy | F40: 734.5 | G40: 714 | H40: 751 | I40: 755-770 | J40: Profit of Rs.16.50/- | K40: 16.5 | L40: =(F40*-0.07)/100 -> -0.51 | M40: 2.18% | N40: Successful | O40: 2022-07-05 | R40: N
A41: 8 | B41: 2022-07-06 | D41: CARBORUNIV | E41: Buy | F41: 741 | G41: 720 | H41: 757 | I41: 765-780 | J41: Profit of Rs.16/- | K41: =H41-F41 -> 16 | L41: =(F41*-0.07)/100 -> -0.52 | M41: =(K41+L41)/F41 -> 2.09% | N41: Successful | O41: 2022-07-06 | R41: N
A42: 9 | B42: 2022-07-11 | D42: BIRLACORPN | E42: Buy | F42: 892.5 | G42: 870 | H42: 915 | I42: 930-950 | J42: Profit of Rs.22.5/- | K42: =H42-F42 -> 22.5 | L42: =(F42*-0.07)/100 -> -0.62 | M42: =(K42+L42)/F42 -> 2.45% | N42: Successful | O42: 2022-07-11 | R42: H
A43: 10 | B43: 2022-07-11 | D43: HINDALCO | E43: Buy | F43: 360.5 | G43: 348 | H43: 348 | I43: 375-385 | J43: Loss of Rs.12.5/- | K43: -12.5 | L43: =(F43*-0.07)/100 -> -0.25 | M43: -3.54% | N43: Unsuccessful | O43: 2022-07-12 | R43: H
A44: 11 | B44: 2022-07-11 | D44: POWERGRID | E44: Buy | F44: 216.75 | G44: 210 | H44: 210 | I44: 225-230 | J44: Loss of Rs.6.75/- | K44: =H44-F44 -> -6.75 | L44: =(F44*-0.7)/100 -> -1.52 | M44: =(K44+L44)/F44 -> -3.81% | N44: Unsuccessful | O44: 2022-07-15 | R44: H
A45: 12 | B45: 2022-07-12 | D45: BIRLACORPN | E45: Buy | F45: 900 | G45: 870 | H45: 922.5 | I45: 930-960 | J45: Profit of Rs.22.5/- | K45: =H45-F45 -> 22.5 | L45: =(F45*-0.7)/100 -> -6.30 | M45: =(K45+L45)/F45 -> 1.80% | N45: Successful | O45: 2022-07-13 | R45: H
A46: 13 | B46: 2022-07-14 | D46: AEGISCHEM | E46: Buy | F46: 206.5 | G46: 200 | H46: 214 | I46: 213-218 | J46: Profit of Rs.7.5/- | K46: 7.5 | L46: =(F46*-0.07)/100 -> -0.14 | M46: 3.56% | N46: Successful | O46: 2022-07-20 | R46: N
A47: 14 | B47: 2022-07-15 | D47: BIRLACORPN | E47: Buy | F47: 926.5 | G47: 895 | H47: 945 | I47: 960-970 | J47: Profit of Rs.18.5/- | K47: =H47-F47 -> 18.5 | L47: =(F47*-0.07)/100 -> -0.65 | M47: =(K47+L47)/F47 -> 1.93% | N47: Successful | O47: 2022-07-15 | R47: N
A48: 15 | B48: 2022-07-19 | D48: SIS | E48: Buy | F48: 469 | G48: 455 | H48: 455 | I48: 490-500 | J48: Loss of Rs.14/- | K48: -14 | L48: =(F48*-0.7)/100 -> -3.28 | M48: -3.69% | N48: Unsuccessful | O48: 2022-07-21 | R48: H
A49: 16 | B49: 2022-07-19 | D49: POLYCAB | E49: Buy | F49: 2195 | G49: 2130 | H49: 2240 | I49: 2300-2350 | J49: Profit of Rs.45/- | K49: =H49-F49 -> 45 | L49: =(F49*-0.07)/100 -> -1.54 | M49: =(K49+L49)/F49 -> 1.98% | N49: Successful | O49: 2022-07-19 | R49: H
A50: 17 | B50: 2022-07-20 | D50: RALLIS | E50: Buy | F50: 203.5 | G50: 198 | H50: 206.75 | I50: 212-216 | J50: Profit of Rs.3.25/- | K50: =H50-F50 -> 3.25 | L50: =(F50*-0.07)/100 -> -0.14 | M50: =(K50+L50)/F50 -> 1.53% | N50: Successful | O50: 2022-07-20 | R50: H
A51: 18 | B51: 2022-07-20 | D51: BIRLACORPN | E51: Buy | F51: 915 | G51: 887 | H51: 916 | I51: 940-960 | J51: Profit of Rs.1/- | K51: =H51-F51 -> 1 | L51: =(F51*-0.07)/100 -> -0.64 | M51: =(K51+L51)/F51 -> 0.04% | N51: Neutral | O51: 2022-07-20 | R51: N
A52: 19 | B52: 2022-07-21 | D52: ICICIBANK | E52: Buy | F52: 780 | G52: 758 | H52: 803.5 | I52: 810-820 | J52: Profit of Rs.23.5/- | K52: 23.5 | L52: =(F52*-0.7)/100 -> -5.46 | M52: 2.31% | N52: Successful | O52: 2022-07-22 | R52: H
A53: 20 | B53: 2022-07-21 | D53: PERSISTENT | E53: Buy | F53: 3595 | G53: 3490 | H53: 3705 | I53: 3720-3800 | J53: Profit of Rs.110/- | K53: 110 | L53: -25.17 | M53: 2.36% | N53: Successful | O53: 2022-07-22 | R53: H
A54: 21 | B54: 2022-07-22 | D54: TATACHEM | E54: Buy | F54: 873-876 | G54: 945 | I54: 905-925 | J54: Open
A55: 22 | B55: 2022-07-22 | D55: RELAXO | E55: Buy | F55: 1013-1023 | G55: 975 | I55: 1060-1100 | J55: Open
A56: 23 | B56: 2022-07-22 | D56: CARBORUNIV | E56: Buy | F56: 788-792 | G56: 766 | I56: 810-830 | J56: Open
A57: 24 | B57: 2022-07-25 | D57: AEGISCHEM | E57: Buy | F57: 252 | G57: 244 | H57: 260.5 | I57: 265-270 | J57: Profit of Rs.8.5/- | K57: =H57-F57 -> 8.5 | L57: =(F57*-0.07)/100 -> -0.18 | M57: =(K57+L57)/F57 -> 3.30% | N57: Successful | O57: 2022-07-25
A61: CLBS = Closing Basis *** | H61: *
A62: Dividend adjusted <> | F62: Reinitiated $
F63: Revised stoploss #
A65: Master Trade High Risk
A66: Sr.no | B66: Date | D66: Company | E66: Rec | F66: Rec Price | G66: Stop Loss | H66: Call Closed At | I66: Target | J66: Remark | K66: Profit / Loss per share | L66: All charges | M66: Gain / Loss per Lot | N66: Lot | O66: Status | P66: Closed Date
A67: 1 | B67: 2022-06-27 | D67: PIDILITIND JULY FUT | E67: Buy | F67: 2140 | G67: 2090 | H67: 2170 | I67: 2200-2240 | J67: Profit of Rs.30/- | K67: =H67-F67 -> 30 | L67: =(H67*N67)*0.07% -> 379.75 | M67: =(K67*N67)-L67 -> 7120.3 | N67: 250 | O67: Successful | P67: 2022-07-01 | R67: H
A68: 2 | B68: 2022-06-30 | D68: APOLLOHOSP JULY FUT | E68: Buy | F68: 3720 | G68: 3620 | H68: 3780 | I68: 3850-3900 | J68: Profit of Rs.60/- | K68: =H68-F68 -> 60 | L68: =(H68*N68)*0.07% -> 463.05 | M68: =(K68*N68)-L68 -> 10037.0 | N68: 175 | O68: Successful | P68: 2022-07-04 | R68: N
A69: 3 | B69: 2022-06-30 | D69: COLPAL JULY FUT | E69: Buy | F69: 1488 | G69: 1450 | H69: 1512 | I69: 1530-1560 | J69: Profit of Rs.24/- | K69: =H69-F69 -> 24 | L69: =(H69*N69)*0.07% -> 370.44 | M69: =(K69*N69)-L69 -> 8029.6 | N69: 350 | O69: Successful | P69: 2022-07-01 | R69: H
A70: 4 | B70: 2022-07-01 | D70: SIEMENS JULY FUT | E70: Buy | F70: 2397.5 | G70: 2355 | H70: 2437.5 | I70: 2450-2470 | J70: Profit of Rs.40/- | K70: 40 | L70: 469.22 | M70: 10530.8 | N70: 275 | O70: Successful | P70: 2022-07-04 | R70: N
A71: 5 | B71: 2022-07-05 | D71: AXISBANK JULY FUT | E71: Buy | F71: 653 | G71: 642 | H71: 663.5 | I71: 665-675 | J71: Profit of Rs.10.5/- | K71: =H71-F71 -> 10.5 | L71: =(H71*N71)*0.07% -> 557.34 | M71: =(K71*N71)-L71 -> 12042.7 | N71: 1200 | O71: Successful | P71: 2022-07-07 | R71: H
A72: 6 | B72: 2022-07-06 | D72: GRASIM JULY FUT | E72: Buy | F72: 1361.5 | G72: 1335 | H72: 1384 | I72: 1390-1410 | J72: Profit of Rs.22.5/- | K72: 22.5 | L72: 460.18 | M72: 10227.3 | N72: 475 | O72: Successful | P72: 2022-07-07 | R72: N
A73: 7 | B73: 2022-07-06 | D73: IRCTC JULY FUT | E73: Buy | F73: 576 | G73: 562 | H73: 587 | I73: 590-600 | J73: Profit of Rs.11/- | K73: 11 | L73: 359.54 | M73: 9265.5 | N73: 875 | O73: Successful | P73: 2022-07-07 | R73: H
A74: 8 | B74: 2022-07-07 | D74: ICICIBANK JULY FUT | E74: Buy | F74: 743.5 | G74: 734.5 | H74: 751.5 | I74: 755-765 | J74: Profit of Rs.8/- | K74: =H74-F74 -> 8 | L74: =(H74*N74)*0.07% -> 723.32 | M74: =(K74*N74)-L74 -> 10276.7 | N74: 1375 | O74: Successful | P74: 2022-07-08 | R74: H
A75: 9 | B75: 2022-07-08 | D75: PIIND JULY FUT | E75: Buy | F75: 2755 | G75: 2710 | H75: 2797.5 | I75: 2820-2850 | J75: Profit of Rs.42.5/- | K75: 42.5 | L75: 489.56 | M75: 10135.4 | N75: 250 | O75: Successful | P75: 2022-07-11 | R75: N
A76: 10 | B76: 2022-07-11 | D76: PIDILITIND JULY FUT | E76: Buy | F76: 2235 | G76: 2190 | H76: 2280 | I76: 2290-2310 | J76: Profit of Rs.45/- | K76: 45 | L76: 399.00 | M76: 10851.0 | N76: 250 | O76: Successful | P76: 2022-07-13 | R76: N
A77: 11 | B77: 2022-07-11 | D77: NIFTY JULY FUT | E77: Buy | F77: 16110 | G77: 15970 | H77: 16210 | I77: 16300-16400 | J77: Profit of Rs.100/- | K77: =H77-F77 -> 100 | L77: =(H77*N77)*0.07% -> 567.35 | M77: =(K77*N77)-L77 -> 4432.7 | N77: 50 | O77: Successful | P77: 2022-07-11 | R77: H
A78: 12 | B78: 2022-07-11 | D78: JSWSTEEL JULY FUT | E78: Buy | F78: 579.5 | G78: 569 | H78: 569 | I78: 590-598 | J78: Loss of Rs.10.5/- | K78: =H78-F78 -> -10.5 | L78: =(H78*N78)*0.07% -> 537.71 | M78: =(K78*N78)-L78 -> -14712.7 | N78: 1350 | O78: Unsuccessful | P78: 2022-07-12 | R78: N
A79: 13 | B79: 2022-07-12 | D79: NIFTY JULY FUT | E79: Buy | F79: 16100 | G79: 15970 | H79: 16115 | I79: 16300-16400 | J79: Profit of Rs.15/- | K79: 15 | L79: 564.03 | M79: 186.0 | N79: 50 | O79: Neutral | P79: 2022-07-13 | R79: H
A80: 14 | B80: 2022-07-12 | D80: BHARATFORG JULY FUT | E80: Buy | F80: 645 | G80: 632 | H80: 632 | I80: 660-670 | J80: Loss of Rs.13/- | K80: =H80-F80 -> -13 | L80: =(H80*N80)*0.07% -> 442.40 | M80: =(K80*N80)-L80 -> -13442.4 | N80: 1000 | O80: Unsuccessful | P80: 2022-07-12 | R80: N
A81: 15 | B81: 2022-07-13 | D81: BANKNIFTY JULY FUT | E81: Sell | F81: 35330 | G81: 35640 | H81: 35140 | I81: 35000-34700 | J81: Profit of Rs.190/- | K81: =F81-H81 -> 190 | L81: 614.95 | M81: 4135.1 | N81: 25 | O81: Successful | P81: 2022-07-13 | R81: H
A82: 16 | B82: 2022-07-14 | D82: SIEMENS JULY FUT | E82: Buy | F82: 2647.5 | G82: 2600 | H82: 2681 | I82: 2700-2740 | J82: Profit of Rs.33.5/- | K82: =H82-F82 -> 33.5 | L82: 516.09 | M82: 8696.4 | N82: 275 | O82: Successful | P82: 2022-07-15 | R82: N
A83: 17 | B83: 2022-07-14 | D83: IRCTC JULY FUT | E83: Buy | F83: 579.5 | G83: 565 | H83: 588.5 | I83: 595-610 | J83: Profit of Rs.9/- | K83: =H83-F83 -> 9 | L83: =(H83*N83)*0.07% -> 360.46 | M83: =(K83*N83)-L83 -> 7514.5 | N83: 875 | O83: Successful | P83: 2022-07-15 | R83: N
A84: 18 | B84: 2022-07-15 | D84: CONCOR JULY FUT | E84: Buy | F84: 675 | G84: 661 | H84: 684 | I84: 690-705 | J84: Profit of Rs9/- | K84: 9 | L84: 478.80 | M84: 8521.2 | N84: 1000 | O84: Successful | P84: 2022-07-15 | R84: N
A85: 19 | B85: 2022-07-15 | D85: CIPLA JULY FUT | E85: Buy | F85: 956 | G85: 935 | H85: 972 | I85: 980-990 | J85: Profit of Rs.16/- | K85: =H85-F85 -> 16 | L85: =(H85*N85)*0.07% -> 442.26 | M85: =(K85*N85)-L85 -> 9957.7 | N85: 650 | O85: Successful | P85: 2022-07-18 | R85: H
A86: 20 | B86: 2022-07-15 | D86: HDFCAMC JULY FUT | E86: Buy | F86: 1892.5 | G86: 1850 | H86: 1923 | I86: 1940-1970 | J86: Profit of Rs.30.5/- | K86: 30.5 | L86: 403.83 | M86: 8746.2 | N86: 300 | O86: Successful | P86: 2022-07-18 | R86: N
A87: 21 | B87: 2022-07-15 | D87: CROMPTON JULY FUT | E87: Buy | F87: 391.5 | G87: 382 | H87: 399 | I87: 400-410 | J87: Profit of Rs.7.5/- | K87: 7.5 | L87: 418.95 | M87: 10831.1 | N87: 1500 | O87: Successful | P87: 2022-07-19 | R87: N
A88: 22 | B88: 2022-07-18 | D88: LALPATHLAB JULY FUT | E88: Sell | F88: 1980 | G88: 2030 | H88: 2030 | I88: 1930-1880 | J88: Loss of Rs.50/- | K88: =F88-H88 -> -50 | L88: =(H88*N88)*0.07% -> 355.25 | M88: =(K88*N88)-L88 -> -12855.3 | N88: 250 | O88: Unsuccessful | P88: 2022-07-19 | R88: N
A89: 23 | B89: 2022-07-18 | D89: CONCOR JULY FUT | E89: Buy | F89: 673 | G89: 658 | H89: 681 | I89: 690-705 | J89: Profit of Rs.8/- | K89: =H89-F89 -> 8 | L89: =(H89*N89)*0.07% -> 476.70 | M89: =(K89*N89)-L89 -> 7523.3 | N89: 1000 | O89: Successful | P89: 2022-07-19 | R89: N
A90: 24 | B90: 2022-07-18 | D90: BAJFINANCE JULY FUT | E90: Buy | F90: 6060 | G90: 5950 | H90: 6145 | I90: 6200-6250 | J90: Profit of Rs.85/- | K90: =H90-F90 -> 85 | L90: =(H90*N90)*0.07% -> 537.69 | M90: =(K90*N90)-L90 -> 10087.3 | N90: 125 | O90: Successful | P90: 2022-07-20 | R90: H
A91: 25 | B91: 2022-07-18 | D91: PIDILITIND JULY FUT | E91: Buy | F91: 2280 | G91: 2230 | H91: 2300 | I91: 2340-2370 | J91: Profit of Rs.20/- | K91: =H91-F91 -> 20 | L91: =(H91*N91)*0.07% -> 402.50 | M91: =(K91*N91)-L91 -> 4597.5 | N91: 250 | O91: Successful | P91: 2022-07-20 | R91: N
A92: 26 | B92: 2022-07-18 | D92: VEDL JULY FUT | E92: Buy | F92: 237.5 | G92: 229 | H92: 248 | I92: 245-255 | J92: Profit of Rs.10.5/- | K92: =H92-F92 -> 10.5 | L92: =(H92*N92)*0.07% -> 269.08 | M92: =(K92*N92)-L92 -> 16005.9 | N92: 1550 | O92: Successful | P92: 2022-07-20 | R92: H
A93: 27 | B93: 2022-07-19 | D93: TRENT JULY FUT | E93: Buy | F93: 1217 | G93: 1200 | H93: 1201 | I93: 1240-1250 | J93: Loss of Rs.16/- | K93: =H93-F93 -> -16 | L93: =(H93*N93)*0.07% -> 609.51 | M93: =(K93*N93)-L93 -> -12209.5 | N93: 725 | O93: Unsuccessful | P93: 2022-07-19 | R93: N
A94: 28 | B94: 2022-07-20 | D94: SIEMENS AUG FUT | E94: Sell | F94: 2705 | G94: 2750 | H94: 2750 | I94: 2640-2600 | J94: Loss of Rs.45/- | K94: =F94-H94 -> -45 | L94: 529.38 | M94: -12904.4 | N94: 275 | O94: Unsuccessful | P94: 2022-07-21 | R94: H
A95: 29 | B95: 2022-07-20 | D95: BATAINDIA JULY FUT | E95: Buy | F95: 1855 | G95: 1810 | H95: 1812 | I95: 1900-1930 | J95: Loss of Rs.13/- | K95: =H95-F95 -> -43 | L95: 348.81 | M95: -12173.8 | N95: 275 | O95: Unsuccessful | P95: 2022-07-21 | R95: N
A96: 30 | B96: 2022-07-21 | D96: CIPLA JULY FUT | E96: Buy | F96: 973 | G96: 953 | H96: 974 | I96: 1000-1020 | J96: Profit of Rs.1/- | K96: 1 | L96: 443.17 | M96: 206.8 | N96: 650 | O96: Neutral | P96: 2022-07-25 | R96: H
A97: 31 | B97: 2022-07-25 | D97: PIDILITIND AUG FUT | E97: Buy | F97: 2315-2315 | G97: 2270 | I97: 2380-2400 | J97: Open
A103: Master Trade Medium Risk
A104: Sr.no | B104: Date | D104: Company | E104: Rec | F104: Rec Price | G104: Stop Loss | H104: Call Closed At | I104: Target | J104: Remark | K104: Profit/ Loss per lot | L104: All charges | M104: Gain / Loss per Lot | N104: Lot | O104: Status | P104: Closed Date
A105: 1 | B105: 2022-07-01 | D105: INFY 1480 CE JUL | E105: Buy | F105: 43 | G105: 30 | H105: 49.5 | I105: 60-70 | J105: Profit of Rs.6.5/- | K105: =H105-F105 -> 6.5 | L105: 100.00 | M105: =(K105*N105)-L105 -> 1850.0 | N105: 300 | O105: Successful | P105: 2022-07-05 | R105: H
A106: 2 | B106: 2022-07-05 | D106: NIFTY 16000 PE 07-JUL | E106: Buy | F106: 108 | G106: 68 | H106: 129 | I106: 150-180 | J106: Profit of Rs.21/- | K106: =H106-F106 -> 21 | L106: 100.00 | M106: =(K106*N106)-L106 -> 950.0 | N106: 50 | O106: Successful | P106: 2022-07-05 | R106: N
A107: 3 | B107: 2022-07-05 | D107: NIFTY 15900 CE 07-JUL | E107: Buy | F107: 88 | G107: 50 | H107: 58 | I107: 130-150 | J107: Loss of Rs.30/- | K107: -30 | L107: 100.00 | M107: -1600.0 | N107: 50 | O107: Unsuccessful | P107: 2022-07-05 | R107: N
A108: 4 | B108: 2022-07-07 | D108: VEDL 230 CE JUL | E108: Buy | F108: 5.55 | G108: 2.35 | H108: 9.25 | I108: 10-12.0 | J108: Profit of Rs.3.7/- | K108: =H108-F108 -> 3.7 | L108: 100.00 | M108: =(K108*N108)-L108 -> 5635.0 | N108: 1550 | O108: Successful | P108: 2022-07-07 | R108: H
A109: 5 | B109: 2022-07-07 | D109: RELIANCE 2500 CE JUL | E109: Buy | F109: 37.5 | G109: 19 | H109: 64 | I109: 60-70 | J109: Profit of Rs.26.5/- | K109: =H109-F109 -> 26.5 | L109: 100.00 | M109: =(K109*N109)-L109 -> 6525.0 | N109: 250 | O109: Successful | P109: 2022-07-20 | R109: H
A110: 6 | B110: 2022-07-07 | D110: NIFTY 16100 CE 7 JUL | E110: Buy | F110: 30 | G110: 5 | H110: 36 | I110: 60-70 | J110: Profit of Rs.6/- | K110: =H110-F110 -> 6 | L110: 100.00 | M110: =(K110*N110)-L110 -> 200.0 | N110: 50 | O110: Neutral | P110: 2022-07-07 | R110: H
A111: 7 | B111: 2022-07-08 | D111: M&M 1200 CE JUL | E111: Sell | F111: 10 | G111: 17.5 | H111: 7.5 | I111: 0.5 | J111: Profit of Rs.2.5/- | K111: =F111-H111 -> 2.5 | L111: 100.00 | M111: 1650.0 | N111: 700 | O111: Successful | P111: 2022-07-11 | R111: H
A112: 8 | B112: 2022-07-12 | D112: LICHSGFIN 370 CE JUL | E112: Sell | F112: 5.75 | G112: 8.25 | H112: 4.15 | I112: 0.5 | J112: Profit of Rs.1.6/- | K112: =F112-H112 -> 1.6 | L112: 100.00 | M112: =(K112*N112)-L112 -> 3100.0 | N112: 2000 | O112: Successful | P112: 2022-07-13 | R112: H
A113: 9 | B113: 2022-07-13 | D113: NIFTY 16050 CE 14 JUL | E113: Buy | F113: 63 | G113: 25 | H113: 50 | I113: 100-120 | J113: Loss of Rs.13/- | K113: =H113-F113 -> -13 | L113: 100.00 | M113: -750.0 | N113: 50 | O113: Unsuccessful | P113: 2022-07-13 | R113: H
A114: 10 | B114: 2022-07-13 | D114: BANKNIFTY 34900 CE 14 JUL | E114: Buy | F114: 160 | G114: 60 | H114: 205 | I114: 300-350 | J114: Profit of Rs.45/- | K114: 45 | L114: 100.00 | M114: 1025.0 | N114: 25 | O114: Successful | P114: 2022-07-13 | R114: N
A115: 11 | B115: 2022-07-14 | D115: BANKNIFTY 34800 CE 14 JUL | E115: Buy | F115: 75 | G115: 10 | H115: 10 | I115: 150-180 | J115: Loss of Rs.65/- | K115: =H115-F115 -> -65 | L115: 100.00 | M115: =(K115*N115)-L115 -> -1725.0 | N115: 25 | O115: Unsuccessful | P115: 2022-07-14 | R115: N
A116: 12 | B116: 2022-07-19 | D116: BHARTIARTL 670 CE JUL | E116: Buy | F116: 10 | G116: 5 | H116: 12.75 | I116: 15-20 | J116: Profit of Rs.2.75/- | K116: 2.75 | L116: 100.00 | M116: 2375.0 | N116: 900 | O116: Successful | P116: 2022-07-19 | R116: H
A117: 13 | B117: 2022-07-19 | D117: M&M 1200 CE JUL | E117: Sell | F117: 13.5 | G117: 22 | H117: 9.5 | I117: 0.5 | J117: Profit of Rs.4/- | K117: =F117-H117 -> 4 | L117: 100.00 | M117: 2700.0 | N117: 700 | O117: Successful | P117: 2022-07-19 | R117: H
A118: 14 | B118: 2022-07-19 | D118: HAVELLS 1300 CE JUL | E118: Sell | F118: 17 | G118: 27 | H118: 13.25 | I118: 0.5 | J118: Profit of Rs.3.75/- | K118: 3.75 | L118: 100.00 | M118: 1775.0 | N118: 500 | O118: Successful | P118: 2022-07-19 | R118: H
A119: 15 | B119: 2022-07-20 | D119: NIFTY 16500 PE 21 JUL | E119: Buy | F119: 50 | G119: 15 | H119: 60 | I119: 90-120 | J119: Profit of Rs.10/- | K119: =H119-F119 -> 10 | L119: 100.00 | M119: 400.0 | N119: 50 | O119: Successful | P119: 2022-07-20 | R119: H
A120: 16 | B120: 2022-07-21 | D120: NIFTY 16550 PE 21 JUL | E120: Buy | F120: 42.5 | G120: 14 | H120: 54 | I120: 70-80 | J120: Profit of Rs.11.5/- | K120: =H120-F120 -> 11.5 | L120: 100.00 | M120: =(K120*N120)-L120 -> 475.0 | N120: 50 | O120: Successful | P120: 2022-07-21 | R120: H
A121: 17 | B121: 2022-07-21 | D121: BANKNIFTY 36100 PE 21 JUL | E121: Buy | F121: 55 | G121: 0 | H121: 0 | I121: 120-150 | J121: Loss of Rs.55/- | K121: -55 | L121: 100.00 | M121: -1475.0 | N121: 25 | O121: Unsuccessful | P121: 2022-07-21 | R121: N
A122: 18 | B122: 2022-07-22 | D122: ACC 2200 CE JUL | E122: Buy | F122: 23 | G122: 5 | H122: 29.5 | I122: 40-50 | J122: Profit of Rs.6.5/- | K122: =H122-F122 -> 6.5 | L122: 100.00 | M122: =(K122*N122)-L122 -> 1525.0 | N122: 250 | O122: Successful | P122: 2022-07-25
A125: Techno -Funda (positional)
A126: Sr.no | B126: Date | D126: Company | E126: Rec | F126: Rec Price | G126: Stop Loss*** | H126: Call Closed At | I126: Target | J126: Remark | K126: Profit / Loss per Share/Lot | L126: All charges | M126: Net Gain / Loss % | N126: Status | O126: Closed Date | P126: Market Closing Price
A127: 1 | B127: 2021-10-19 | D127: ITC<> | E127: Buy<> | F127: 235.25 | G127: 198 | H127: 287.5 | I127: 320-340 | J127: Profit of Rs.52.25/- | K127: =H127-F127 -> 52.25 | L127: =(F127*-0.7)/100 -> -1.65 | M127: =(K127+L127)/F127 -> 21.51% | N127: Successful | O127: 2022-07-04 | R127: H
A128: 2 | B128: 2022-06-24 | D128: AMBIKCO | E128: Buy | F128: 1450 | G128: 1300 | H128: 1690 | I128: 1700-1800 | J128: Profit of Rs.240/- | K128: =H128-F128 -> 240 | L128: =(F128*-0.4)/100 -> -5.80 | M128: =(K128+L128)/F128 -> 16.15% | N128: Successful | O128: 2022-07-08 | R128: H
A130: CLBS = Closing Basis *** | F130: Reinitiated $
A131: Dividend adjusted <> | F131: Revised stoploss # | H131: .................
B135: Investment Idea
A136: Sr.no | B136: Date | D136: Company | E136: Rec | F136: Rec Price | G136: Point of Review | H136: Close Rate | I136: Target | J136: Remark | K136: Profit / Loss per Share | L136: Gain / Loss % | M136: Status | N136: Closed Date
A137: 1 | B137: 2013-11-01 | D137: L&T Finance Holding | E137: Accu | F137: 82.00 | G137: - | H137: 100 | I137: 100.00 | J137: Target Achieved | K137: =H137-F137 -> 18.00 | L137: =K137/F137 -> 21.95% | M137: Successful | N137: 2016-10-14
A138: 2 | B138: 2014-06-04 | D138: Finolex Inds | E138: Buy | F138: 257.00 | G138: - | H138: 300 | I138: 300.00 | J138: Target Achieved | K138: 43.00 | L138: 16.73% | M138: Successful | N138: 2014-07-02
A139: 3 | B139: 2014-07-08 | D139: JK Cement | E139: Buy | F139: 393.00 | G139: - | H139: 468 | I139: 468.00 | J139: Target Achieved | K139: 75.00 | L139: 19.08% | M139: Successful | N139: 2014-08-12
A140: 4 | B140: 2014-08-06 | D140: Finolex Cables | E140: Buy | F140: 205.00 | G140: - | H140: 275 | I140: 250.00 | J140: Target Achieved | K140: 70.00 | L140: 34.15% | M140: Successful | N140: 2014-11-19
A141: 5 | B141: 2014-09-04 | D141: Exide Inds | E141: Buy | F141: 162.00 | G141: - | H141: 190 | I141: 190.00 | J141: Target Achieved | K141: 28.00 | L141: 17.28% | M141: Successful | N141: 2015-01-02
A142: 6 | B142: 2014-09-04 | D142: Deepak Nitrite | E142: Buy | F142: 75.00 | G142: - | H142: 91.5 | I142: 95-100 | J142: Profit of Rs.16.50/- | K142: 16.50 | L142: 22.00% | M142: Successful | N142: 2014-11-11
A143: 7 | B143: 2014-10-01 | D143: Mercks | E143: Buy | F143: 850.00 | G143: - | H143: 982.5 | I143: 1050.00 | J143: Profit of Rs.132.50/- | K143: 132.50 | L143: 15.59% | M143: Successful | N143: 2015-02-04
A144: 8 | B144: 2014-10-01 | D144: Grindwell Norton | E144: Buy | F144: 475.00 | G144: - | H144: 515 | I144: 600.00 | J144: Profit of Rs.40/- | K144: 40.00 | L144: 8.42% | M144: Successful | N144: 2014-10-27
A145: 9 | B145: 2014-10-01 | D145: Snowman Logistics | E145: Buy | F145: 86.00 | G145: - | H145: 99 | I145: 140.00 | J145: Profit of Rs.13.00/- | K145: 13.00 | L145: 15.12% | M145: Successful | N145: 2014-10-27
A146: 10 | B146: 2014-10-14 | D146: Birla Corp | E146: Buy | F146: 496.60 | G146: - | H146: 621 | I146: 580.00 | J146: Target Achieved | K146: 124.40 | L146: 25.05% | M146: Successful | N146: 2016-08-23
A147: 11 | B147: 2014-10-14 | D147: Ultratech Cem | E147: Buy | F147: 2481.90 | G147: - | H147: 2840 | I147: 2870.00 | J147: Profit of Rs.358.10/- | K147: 358.10 | L147: 14.43% | M147: Successful | N147: 2015-01-13
A148: 12 | B148: 2014-10-16 | D148: Sintex Inds | E148: Buy | F148: 84.50 | G148: - | H148: 93 | I148: 110.00 | J148: Profit of Rs.8.50/- | K148: 8.50 | L148: 10.06% | M148: Successful | N148: 2014-10-27
A149: 13 | B149: 2014-10-16 | D149: HSIL | E149: Buy | F149: 401.00 | G149: - | H149: 428 | I149: 450.00 | J149: Profit of Rs.27.00/- | K149: 27.00 | L149: 6.73% | M149: Successful | N149: 2015-01-16
A150: 14 | B150: 2014-10-16 | D150: Eveready Inds | E150: Buy | F150: 101.00 | G150: - | H150: 112 | I150: 120.00 | J150: Profit of Rs.11.00/- | K150: 11.00 | L150: 10.89% | M150: Successful | N150: 2014-10-27
A151: 15 | B151: 2014-11-11 | D151: Pennar Inds | E151: Buy | F151: 59.00 | G151: - | H151: 76 | I151: 76.00 | J151: Target Achieved | K151: 17.00 | L151: 28.81% | M151: Successful | N151: 2017-10-24
A152: 16 | B152: 2014-11-11 | D152: Snowman Logistics | E152: Buy | F152: 99.00 | G152: - | H152: 120 | I152: 120.00 | J152: Profit of Rs.21/- | K152: 21.00 | L152: 21.21% | M152: Successful | N152: 2014-11-17
A153: 17 | B153: 2014-11-13 | D153: Dharamsi Morarji Chem | E153: Buy | F153: 22.00 | G153: - | H153: 33.55 | I153: 32.00 | J153: Profit of Rs 11.55/- | K153: 11.55 | L153: 52.50% | M153: Successful | N153: 2015-07-03
A154: 18 | B154: 2014-12-03 | D154: Tatachem | E154: Buy | F154: 440.00 | G154: - | H154: 520 | I154: 520.00 | J154: Profit of Rs 80.00/- | K154: 80.00 | L154: 18.18% | M154: Successful | N154: 2015-07-23
A155: 19 | B155: 2014-12-03 | D155: Advanta | E155: Buy | F155: 360.00 | G155: - | H155: 427 | I155: 425.00 | J155: Profit of Rs.67.00/- | K155: 67.00 | L155: 18.61% | M155: Successful | N155: 2015-02-23
A156: 20 | B156: 2015-01-08 | D156: GDL | E156: Buy | F156: 360.00 | G156: - | H156: 455 | I156: 420.00 | J156: Profit of Rs.95.00/- | K156: 95.00 | L156: 26.39% | M156: Successful | N156: 2015-01-20
A157: 21 | B157: 2015-01-08 | D157: NRB Bearing | E157: Buy | F157: 130.00 | H157: 175.5 | I157: 165.00 | J157: Profit of Rs 45.50/- | K157: 45.50 | L157: 35.00% | M157: Successful | N157: 2017-12-19
A158: 22 | B158: 2015-02-05 | D158: GSFC | E158: Accu | F158: 98.00 | H158: 120 | I158: 120.00 | J158: Target Achieved | K158: 22.00 | L158: 22.45% | M158: Successful | N158: 2017-01-18
A159: 23 | B159: 2015-02-05 | D159: Sundrmfast | E159: Accu | F159: 196.00 | H159: 262 | I159: 255.00 | J159: Target Achieved | K159: 66.00 | L159: 33.67% | M159: Successful | N159: 2016-08-17
A160: 24 | B160: 2015-03-04 | D160: GPPL | E160: Accu | F160: 235 | H160: 77.00 | I160: 280-285 | J160: Loss of Rs.158/- | K160: -158.00 | L160: -67.23% | M160: Unsuccessful | N160: 2019-02-26
A161: 25 | B161: 2015-03-04 | D161: ORIENTCEM | E161: Accu | F161: 185.00 | H161: 224 | I161: 220-225 | J161: Target Achieved | K161: 39.00 | L161: 21.08% | M161: Successful | N161: 2016-10-04
A162: 26 | B162: 2015-03-27 | D162: PFS | E162: Accu | F162: 49.5 | H162: 15.85 | I162: 67.00 | J162: Loss of Rs.33.65/- | K162: -33.65 | L162: -68% | M162: Unsuccessful | N162: 2019-06-11
A163: 27 | B163: 2015-03-30 | D163: Walchandnagar Ind Ltd | E163: Accu | F163: 183.50 | H163: 219 | I163: 218.00 | J163: Profit of Rs.35.50/- | K163: 35.50 | L163: 19.35% | M163: Successful | N163: 2015-04-09
A164: 28 | B164: 2015-04-20 | D164: Kalpataru Power Transmission Ltd | E164: Accu | F164: =(227+237)/2 -> 232.00 | H164: 298 | I164: 298.00 | J164: Target Achieved | K164: 66.00 | L164: 28.45% | M164: Successful | N164: 2017-03-29
A165: 29 | B165: 2015-05-04 | D165: Mastek Ltd | E165: Buy | F165: 385.00 | H165: =212.5+331 -> 543.5 | I165: 510.00 | J165: Profit of Rs 158.50/- | K165: 158.50 | L165: 41.17% | M165: Successful | N165: 2015-08-19
A166: 30 | B166: 2015-05-04 | D166: Suprajit Eng | E166: Buy | F166: 115.50 | H166: 146 | I166: 142.00 | J166: Profit of Rs 30.50/- | K166: 30.50 | L166: 26.41% | M166: Successful | N166: 2015-07-17
A167: 31 | B167: 2015-05-27 | D167: TCI | E167: Buy | F167: 237.50 | H167: 279.5 | I167: 278.00 | J167: Target Achieved | K167: 42.00 | L167: 17.68% | M167: Successful | N167: 2015-08-06
A168: 32 | B168: 2015-06-19 | D168: HSIL | E168: Accu | F168: 340.00 | H168: 448 | I168: 448.00 | J168: Target Achieved | K168: 108.00 | L168: 31.76% | M168: Successful | N168: 2017-10-10
A169: 33 | B169: 2015-07-06 | D169: Capital First | E169: Accu | F169: 390.00 | H169: 460 | I169: 460.00 | J169: Target Achieved | K169: 70.00 | L169: 17.95% | M169: Successful | N169: 2016-04-18
A170: 34 | B170: 2015-07-10 | D170: Dolphin OffShore | E170: Accu | F170: 122.5 | H170: 61.00 | I170: 172.00 | J170: Loss of Rs.61.50/- | K170: -61.50 | L170: -50.20% | M170: Unsuccessful | N170: 2018-08-21
A171: 35 | B171: 2015-08-03 | D171: Allcargo logistics | E171: Accu | F171: 297.50 | H171: 350 | I171: 360.00 | J171: Profit of Rs 52.50/- | K171: 52.50 | L171: 17.65% | M171: Successful | N171: 2015-08-16
A172: 36 | B172: 2015-08-03 | D172: Camline Fine | E172: Accu | F172: 115.50 | H172: 149 | I172: 140.00 | J172: Profit of Rs 33.50/- | K172: 33.50 | L172: 29.00% | M172: Successful | N172: 2017-01-05
A173: 37 | B173: 2015-09-04 | D173: TCI | E173: Accu | F173: 226.00 | H173: 292 | I173: 292.00 | J173: Target Achieved | K173: 66.00 | L173: 29.20% | M173: Successful | N173: 2015-10-09
A174: 38 | B174: 2015-09-07 | D174: Kalpataru Power Transmission Ltd | E174: Accu | F174: 232.50 | H174: 312.5 | I174: 310.00 | J174: Target Achieved | K174: 80.00 | L174: 34.41% | M174: Successful | N174: 2017-03-29
A175: 39 | B175: 2015-09-21 | D175: LLOYD ELECTRIC & ENG LTD | E175: Accu | F175: 196.50 | H175: 238 | I175: 238.00 | J175: Target Achieved | K175: 41.50 | L175: 21.12% | M175: Successful | N175: 2015-10-14
A176: 40 | B176: 2015-09-24 | D176: L&T Finance Holding | E176: Accu | F176: 65.00 | H176: 82 | I176: 82.00 | J176: Target Achieved | K176: 17.00 | L176: 26.15% | M176: Successful | N176: 2016-07-27
A177: 41 | B177: 2015-10-14 | D177: KEC International ltd | E177: Accu | F177: 144.00 | H177: 182.5 | I177: 181.00 | J177: Target Achieved | K177: 38.50 | L177: 26.74% | M177: Successful | N177: 2017-03-23
A178: 42 | B178: 2015-10-14 | D178: Gruh Finance | E178: Accu | F178: 264.00 | H178: 311 | I178: 311.00 | J178: Target Achieved | K178: 47.00 | L178: 17.80% | M178: Successful | N178: 2016-08-22
A179: 43 | B179: 2015-11-10 | D179: Pidilitind | E179: Buy | F179: 549.50 | H179: 630 | I179: 630.00 | J179: Target Achieved | K179: 80.50 | L179: 14.65% | M179: Successful | N179: 2016-02-19
A180: 44 | B180: 2015-12-04 | D180: Zensar Technology | E180: Accu | F180: 1027.50 | H180: 1315 | I180: 1250.00 | J180: Target Achieved | K180: 287.50 | L180: 27.98% | M180: Successful | N180: 2018-05-24
A181: 45 | B181: 2015-12-29 | D181: Vinati Organics Ltd | E181: Accu | F181: 465.00 | H181: 540 | I181: 540.00 | J181: Target Achieved | K181: 75.00 | L181: 16.13% | M181: Successful | N181: 2016-06-09
A182: 46 | B182: 2016-01-11 | D182: GSFC | E182: Buy | F182: 81.00 | H182: 110 | I182: 110.00 | J182: Target Achieved | K182: 29.00 | L182: 35.80% | M182: Successful | N182: 2017-01-10
A183: 47 | B183: 2016-01-13 | D183: SSWL | E183: Buy | F183: 417.50 | H183: 547 | I183: 535.00 | J183: Target Achieved | K183: 129.50 | L183: 31.02% | M183: Successful | N183: 2016-07-27
A184: 48 | B184: 2016-02-08 | D184: Persistent System Ltd | E184: Accu | F184: 650.00 | H184: 800 | I184: 800.00 | J184: Target Achieved | K184: 150.00 | L184: 23.08% | M184: Successful | N184: 2018-02-23
A185: 49 | B185: 2016-03-04 | D185: UPL | E185: Accu | F185: 437.50 | H185: 504.5 | I185: 522.00 | J185: Profit of Rs.67/- | K185: 67.00 | L185: 15.31% | M185: Successful | N185: 2016-04-20
A186: 50 | B186: 2016-03-09 | D186: Ashoka Buildcon Ltd | E186: Accu | F186: 189.50 | H186: 218 | I186: 218.00 | J186: Target Achieved | K186: 28.50 | L186: 15.04% | M186: Successful | N186: 2017-10-26
A187: 51 | B187: 2016-04-11 | D187: PTC INDIA FIN SERV LTD | E187: Accu | F187: 36.5 | H187: 15.85 | I187: 60.00 | J187: Loss of Rs.20.65/- | K187: -20.65 | L187: -56.58% | M187: Unsuccessful | N187: 2019-06-11
A188: 52 | B188: 2016-04-12 | D188: CAMLINFINE $ | E188: Accu | F188: 93.00 | H188: 149 | I188: 140.00 | J188: Profit of Rs 56/- | K188: 56.00 | L188: 60.22% | M188: Successful | N188: 2017-01-05
A189: 53 | B189: 2016-04-12 | D189: Greaves Cotton Ltd. | E189: Accu | F189: 130.00 | H189: 150 | I189: 150-155 | J189: Target Achieved | K189: 20.00 | L189: 15.38% | M189: Successful | N189: 2016-07-13
A190: 54 | B190: 2016-04-13 | D190: DHFL | E190: Accu | F190: 196.00 | H190: 299 | I190: 299.00 | J190: Target Achieved | K190: 103.00 | L190: 52.55% | M190: Successful | N190: 2016-09-07
A191: 55 | B191: 2016-04-13 | D191: Magma | E191: Accu | F191: 88.00 | H191: 103 | I191: 103.00 | J191: Target Achieved | K191: 15.00 | L191: 17.05% | M191: Successful | N191: 2016-06-09
A192: 56 | B192: 2016-05-02 | D192: KEC International ltd $ | E192: Accu | F192: 127.50 | H192: 148 | I192: 148-150 | J192: Target Achieved | K192: =H192-F192 -> 20.50 | L192: =K192/F192 -> 16.08% | M192: Successful | N192: 2016-07-13
A193: 57 | B193: 2016-05-03 | D193: Mindtree | E193: Accu | F193: 675.00 | H193: 815 | I193: 790-800 | J193: Target Achieved | K193: =H193-F193 -> 140.00 | L193: =K193/F193 -> 20.74% | M193: Successful | N193: 2018-02-23
A194: 58 | B194: 2016-06-01 | D194: Atulauto | E194: Accu | F194: 500 | H194: 232.50 | I194: 565-570 | J194: Loss of Rs.267.50 /- | K194: =H194-F194 -> -267.50 | L194: =K194/F194 -> -53.50% | M194: Unsuccessful | N194: 2019-09-27
A195: 59 | B195: 2016-06-06 | D195: TRITURBINE | E195: Accu | F195: 110.00 | H195: 126.5 | I195: 125.00 | J195: Profit of Rs.16.50/- | K195: =H195-F195 -> 16.50 | L195: =K195/F195 -> 15.00% | M195: Successful | N195: 2016-07-01
A196: 60 | B196: 2016-06-17 | D196: Pennar Industries Ltd | E196: Accu | F196: 44.00 | H196: 69.5 | I196: 69.50 | J196: Profit of Rs.25.50/- | K196: =H196-F196 -> 25.50 | L196: =K196/F196 -> 57.95% | M196: Successful | N196: 2017-08-30
A197: 61 | B197: 2016-06-28 | D197: EVEREADY | E197: Accu | F197: 262.50 | H197: 340 | I197: 333.00 | J197: Profit of Rs.77.50/- | K197: 77.50 | L197: 29.52% | M197: Successful | N197: 2017-10-09
A198: 62 | B198: 2016-06-28 | D198: FIEMIND | E198: Accu | F198: 840.00 | H198: 1230 | I198: 1230.00 | J198: Target Achieved | K198: 390.00 | L198: 46.43% | M198: Successful | N198: 2016-10-06
A199: 63 | B199: 2016-07-05 | D199: Bajaj Corp Ltd | E199: Accu | F199: 395 | H199: =(468.5+342.5)/2 -> 405.50 | I199: 510.00 | J199: Profit of Rs.10.50/- | K199: =H199-F199 -> 10.50 | L199: =K199/F199 -> 3% | M199: Neutral | N199: 2019-05-21
A200: 64 | B200: 2016-08-02 | D200: GPPL $ | E200: Buy | F200: =169.5-12.8 -> 156.7 | H200: 77.00 | I200: 198-200 | J200: Loss of Rs.79.7/- | K200: -79.70 | L200: -50.86% | M200: Unsuccessful | N200: 2019-02-26
A201: 65 | B201: 2016-08-04 | D201: WONDERLA HOLIDAYS LTD | E201: Accu | F201: 400 | H201: 305.00 | I201: 475.00 | J201: Loss of Rs.95/- | K201: -95.00 | L201: -23.75% | M201: Unsuccessful | N201: 2019-05-21
A202: 66 | B202: 2016-08-11 | D202: CAMLINFINE | E202: Accu | F202: 86.50 | H202: 130 | I202: 130.00 | J202: Profit of Rs.43.50/- | K202: 43.50 | L202: 50.29% | M202: Successful | N202: 2017-12-22
A203: 67 | B203: 2016-08-18 | D203: GRANULES | E203: Accu | F203: 133.5 | H203: 126.50 | I203: 178.00 | J203: Exit | K203: -7.00 | L203: -5.24% | M203: Unsuccessful | N203: 2016-09-02
A204: 68 | B204: 2016-08-31 | D204: VA TECH WABAG | E204: Accu | F204: 560.00 | H204: 725 | I204: 725.00 | J204: Target Achieved | K204: 165.00 | L204: 29.46% | M204: Successful | N204: 2016-03-27
A205: 69 | B205: 2016-09-01 | D205: SKIPPER LIMITED | E205: Accu | F205: 160.50 | H205: 210 | I205: 210.00 | J205: Target Achieved | K205: 49.50 | L205: 30.84% | M205: Successful | N205: 2017-05-16
A206: 70 | B206: 2016-10-03 | D206: IFBIND | E206: Accu | F206: 430.00 | H206: 596 | I206: 575.00 | J206: Profit of Rs.166/- | K206: 166.00 | L206: 38.60% | M206: Successful | N206: 2017-02-03
A207: 71 | B207: 2016-10-14 | D207: ASIANTILES | E207: Accu | F207: 280.00 | H207: 345 | I207: 345.00 | J207: Target Achieved | K207: =H207-F207 -> 65.00 | L207: =K207/F207 -> 23.21% | M207: Successful | N207: 2017-03-20
A208: 72 | B208: 2016-10-14 | D208: DEEPIND | E208: Accu | F208: 245.00 | H208: 325.5 | I208: 330.00 | J208: Profit of Rs.80.5/- | K208: 80.50 | L208: =K208/F208 -> 32.86% | M208: Successful | N208: 2017-02-03
A209: 73 | B209: 2016-10-17 | D209: DCBBANK | E209: Accu | F209: 125.00 | H209: 160 | I209: 160.00 | J209: Target Achieved | K209: 35.00 | L209: 28.00% | M209: Successful | N209: 2017-03-09
A210: 74 | B210: 2016-10-17 | D210: ORIENTREF | E210: Accu | F210: 114.00 | H210: 145 | I210: 145.00 | J210: Target Achieved | K210: 31.00 | L210: =K210/F210 -> 27.19% | M210: Successful | N210: 2017-05-04
A211: 75 | B211: 2016-10-17 | D211: GANECOS | E211: Accu | F211: 212.00 | H211: 280 | I211: 276.00 | J211: Profit of Rs.68/- | K211: 68.00 | L211: =K211/F211 -> 32.08% | M211: Successful | N211: 2017-05-03
A212: 76 | B212: 2016-11-04 | D212: NBCC | E212: Accu | F212: 155.00 | H212: 210 | I212: 210.00 | J212: Profit of Rs.55/- | K212: 55.00 | L212: =K212/F212 -> 35.48% | M212: Successful | N212: 2017-07-28
A213: 77 | B213: 2016-12-06 | D213: PRECAM | E213: Accu | F213: 150.5 | H213: 72.50 | I213: 174.00 | J213: Loss of Rs.78/- | K213: -78.00 | L213: -51.83% | M213: Unsuccessful | N213: 2018-08-21
A214: 78 | B214: 2016-12-08 | D214: INFRATEL | E214: Accu | F214: 380.00 | H214: 478 | I214: 468.00 | J214: Target Achieved | K214: =H214-F214 -> 98.00 | L214: =K214/F214 -> 25.79% | M214: Successful | N214: 2017-10-17
A215: 79 | B215: 2016-12-30 | D215: GODREJPROP | E215: Accu | F215: 305.00 | H215: 375 | I215: 375.00 | J215: Target Achieved | K215: =H215-F215 -> 70.00 | L215: =K215/F215 -> 22.95% | M215: Successful | N215: 2017-02-02
A216: 80 | B216: 2017-01-04 | D216: DEEPAKNTR | E216: Accu | F216: 99.50 | H216: 158 | I216: 158.00 | J216: Target Achieved | K216: =H216-F216 -> 58.50 | L216: =K216/F216 -> 58.79% | M216: Successful | N216: 2017-06-12
A217: 81 | B217: 2017-01-04 | D217: DEEPAKNTR | E217: Accu | F217: 99.50 | H217: 158 | I217: 158.00 | J217: Target Achieved | K217: 58.50 | L217: 58.79% | M217: Successful | N217: 2017-06-12
A218: 82 | B218: 2017-02-20 | D218: RECLTD | E218: Accu | F218: 140.50 | H218: 220 | I218: 220.00 | J218: Target Achieved | K218: =H218-F218 -> 79.50 | L218: =K218/F218 -> 56.58% | M218: Successful | N218: 2017-05-09
A219: 83 | B219: 2017-02-20 | D219: SUBROS | E219: Accu | F219: 202.50 | H219: 234 | I219: 234.00 | J219: Target Achieved | K219: 31.50 | L219: 15.56% | M219: Successful | N219: 2017-04-11
A220: 84 | B220: 2017-03-24 | D220: VRLLOG | E220: Accu | F220: 300.50 | H220: 417.5 | I220: 420.00 | J220: Profit of Rs.117/- | K220: =H220-F220 -> 117.00 | L220: =K220/F220 -> 38.94% | M220: Successful | N220: 2017-12-01
A221: 85 | B221: 2017-03-24 | D221: FIEMIND | E221: Accu | F221: 850.00 | H221: 1042.5 | I221: 1023.00 | J221: Profit of Rs 192.50/- | K221: 192.50 | L221: 22.65% | M221: Successful | N221: 2017-04-05
A222: 86 | B222: 2017-04-05 | D222: RATNAMANI | E222: Accu | F222: 785.00 | H222: 930 | I222: 920.00 | J222: Profit of Rs.145/- | K222: =H222-F222 -> 145.00 | L222: =K222/F222 -> 18.47% | M222: Successful | N222: 2017-08-29
A223: 87 | B223: 2017-04-06 | D223: ZEEMEDIA | E223: Accu | F223: 40 | H223: 13.10 | I223: 60.00 | J223: Loss of Rs.26.9/- | K223: -26.90 | L223: -67.25% | M223: Unsuccessful | N223: 2018-02-07
A224: 88 | B224: 2017-04-12 | D224: DABUR | E224: Accu | F224: 289.50 | H224: 354 | I224: 360.00 | J224: Profit of Rs.64.5/- | K224: =H224-F224 -> 64.50 | L224: =K224/F224 -> 22.28% | M224: Successful | N224: 2017-11-01
... 90 more rows
